{"text_format":"1","workbook":"xlsx","n_sheets":9,"sheets":["GUIDA","TABELLA 1","TABELLA 2","TABELLA 3","TABELLA 4","TABELLA 5","TABELLA 6","TABELLA 7","TABELLA 8"],"not_rendered":{"charts":0,"images":0,"macros":1,"external_links":0,"defined_names":9,"comments":0,"pivot_tables":0},"unopened":[],"bounds":{"document_bytes":16777216,"sheet_cells":100000,"rows_first":2000,"rows_last":500,"rows_between":2000,"halvings":0,"cell_chars":16384,"cell_head_chars":4096},"cells_cut":0,"cells_raw":0,"read":"whole","date_system":"1900"}

{"sheet":"GUIDA","index":0,"n_rows":16,"n_cols":7,"rows_kept":16,"cut":false,"hidden":false,"merged":[[10,1,10,9],[12,1,12,9],[12,10,12,13],[10,10,10,13],[11,1,11,9],[11,10,11,13],[1,1,1,9],[2,1,2,9],[2,10,2,14],[3,1,3,9],[3,10,3,14],[4,1,4,9],[4,10,4,14],[5,1,5,9],[5,10,5,14],[6,1,6,9],[6,10,6,14],[7,1,7,9],[7,10,7,13],[8,1,8,9],[9,1,9,5],[9,6,9,9],[8,10,8,13],[9,10,9,13],[14,1,14,9],[14,10,14,13],[15,1,15,9],[15,10,15,13],[13,1,13,9]]}
[null,"GUIDA ALLA COMPILAZIONE"]
[null,"Ogni volta che viene selezionata una casella compare un Riquadro che indica la descrizione esatta del dato da inserire."]
[null,"Se il dato inserito non corrisponde all'informazione richiesta, appare un messaggio di Errore che blocca l'inserimento e spiega come correggere l'informazione inserita."]
[null,"Qualora il dato sia presente ma Non disponibile, il sistema richiede di selezionare l'indicazione \"Nd\" nell'apposito riquadro evidenziato in grigio."]
[null,"Le Somme algebriche e i Totali sono calcolati automaticamente. Pertanto non è necessario inserirli manualmente ma solo verificare la correttezza dei dati inseriti"]
[null,"In alcuni casi (Excel 2011) il modello verifica la Coerenza delle informazioni inserite nelle diverse tabelle, e indica il livello di affidibilità delle informazioni inserite evidenziando in Verde i valori corretti e in Rosso i valori non coerenti."]
[null,"Prima di inviare il file controllare che tutti i campi siano compilati correttamente che non ci siano caselle evidenziate in Rosso (dati non coerenti)."]
[null,"Per ulteriori informazioni sulla compilazione del Modello e delle Informazioni aggiuntive è possibile scaricare la Guida alla Compilazione al seguente indirizzo:"]
[null,"www.sardegna.rapportibiennali.it"]
[null,"Per richiedere Assistenza è possibile inviare una email al seguente indirizzo:",null,null,null,null,"info@rapportibiennali.it"]
[null,"IL MODELLO COMPILATO DEVE ESSERE INVIATO IN FORMATO ELETTRONICO (Excel/OpenOffice) ALL'INDIRIZZO:"]
[null,"consiglieraparita@regione.sardegna.it"]
[null,"E IN FORMATO CARTACEO (stampato e firmato dal responsabile) ALL'INDIRIZZO:"]
[null,"Ufficio Consigliera regionale di parità"]
[null,"Assessorato del Lavoro, Formazione Professionale, Cooperazione e Sicurezza Sociale"]
[null,"via XXVIII Febbraio n. 5, Cagliari (CA)"]

{"sheet":"TABELLA 1","index":1,"n_rows":1227,"n_cols":22,"rows_kept":1227,"cut":false,"hidden":false,"merged":[[0,0,0,6],[12,2,12,4],[1,0,1,6],[13,2,13,4],[21,6,21,7],[16,6,16,7],[19,6,19,7],[3,3,3,7],[4,3,4,7],[5,3,5,7],[17,2,17,4],[20,2,20,4],[27,1,27,6],[3,1,3,2],[4,1,4,2],[5,1,5,2],[21,2,21,4],[24,1,24,6],[19,2,19,4],[16,2,16,4],[7,4,7,5],[8,4,8,5],[12,6,12,7],[22,2,22,4],[25,1,25,8],[26,1,26,8]]}
["TABELLA 1",null,null,null,null,null,null,null,null,null,null,null,null,null,null,null,null," -- "," -- ",null," -- "," -- "]
["INFORMAZIONI GENERALI SULL’AZIENDA",null,null,null,null,null,null,null,null,null,null,null,null,null,null,null,null,1,"1 - Estrazione Minerali Energetici",null,"01.11.10","Coltivazione di cereali (escluso il riso)"]
[null,null,null,null,null,null,null,null,null,null,null,null,null,null,null,null,null,2,"2 - Estrazione Minerali Solidi",null,"01.11.20","Coltivazione di semi oleosi"]
[null,"1.   Ragione Sociale dell’azienda",null,null,null,null,null,null,null,null,null,null,null,null,null,null,null,3,"3 - Alimentari esclusa industria Olearia",null,"01.11.30","Coltivazione di legumi da granella"]
[null,"2.   Sede legale dell’azienda",null,null,null,null,null,null,null,null,null,null,null,null,null,null,null,4,"4 - Olearia e margariniera",null,"01.11.40","Coltivazioni miste di cereali, legumi da granella e semi oleosi"]
[null,"3.   Codice fiscale",null,null,null,null,null,null,null,null,null,null,null,null,null,null,null,5,"5 - Tabacco",null,"01.12.00","Coltivazione di riso"]
[null,null,null,null,null,null,null,null,null,null,null,null,null,null,null,null,null,6,"6 - Tessili",null,"01.13.10","Coltivazione di ortaggi (inclusi i meloni) in foglia, a fusto, a frutto, in radici, bulbi e tuberi in piena aria (escluse barbabietola da zucchero e patate)"]
[null,"4.   Occupazione Totale al 31/12/2015 (a)",null,"MF",null,null,null,null,null,null,null,null,null,null,null,null,null,7,"7 - Confezioni in serie",null,"01.13.20","Coltivazione di ortaggi (inclusi i meloni) in foglia, a fusto, a frutto, in radici, bulbi e tuberi in colture protette (escluse barbabietola da zucchero e patate)"]
[null,null,null,"di cui   F",null,null,null,null,null,null,null,null,null,null,null,null,null,8,"8 - Pelli e cuoi",null,"01.13.30","Coltivazione di barbabietola da zucchero"]
[null,null,null,"Legenda: ","MF = maschi e femmine ",null,null,null,null,null,null,null,null,null,null,null,null,12,"12 - Carta e Cartotecnica",null,"01.16.00","Coltivazione di piante per la preparazione di fibre tessili"]
[null,null,null,null,"F= femmine "]
[null,"5.   Attività economica esercitata (b)",null,null,null,null,0,null,null,null,null,null,null,null,null,null,null,13,"13 - Giornalisti",null,"01.19.10","Coltivazione di fiori in piena aria"]
[]
[null,null,"(denominazione)",null,null,null,"(codice)",null,null,null,null,null,null,null,null,null,null,15,"15 - Grafiche",null,"01.19.90","Coltivazione di piante da foraggio e di altre colture non permanenti"]
[null,"6.   Contratti collettivi nazionali di lavoro (c )",null,null,null,null,null,null,null,null,null,null,null,null,null,null,null,16,"16 - Petrolifere",null,"01.21.00","Coltivazione di uva"]
[null,"-    contratto applicato al maggior numero di lavoratori",null,null,null,null,0,null,null,null,null,null,null,null,null,null,null,17,"17 - Chimiche",null,"01.22.00","Coltivazione di frutta di origine tropicale e subtropicale"]
[]
[null,null,"(denominazione)",null,null,null,"(codice)"]
[null,"-    eventuali altri contratti applicati:",null,null,null,null,null,null,null,null,null,null,null,null,null,null,null,19,"19 - Vetro",null,"01.24.00","Coltivazione di pomacee e frutta a nocciolo"]
[]
[null,null,"(denominazione)",null,null,null,"(codice)",null,null,null,null,null,null,null,null,null,null,21,"21 - Laterizi e manufatti in cemento",null,"01.26.00","Coltivazione di frutti oleosi"]
[]
[null,null,"(denominazione)",null,null,null,"(codice)",null,null,null,null,null,null,null,null,null,null,23,"23 - Lapidei",null,"01.28.00","Coltivazione di spezie, piante aromatiche e farmaceutiche"]
[null,null,null,null,null,null,null,null,null,null,null,null,null,null,null,null,null,24,"24 - Metalmeccanica",null,"01.29.00","Coltivazione di altre colture permanenti (inclusi alberi di Natale)"]
[null,"(a) L'anno da considerare è il secondo del biennio."]
[null,"(b) Riportare l’attività prevalente dell’impresa utilizzando il nuovo codice di attività economica già indicato nella dichiarazione IVA e dei Redditi.",null,null,null,null,null,null,null,null,null,null,null,null,null,null,null,25,"25 - Energia Elettrica",null,"01.30.00","Riproduzione delle piante"]
[null,"(c) Per i Codici Contratti fare riferimento alla Tabella Codici Contratto INPS. In caso di CCNL non compreso, riportare la denominazione per esteso.",null,null,null,null,null,null,null,null,null,null,null,null,null,null,null,26,"26 - Gas",null,"01.41.00","Allevamento di bovini e bufale da latte, produzione di latte crudo"]
[null,null,null,null,null,null,null,null,null,null,null,null,null,null,null,null,null,27,"27 - Acqua (Az. Municipalizzate)",null,"01.42.00","Allevamento di bovini e bufalini da carne"]
[null,null,null,null,null,null,null,null,null,null,null,null,null,null,null,null,null,28,"28 - Commercio",null,"01.43.00","Allevamento di cavalli e altri equini"]
[null,null,null,null,null,null,null,null,null,null,null,null,null,null,null,null,null,29,"29 - Alberghi",null,"01.44.00","Allevamento di cammelli e camelidi"]
[null,null,null,null,null,null,null,null,null,null,null,null,null,null,null,null,null,30,"30 - Pubblici Esercizi",null,"01.45.00","Allevamento di ovini e caprini"]
[null,null,null,null,null,null,null,null,null,null,null,null,null,null,null,null,null,31,"31 - Ferrovie dello Stato",null,"01.46.00","Allevamento di suini"]
[null,null,null,null,null,null,null,null,null,null,null,null,null,null,null,null,null,32,"32 - Ferrovie in Concessione",null,"01.47.00","Allevamento di pollame"]
[null,null,null,null,null,null,null,null,null,null,null,null,null,null,null,null,null,33,"33 - Autolinee in concessione",null,"01.49.10","Allevamento di conigli"]
[null,null,null,null,null,null,null,null,null,null,null,null,null,null,null,null,null,34,"34 - Trasporti Municipalizzati",null,"01.49.20","Allevamento di animali da pelliccia"]
[null,null,null,null,null,null,null,null,null,null,null,null,null,null,null,null,null,35,"35 - Trasporto merci su strada",null,"01.49.30","Apicoltura"]
[null,null,null,null,null,null,null,null,null,null,null,null,null,null,null,null,null,36,"36 - Trasporti Marittimi",null,"01.49.40","Bachicoltura"]
[null,null,null,null,null,null,null,null,null,null,null,null,null,null,null,null,null,37,"37 - Trasporti Aerei",null,"01.49.90","Allevamento di altri animali nca"]
[null,null,null,null,null,null,null,null,null,null,null,null,null,null,null,null,null,38,"38 - Azienda di Stato servizi telefonici",null,"01.50.00","Coltivazioni agricole associate all'allevamento di animali: attività mista"]
[null,null,null,null,null,null,null,null,null,null,null,null,null,null,null,null,null,39,"39 - Poste e Telegrafi di Stato",null,"01.61.00","Attività di supporto alla produzione vegetale"]
[null,null,null,null,null,null,null,null,null,null,null,null,null,null,null,null,null,40,"40 - Telefoni in concessione",null,"01.62.01","Attività dei maniscalchi"]
[null,null,null,null,null,null,null,null,null,null,null,null,null,null,null,null,null,41,"41 - Credito ",null,"01.62.09","Altre attività di supporto alla produzione animale (esclusi i servizi veterinari)"]
[null,null,null,null,null,null,null,null,null,null,null,null,null,null,null,null,null,42,"42 - Assicurazioni",null,"01.63.00","Attività che seguono la raccolta"]
[null,null,null,null,null,null,null,null,null,null,null,null,null,null,null,null,null,43,"43 - Agricoltura",null,"01.64.01","Pulitura e cernita di semi e granaglie"]
[null,null,null,null,null,null,null,null,null,null,null,null,null,null,null,null,null,44,"44 - Altro tipo di contratto",null,"01.64.09","Altre lavorazioni delle sementi per la semina"]
[null,null,null,null,null,null,null,null,null,null,null,null,null,null,null,null,null,45,null,null,"01.70.00","Caccia, cattura di animali e servizi connessi"]
[null,null,null,null,null,null,null,null,null,null,null,null,null,null,null,null,null,46,null,null,"02.10.00","Silvicoltura e altre attività forestali"]
[null,null,null,null,null,null,null,null,null,null,null,null,null,null,null,null,null,47,null,null,"02.20.00","Utilizzo di aree forestali"]
[null,null,null,null,null,null,null,null,null,null,null,null,null,null,null,null,null,48,null,null,"02.30.00","Raccolta di prodotti selvatici non legnosi"]
[null,null,null,null,null,null,null,null,null,null,null,null,null,null,null,null,null,49,null,null,"02.40.00","Servizi di supporto per la silvicoltura"]
[null,null,null,null,null,null,null,null,null,null,null,null,null,null,null,null,null,50,null,null,"03.11.00","Pesca in acque marine e lagunari e servizi connessi"]
[null,null,null,null,null,null,null,null,null,null,null,null,null,null,null,null,null,51,null,null,"03.12.00","Pesca in acque dolci e servizi connessi"]
[null,null,null,null,null,null,null,null,null,null,null,null,null,null,null,null,null,52,null,null,"03.21.00","Acquacoltura in acqua di mare, salmastra o lagunare e servizi connessi"]
[null,null,null,null,null,null,null,null,null,null,null,null,null,null,null,null,null,53,null,null,"03.22.00","Acquacoltura in acque dolci e servizi connessi"]
[null,null,null,null,null,null,null,null,null,null,null,null,null,null,null,null,null,54,null,null,"05.10.00","Estrazione di antracite e litantrace"]
[null,null,null,null,null,null,null,null,null,null,null,null,null,null,null,null,null,55,null,null,"05.20.00","Estrazione di lignite"]
[null,null,null,null,null,null,null,null,null,null,null,null,null,null,null,null,null,56,null,null,"06.10.00","Estrazione di petrolio greggio"]
[null,null,null,null,null,null,null,null,null,null,null,null,null,null,null,null,null,57,null,null,"06.20.00","Estrazione di gas naturale"]
[null,null,null,null,null,null,null,null,null,null,null,null,null,null,null,null,null,58,null,null,"07.10.00","Estrazione di minerali metalliferi ferrosi"]
[null,null,null,null,null,null,null,null,null,null,null,null,null,null,null,null,null,59,null,null,"07.21.00","Estrazione di minerali di uranio e di torio"]
[null,null,null,null,null,null,null,null,null,null,null,null,null,null,null,null,null,60,null,null,"07.29.00","Estrazione di altri minerali metalliferi non ferrosi"]
[null,null,null,null,null,null,null,null,null,null,null,null,null,null,null,null,null,61,null,null,"08.11.00","Estrazione di pietre ornamentali e da costruzione, calcare, pietra da gesso, creta e ardesia"]
[null,null,null,null,null,null,null,null,null,null,null,null,null,null,null,null,null,62,null,null,"08.12.00","Estrazione di ghiaia, sabbia; estrazione di argille e caolino"]
[null,null,null,null,null,null,null,null,null,null,null,null,null,null,null,null,null,63,null,null,"08.91.00","Estrazione di minerali per l'industria chimica e per la produzione di fertilizzanti"]
[null,null,null,null,null,null,null,null,null,null,null,null,null,null,null,null,null,64,null,null,"08.92.00","Estrazione di torba"]
[null,null,null,null,null,null,null,null,null,null,null,null,null,null,null,null,null,65,null,null,"08.93.00","Estrazione di sale"]
[null,null,null,null,null,null,null,null,null,null,null,null,null,null,null,null,null,66,null,null,"08.99.01","Estrazione di asfalto e bitume naturale"]
[null,null,null,null,null,null,null,null,null,null,null,null,null,null,null,null,null,67,null,null,"08.99.09","Estrazione di pomice e di altri minerali nca"]
[null,null,null,null,null,null,null,null,null,null,null,null,null,null,null,null,null,68,null,null,"09.10.00","Attività di supporto all'estrazione di petrolio e di gas naturale"]
[null,null,null,null,null,null,null,null,null,null,null,null,null,null,null,null,null,69,null,null,"09.90.01","Attività di supporto all'estrazione di pietre ornamentali, da costruzione, da gesso, di anidrite, per calce e cementi, di dolomite, di ardesia, di ghiaia e sabbia, di argilla, di caolino, di pomice"]
[null,null,null,null,null,null,null,null,null,null,null,null,null,null,null,null,null,70,null,null,"09.90.09","Attività di supporto all'estrazione di altri minerali nca"]
[null,null,null,null,null,null,null,null,null,null,null,null,null,null,null,null,null,71,null,null,"10.11.00","Produzione di carne non di volatili e di prodotti della macellazione (attività dei mattatoi)"]
[null,null,null,null,null,null,null,null,null,null,null,null,null,null,null,null,null,72,null,null,"10.12.00","Produzione di carne di volatili e prodotti della loro macellazione (attività dei mattatoi)"]
[null,null,null,null,null,null,null,null,null,null,null,null,null,null,null,null,null,73,null,null,"10.13.00","Produzione di prodotti a base di carne (inclusa la carne di volatili)"]
[null,null,null,null,null,null,null,null,null,null,null,null,null,null,null,null,null,74,null,null,"10.20.00","Lavorazione e conservazione di pesce, crostacei e molluschi mediante surgelamento, salatura eccetera"]
[null,null,null,null,null,null,null,null,null,null,null,null,null,null,null,null,null,75,null,null,"10.31.00","Lavorazione e conservazione delle patate"]
[null,null,null,null,null,null,null,null,null,null,null,null,null,null,null,null,null,76,null,null,"10.32.00","Produzione di succhi di frutta e di ortaggi"]
[null,null,null,null,null,null,null,null,null,null,null,null,null,null,null,null,null,77,null,null,"10.39.00","Lavorazione e conservazione di frutta e di ortaggi (esclusi i succhi di frutta e di ortaggi)"]
[null,null,null,null,null,null,null,null,null,null,null,null,null,null,null,null,null,78,null,null,"10.41.10","Produzione di olio di oliva da olive prevalentemente non di produzione propria"]
[null,null,null,null,null,null,null,null,null,null,null,null,null,null,null,null,null,79,null,null,"10.41.20","Produzione di olio raffinato o grezzo da semi oleosi o frutti oleosi prevalentemente non di produzione propria"]
[null,null,null,null,null,null,null,null,null,null,null,null,null,null,null,null,null,80,null,null,"10.41.30","Produzione di oli e grassi animali grezzi o raffinati"]
[null,null,null,null,null,null,null,null,null,null,null,null,null,null,null,null,null,81,null,null,"10.42.00","Produzione di margarina e di grassi commestibili simili"]
[null,null,null,null,null,null,null,null,null,null,null,null,null,null,null,null,null,82,null,null,"10.51.10","Trattamento igienico del latte"]
[null,null,null,null,null,null,null,null,null,null,null,null,null,null,null,null,null,83,null,null,"10.51.20","Produzione dei derivati del latte"]
[null,null,null,null,null,null,null,null,null,null,null,null,null,null,null,null,null,84,null,null,"10.52.00","Produzione di gelati senza vendita diretta al pubblico"]
[null,null,null,null,null,null,null,null,null,null,null,null,null,null,null,null,null,85,null,null,"10.61.10","Molitura del frumento"]
[null,null,null,null,null,null,null,null,null,null,null,null,null,null,null,null,null,86,null,null,"10.61.20","Molitura di altri cereali"]
[null,null,null,null,null,null,null,null,null,null,null,null,null,null,null,null,null,87,null,null,"10.61.30","Lavorazione del riso"]
[null,null,null,null,null,null,null,null,null,null,null,null,null,null,null,null,null,88,null,null,"10.61.40","Altre lavorazioni di semi e granaglie"]
[null,null,null,null,null,null,null,null,null,null,null,null,null,null,null,null,null,89,null,null,"10.62.00","Produzione di amidi e di prodotti amidacei (inclusa produzione di olio di mais)"]
[null,null,null,null,null,null,null,null,null,null,null,null,null,null,null,null,null,90,null,null,"10.71.10","Produzione di prodotti di panetteria freschi"]
[null,null,null,null,null,null,null,null,null,null,null,null,null,null,null,null,null,91,null,null,"10.71.20","Produzione di pasticceria fresca"]
[null,null,null,null,null,null,null,null,null,null,null,null,null,null,null,null,null,92,null,null,"10.72.00","Produzione di fette biscottate, biscotti; prodotti di pasticceria conservati"]
[null,null,null,null,null,null,null,null,null,null,null,null,null,null,null,null,null,93,null,null,"10.73.00","Produzione di paste alimentari, di cuscus e di prodotti farinacei simili"]
[null,null,null,null,null,null,null,null,null,null,null,null,null,null,null,null,null,94,null,null,"10.81.00","Produzione di zucchero"]
[null,null,null,null,null,null,null,null,null,null,null,null,null,null,null,null,null,95,null,null,"10.82.00","Produzione di cacao in polvere, cioccolato, caramelle e confetterie"]
[null,null,null,null,null,null,null,null,null,null,null,null,null,null,null,null,null,96,null,null,"10.83.01","Lavorazione del caffè"]
[null,null,null,null,null,null,null,null,null,null,null,null,null,null,null,null,null,97,null,null,"10.83.02","Lavorazione del tè e di altri preparati per infusi"]
[null,null,null,null,null,null,null,null,null,null,null,null,null,null,null,null,null,98,null,null,"10.84.00","Produzione di condimenti e spezie"]
[null,null,null,null,null,null,null,null,null,null,null,null,null,null,null,null,null,99,null,null,"10.85.01","Produzione di piatti pronti a base di carne e pollame"]
[null,null,null,null,null,null,null,null,null,null,null,null,null,null,null,null,null,100,null,null,"10.85.02","Produzione di piatti pronti a base di pesce, inclusi fish and chips"]
[null,null,null,null,null,null,null,null,null,null,null,null,null,null,null,null,null,101,null,null,"10.85.03","Produzione di piatti pronti a base di ortaggi"]
[null,null,null,null,null,null,null,null,null,null,null,null,null,null,null,null,null,102,null,null,"10.85.04","Produzione di pizza confezionata"]
[null,null,null,null,null,null,null,null,null,null,null,null,null,null,null,null,null,103,null,null,"10.85.05","Produzione di piatti pronti a base di pasta"]
[null,null,null,null,null,null,null,null,null,null,null,null,null,null,null,null,null,104,null,null,"10.85.09","Produzione di pasti e piatti pronti di altri prodotti alimentari"]
[null,null,null,null,null,null,null,null,null,null,null,null,null,null,null,null,null,105,null,null,"10.86.00","Produzione di preparati omogeneizzati e di alimenti dietetici"]
[null,null,null,null,null,null,null,null,null,null,null,null,null,null,null,null,null,106,null,null,"10.89.01","Produzione di estratti e succhi di carne"]
[null,null,null,null,null,null,null,null,null,null,null,null,null,null,null,null,null,107,null,null,"10.89.09","Produzione di altri prodotti alimentari nca"]
[null,null,null,null,null,null,null,null,null,null,null,null,null,null,null,null,null,108,null,null,"10.91.00","Produzione di mangimi per l'alimentazione degli animali da allevamento"]
[null,null,null,null,null,null,null,null,null,null,null,null,null,null,null,null,null,109,null,null,"10.92.00","Produzione di prodotti per l'alimentazione degli animali da compagnia"]
[null,null,null,null,null,null,null,null,null,null,null,null,null,null,null,null,null,110,null,null,"11.01.00","Distillazione, rettifica e miscelatura degli alcolici"]
[null,null,null,null,null,null,null,null,null,null,null,null,null,null,null,null,null,111,null,null,"11.02.10","Produzione di vini da tavola e v.q.p.r.d."]
[null,null,null,null,null,null,null,null,null,null,null,null,null,null,null,null,null,112,null,null,"11.02.20","Produzione di vino spumante e altri vini speciali"]
[null,null,null,null,null,null,null,null,null,null,null,null,null,null,null,null,null,113,null,null,"11.03.00","Produzione di sidro e di altri vini a base di frutta"]
[null,null,null,null,null,null,null,null,null,null,null,null,null,null,null,null,null,114,null,null,"11.04.00","Produzione di altre bevande fermentate non distillate"]
[null,null,null,null,null,null,null,null,null,null,null,null,null,null,null,null,null,115,null,null,"11.05.00","Produzione di birra"]
[null,null,null,null,null,null,null,null,null,null,null,null,null,null,null,null,null,116,null,null,"11.06.00","Produzione di malto"]
[null,null,null,null,null,null,null,null,null,null,null,null,null,null,null,null,null,117,null,null,"11.07.00","Industria delle bibite analcoliche, delle acque minerali e di altre acque in bottiglia"]
[null,null,null,null,null,null,null,null,null,null,null,null,null,null,null,null,null,118,null,null,"12.00.00","Industria del tabacco"]
[null,null,null,null,null,null,null,null,null,null,null,null,null,null,null,null,null,119,null,null,"13.10.00","Preparazione e filatura di fibre tessili"]
[null,null,null,null,null,null,null,null,null,null,null,null,null,null,null,null,null,120,null,null,"13.20.00","Tessitura"]
[null,null,null,null,null,null,null,null,null,null,null,null,null,null,null,null,null,121,null,null,"13.30.00","Finissaggio dei tessili, degli articoli di vestiario e attività similari"]
[null,null,null,null,null,null,null,null,null,null,null,null,null,null,null,null,null,122,null,null,"13.91.00","Fabbricazione di tessuti a maglia"]
[null,null,null,null,null,null,null,null,null,null,null,null,null,null,null,null,null,123,null,null,"13.92.10","Confezionamento di biancheria da letto, da tavola e per l'arredamento"]
[null,null,null,null,null,null,null,null,null,null,null,null,null,null,null,null,null,124,null,null,"13.92.20","Fabbricazione di articoli in materie tessili nca"]
[null,null,null,null,null,null,null,null,null,null,null,null,null,null,null,null,null,125,null,null,"13.93.00","Fabbricazione di tappeti e moquette"]
[null,null,null,null,null,null,null,null,null,null,null,null,null,null,null,null,null,126,null,null,"13.94.00","Fabbricazione di spago, corde, funi e reti"]
[null,null,null,null,null,null,null,null,null,null,null,null,null,null,null,null,null,127,null,null,"13.95.00","Fabbricazione di tessuti non tessuti e di articoli in tali materie (esclusi gli articoli di abbigliamento)"]
[null,null,null,null,null,null,null,null,null,null,null,null,null,null,null,null,null,128,null,null,"13.96.10","Fabbricazione di nastri, etichette e passamanerie di fibre tessili"]
[null,null,null,null,null,null,null,null,null,null,null,null,null,null,null,null,null,129,null,null,"13.96.20","Fabbricazione di altri articoli tessili tecnici ed industriali"]
[null,null,null,null,null,null,null,null,null,null,null,null,null,null,null,null,null,130,null,null,"13.99.10","Fabbricazione di ricami"]
[null,null,null,null,null,null,null,null,null,null,null,null,null,null,null,null,null,131,null,null,"13.99.20","Fabbricazione di tulle, pizzi e merletti"]
[null,null,null,null,null,null,null,null,null,null,null,null,null,null,null,null,null,132,null,null,"13.99.90","Fabbricazione di feltro e articoli tessili diversi"]
[null,null,null,null,null,null,null,null,null,null,null,null,null,null,null,null,null,133,null,null,"14.11.00","Confezione di abbigliamento in pelle e similpelle"]
[null,null,null,null,null,null,null,null,null,null,null,null,null,null,null,null,null,134,null,null,"14.12.00","Confezione di camici, divise ed altri indumenti da lavoro"]
[null,null,null,null,null,null,null,null,null,null,null,null,null,null,null,null,null,135,null,null,"14.13.10","Confezione in serie di abbigliamento esterno"]
[null,null,null,null,null,null,null,null,null,null,null,null,null,null,null,null,null,136,null,null,"14.13.20","Sartoria e confezione su misura di abbigliamento esterno"]
[null,null,null,null,null,null,null,null,null,null,null,null,null,null,null,null,null,137,null,null,"14.14.00","Confezione di camicie, T-shirt, corsetteria e altra biancheria intima"]
[null,null,null,null,null,null,null,null,null,null,null,null,null,null,null,null,null,138,null,null,"14.19.10","Confezioni varie e accessori per l'abbigliamento"]
[null,null,null,null,null,null,null,null,null,null,null,null,null,null,null,null,null,139,null,null,"14.19.21","Fabbricazione di calzature realizzate in materiale tessile senza suole applicate"]
[null,null,null,null,null,null,null,null,null,null,null,null,null,null,null,null,null,140,null,null,"14.19.29","Confezioni di abbigliamento sportivo o di altri indumenti particolari"]
[null,null,null,null,null,null,null,null,null,null,null,null,null,null,null,null,null,141,null,null,"14.20.00","Confezione di articoli in pelliccia"]
[null,null,null,null,null,null,null,null,null,null,null,null,null,null,null,null,null,142,null,null,"14.31.00","Fabbricazione di articoli di calzetteria in maglia"]
[null,null,null,null,null,null,null,null,null,null,null,null,null,null,null,null,null,143,null,null,"14.39.00","Fabbricazione di pullover, cardigan ed altri articoli simili a maglia"]
[null,null,null,null,null,null,null,null,null,null,null,null,null,null,null,null,null,144,null,null,"15.11.00","Preparazione e concia del cuoio e pelle; preparazione e tintura di pellicce"]
[null,null,null,null,null,null,null,null,null,null,null,null,null,null,null,null,null,145,null,null,"15.12.01","Fabbricazione di frustini e scudisci per equitazione"]
[null,null,null,null,null,null,null,null,null,null,null,null,null,null,null,null,null,146,null,null,"15.12.09","Fabbricazione di altri articoli da viaggio, borse e simili, pelletteria e selleria"]
[null,null,null,null,null,null,null,null,null,null,null,null,null,null,null,null,null,147,null,null,"15.20.10","Fabbricazione di calzature"]
[null,null,null,null,null,null,null,null,null,null,null,null,null,null,null,null,null,148,null,null,"15.20.20","Fabbricazione di parti in cuoio per calzature"]
[null,null,null,null,null,null,null,null,null,null,null,null,null,null,null,null,null,149,null,null,"16.10.00","Taglio e piallatura del legno"]
[null,null,null,null,null,null,null,null,null,null,null,null,null,null,null,null,null,150,null,null,"16.21.00","Fabbricazione di fogli da impiallacciatura e di pannelli a base di legno"]
[null,null,null,null,null,null,null,null,null,null,null,null,null,null,null,null,null,151,null,null,"16.22.00","Fabbricazione di pavimenti in parquet assemblato"]
[null,null,null,null,null,null,null,null,null,null,null,null,null,null,null,null,null,152,null,null,"16.23.10","Fabbricazione di porte e finestre in legno (escluse porte blindate)"]
[null,null,null,null,null,null,null,null,null,null,null,null,null,null,null,null,null,153,null,null,"16.23.20","Fabbricazione di altri elementi in legno e di falegnameria per l'edilizia"]
[null,null,null,null,null,null,null,null,null,null,null,null,null,null,null,null,null,154,null,null,"16.24.00","Fabbricazione di imballaggi in legno"]
[null,null,null,null,null,null,null,null,null,null,null,null,null,null,null,null,null,155,null,null,"16.29.11","Fabbricazione di parti in legno per calzature"]
[null,null,null,null,null,null,null,null,null,null,null,null,null,null,null,null,null,156,null,null,"16.29.12","Fabbricazione di manici di ombrelli, bastoni e simili"]
[null,null,null,null,null,null,null,null,null,null,null,null,null,null,null,null,null,157,null,null,"16.29.19","Fabbricazione di altri prodotti vari in legno (esclusi i mobili)"]
[null,null,null,null,null,null,null,null,null,null,null,null,null,null,null,null,null,158,null,null,"16.29.20","Fabbricazione dei prodotti della lavorazione del sughero"]
[null,null,null,null,null,null,null,null,null,null,null,null,null,null,null,null,null,159,null,null,"16.29.30","Fabbricazione di articoli in paglia e materiali da intreccio"]
[null,null,null,null,null,null,null,null,null,null,null,null,null,null,null,null,null,160,null,null,"16.29.40","Laboratori di corniciai"]
[null,null,null,null,null,null,null,null,null,null,null,null,null,null,null,null,null,161,null,null,"17.11.00","Fabbricazione di pasta-carta"]
[null,null,null,null,null,null,null,null,null,null,null,null,null,null,null,null,null,162,null,null,"17.12.00","Fabbricazione di carta e cartone"]
[null,null,null,null,null,null,null,null,null,null,null,null,null,null,null,null,null,163,null,null,"17.21.00","Fabbricazione di carta e cartone ondulato e di imballaggi di carta e cartone (esclusi quelli in carta pressata)"]
[null,null,null,null,null,null,null,null,null,null,null,null,null,null,null,null,null,164,null,null,"17.22.00","Fabbricazione di prodotti igienico-sanitari e per uso domestico in carta e ovatta di cellulosa"]
[null,null,null,null,null,null,null,null,null,null,null,null,null,null,null,null,null,165,null,null,"17.23.01","Fabbricazione di prodotti cartotecnici scolastici e commerciali quando l'attività di stampa non è la principale caratteristica"]
[null,null,null,null,null,null,null,null,null,null,null,null,null,null,null,null,null,166,null,null,"17.23.09","Fabbricazione di altri prodotti cartotecnici"]
[null,null,null,null,null,null,null,null,null,null,null,null,null,null,null,null,null,167,null,null,"17.24.00","Fabbricazione di carta da parati"]
[null,null,null,null,null,null,null,null,null,null,null,null,null,null,null,null,null,168,null,null,"17.29.00","Fabbricazione di altri articoli di carta e cartone"]
[null,null,null,null,null,null,null,null,null,null,null,null,null,null,null,null,null,169,null,null,"18.11.00","Stampa di giornali"]
[null,null,null,null,null,null,null,null,null,null,null,null,null,null,null,null,null,170,null,null,"18.12.00","Altra stampa"]
[null,null,null,null,null,null,null,null,null,null,null,null,null,null,null,null,null,171,null,null,"18.13.00","Lavorazioni preliminari alla stampa e ai media"]
[null,null,null,null,null,null,null,null,null,null,null,null,null,null,null,null,null,172,null,null,"18.14.00","Legatoria e servizi connessi"]
[null,null,null,null,null,null,null,null,null,null,null,null,null,null,null,null,null,173,null,null,"18.20.00","Riproduzione di supporti registrati"]
[null,null,null,null,null,null,null,null,null,null,null,null,null,null,null,null,null,174,null,null,"19.10.01","Fabbricazione di pece e coke di pece"]
[null,null,null,null,null,null,null,null,null,null,null,null,null,null,null,null,null,175,null,null,"19.10.09","Fabbricazione di altri prodotti di cokeria"]
[null,null,null,null,null,null,null,null,null,null,null,null,null,null,null,null,null,176,null,null,"19.20.10","Raffinerie di petrolio"]
[null,null,null,null,null,null,null,null,null,null,null,null,null,null,null,null,null,177,null,null,"19.20.20","Preparazione o miscelazione di derivati del petrolio (esclusa la petrolchimica)"]
[null,null,null,null,null,null,null,null,null,null,null,null,null,null,null,null,null,178,null,null,"19.20.30","Miscelazione di gas petroliferi liquefatti (GPL) e loro imbottigliamento"]
[null,null,null,null,null,null,null,null,null,null,null,null,null,null,null,null,null,179,null,null,"19.20.40","Fabbricazione di emulsioni di bitume, di catrame e di leganti per uso stradale"]
[null,null,null,null,null,null,null,null,null,null,null,null,null,null,null,null,null,180,null,null,"19.20.90","Fabbricazione di altri prodotti petroliferi raffinati"]
[null,null,null,null,null,null,null,null,null,null,null,null,null,null,null,null,null,181,null,null,"20.11.00","Fabbricazione di gas industriali"]
[null,null,null,null,null,null,null,null,null,null,null,null,null,null,null,null,null,182,null,null,"20.12.00","Fabbricazione di coloranti e pigmenti"]
[null,null,null,null,null,null,null,null,null,null,null,null,null,null,null,null,null,183,null,null,"20.13.01","Fabbricazione di uranio e torio arricchito"]
[null,null,null,null,null,null,null,null,null,null,null,null,null,null,null,null,null,184,null,null,"20.13.09","Fabbricazione di altri prodotti chimici di base inorganici"]
[null,null,null,null,null,null,null,null,null,null,null,null,null,null,null,null,null,185,null,null,"20.14.01","Fabbricazione di alcol etilico da materiali fermentati"]
[null,null,null,null,null,null,null,null,null,null,null,null,null,null,null,null,null,186,null,null,"20.14.09","Fabbricazione di altri prodotti chimici di base organici nca"]
[null,null,null,null,null,null,null,null,null,null,null,null,null,null,null,null,null,187,null,null,"20.15.00","Fabbricazione di fertilizzanti e composti azotati (esclusa la fabbricazione di compost)"]
[null,null,null,null,null,null,null,null,null,null,null,null,null,null,null,null,null,188,null,null,"20.16.00","Fabbricazione di materie plastiche in forme primarie"]
[null,null,null,null,null,null,null,null,null,null,null,null,null,null,null,null,null,189,null,null,"20.17.00","Fabbricazione di gomma sintetica in forme primarie"]
[null,null,null,null,null,null,null,null,null,null,null,null,null,null,null,null,null,190,null,null,"20.20.00","Fabbricazione di agrofarmaci e di altri prodotti chimici per l'agricoltura (esclusi i concimi)"]
[null,null,null,null,null,null,null,null,null,null,null,null,null,null,null,null,null,191,null,null,"20.30.00","Fabbricazione di pitture, vernici e smalti, inchiostri da stampa e adesivi sintetici (mastici)"]
[null,null,null,null,null,null,null,null,null,null,null,null,null,null,null,null,null,192,null,null,"20.41.10","Fabbricazione di saponi, detergenti e di agenti organici tensioattivi (esclusi i prodotti per toletta)"]
[null,null,null,null,null,null,null,null,null,null,null,null,null,null,null,null,null,193,null,null,"20.41.20","Fabbricazione di specialità chimiche per uso domestico e per manutenzione"]
[null,null,null,null,null,null,null,null,null,null,null,null,null,null,null,null,null,194,null,null,"20.42.00","Fabbricazione di prodotti per toletta: profumi, cosmetici, saponi e simili"]
[null,null,null,null,null,null,null,null,null,null,null,null,null,null,null,null,null,195,null,null,"20.51.01","Fabbricazione di fiammiferi"]
[null,null,null,null,null,null,null,null,null,null,null,null,null,null,null,null,null,196,null,null,"20.51.02","Fabbricazione di articoli esplosivi"]
[null,null,null,null,null,null,null,null,null,null,null,null,null,null,null,null,null,197,null,null,"20.52.00","Fabbricazione di colle"]
[null,null,null,null,null,null,null,null,null,null,null,null,null,null,null,null,null,198,null,null,"20.53.00","Fabbricazione di oli essenziali"]
[null,null,null,null,null,null,null,null,null,null,null,null,null,null,null,null,null,199,null,null,"20.59.10","Fabbricazione di prodotti chimici per uso fotografico"]
[null,null,null,null,null,null,null,null,null,null,null,null,null,null,null,null,null,200,null,null,"20.59.20","Fabbricazione di prodotti chimici organici ottenuti da prodotti di base derivati da processi di fermentazione o da materie prime vegetali"]
[null,null,null,null,null,null,null,null,null,null,null,null,null,null,null,null,null,201,null,null,"20.59.30","Trattamento chimico degli acidi grassi"]
[null,null,null,null,null,null,null,null,null,null,null,null,null,null,null,null,null,202,null,null,"20.59.40","Fabbricazione di prodotti chimici vari per uso industriale (inclusi i preparati antidetonanti e antigelo)"]
[null,null,null,null,null,null,null,null,null,null,null,null,null,null,null,null,null,203,null,null,"20.59.50","Fabbricazione di prodotti chimici impiegati per ufficio e per il consumo non industriale"]
[null,null,null,null,null,null,null,null,null,null,null,null,null,null,null,null,null,204,null,null,"20.59.60","Fabbricazione di prodotti ausiliari per le industrie tessili e del cuoio"]
[null,null,null,null,null,null,null,null,null,null,null,null,null,null,null,null,null,205,null,null,"20.59.70","Fabbricazione di prodotti elettrochimici (esclusa produzione di cloro, soda e potassa) ed elettrotermici"]
[null,null,null,null,null,null,null,null,null,null,null,null,null,null,null,null,null,206,null,null,"20.59.90","Fabbricazione di altri prodotti chimici nca"]
[null,null,null,null,null,null,null,null,null,null,null,null,null,null,null,null,null,207,null,null,"20.60.00","Fabbricazione di fibre sintetiche e artificiali"]
[null,null,null,null,null,null,null,null,null,null,null,null,null,null,null,null,null,208,null,null,"21.10.00","Fabbricazione di prodotti farmaceutici di base"]
[null,null,null,null,null,null,null,null,null,null,null,null,null,null,null,null,null,209,null,null,"21.20.01","Fabbricazione di sostanze diagnostiche radioattive in vivo"]
[null,null,null,null,null,null,null,null,null,null,null,null,null,null,null,null,null,210,null,null,"21.20.09","Fabbricazione di medicinali ed altri preparati farmaceutici"]
[null,null,null,null,null,null,null,null,null,null,null,null,null,null,null,null,null,211,null,null,"22.11.10","Fabbricazione di pneumatici e di camere d'aria"]
[null,null,null,null,null,null,null,null,null,null,null,null,null,null,null,null,null,212,null,null,"22.11.20","Rigenerazione e ricostruzione di pneumatici"]
[null,null,null,null,null,null,null,null,null,null,null,null,null,null,null,null,null,213,null,null,"22.19.01","Fabbricazione di suole di gomma e altre parti in gomma per calzature"]
[null,null,null,null,null,null,null,null,null,null,null,null,null,null,null,null,null,214,null,null,"22.19.09","Fabbricazione di altri prodotti in gomma nca"]
[null,null,null,null,null,null,null,null,null,null,null,null,null,null,null,null,null,215,null,null,"22.21.00","Fabbricazione di lastre, fogli, tubi e profilati in materie plastiche"]
[null,null,null,null,null,null,null,null,null,null,null,null,null,null,null,null,null,216,null,null,"22.22.00","Fabbricazione di imballaggi in materie plastiche"]
[null,null,null,null,null,null,null,null,null,null,null,null,null,null,null,null,null,217,null,null,"22.23.01","Fabbricazione di rivestimenti elastici per pavimenti (vinile, linoleum eccetera)"]
[null,null,null,null,null,null,null,null,null,null,null,null,null,null,null,null,null,218,null,null,"22.23.02","Fabbricazione di porte, finestre, intelaiature eccetera in plastica per l'edilizia"]
[null,null,null,null,null,null,null,null,null,null,null,null,null,null,null,null,null,219,null,null,"22.23.09","Fabbricazione di altri articoli in plastica per l'edilizia"]
[null,null,null,null,null,null,null,null,null,null,null,null,null,null,null,null,null,220,null,null,"22.29.01","Fabbricazione di parti in plastica per calzature"]
[null,null,null,null,null,null,null,null,null,null,null,null,null,null,null,null,null,221,null,null,"22.29.02","Fabbricazione di oggetti per l'ufficio e la scuola in plastica"]
[null,null,null,null,null,null,null,null,null,null,null,null,null,null,null,null,null,222,null,null,"22.29.09","Fabbricazione di altri articoli in materie plastiche nca"]
[null,null,null,null,null,null,null,null,null,null,null,null,null,null,null,null,null,223,null,null,"23.11.00","Fabbricazione di vetro piano"]
[null,null,null,null,null,null,null,null,null,null,null,null,null,null,null,null,null,224,null,null,"23.12.00","Lavorazione e trasformazione del vetro piano"]
[null,null,null,null,null,null,null,null,null,null,null,null,null,null,null,null,null,225,null,null,"23.13.00","Fabbricazione di vetro cavo"]
[null,null,null,null,null,null,null,null,null,null,null,null,null,null,null,null,null,226,null,null,"23.14.00","Fabbricazione di fibre di vetro"]
[null,null,null,null,null,null,null,null,null,null,null,null,null,null,null,null,null,227,null,null,"23.19.10","Fabbricazione di vetrerie per laboratori, per uso igienico, per farmacia"]
[null,null,null,null,null,null,null,null,null,null,null,null,null,null,null,null,null,228,null,null,"23.19.20","Lavorazione di vetro a mano e a soffio artistico"]
[null,null,null,null,null,null,null,null,null,null,null,null,null,null,null,null,null,229,null,null,"23.19.90","Fabbricazione di altri prodotti in vetro (inclusa la vetreria tecnica)"]
[null,null,null,null,null,null,null,null,null,null,null,null,null,null,null,null,null,230,null,null,"23.20.00","Fabbricazione di prodotti refrattari"]
[null,null,null,null,null,null,null,null,null,null,null,null,null,null,null,null,null,231,null,null,"23.31.00","Fabbricazione di piastrelle in ceramica per pavimenti e rivestimenti"]
[null,null,null,null,null,null,null,null,null,null,null,null,null,null,null,null,null,232,null,null,"23.32.00","Fabbricazione di mattoni, tegole ed altri prodotti per l'edilizia in terracotta"]
[null,null,null,null,null,null,null,null,null,null,null,null,null,null,null,null,null,233,null,null,"23.41.00","Fabbricazione di prodotti in ceramica per usi domestici e ornamentali"]
[null,null,null,null,null,null,null,null,null,null,null,null,null,null,null,null,null,234,null,null,"23.42.00","Fabbricazione di articoli sanitari in ceramica"]
[null,null,null,null,null,null,null,null,null,null,null,null,null,null,null,null,null,235,null,null,"23.43.00","Fabbricazione di isolatori e di pezzi isolanti in ceramica"]
[null,null,null,null,null,null,null,null,null,null,null,null,null,null,null,null,null,236,null,null,"23.44.00","Fabbricazione di altri prodotti in ceramica per uso tecnico e industriale"]
[null,null,null,null,null,null,null,null,null,null,null,null,null,null,null,null,null,237,null,null,"23.49.00","Fabbricazione di altri prodotti in ceramica"]
[null,null,null,null,null,null,null,null,null,null,null,null,null,null,null,null,null,238,null,null,"23.51.00","Produzione di cemento"]
[null,null,null,null,null,null,null,null,null,null,null,null,null,null,null,null,null,239,null,null,"23.52.10","Produzione di calce"]
[null,null,null,null,null,null,null,null,null,null,null,null,null,null,null,null,null,240,null,null,"23.52.20","Produzione di gesso"]
[null,null,null,null,null,null,null,null,null,null,null,null,null,null,null,null,null,241,null,null,"23.61.00","Fabbricazione di prodotti in calcestruzzo per l'edilizia"]
[null,null,null,null,null,null,null,null,null,null,null,null,null,null,null,null,null,242,null,null,"23.62.00","Fabbricazione di prodotti in gesso per l'edilizia"]
[null,null,null,null,null,null,null,null,null,null,null,null,null,null,null,null,null,243,null,null,"23.63.00","Produzione di calcestruzzo pronto per l'uso"]
[null,null,null,null,null,null,null,null,null,null,null,null,null,null,null,null,null,244,null,null,"23.64.00","Produzione di malta"]
[null,null,null,null,null,null,null,null,null,null,null,null,null,null,null,null,null,245,null,null,"23.65.00","Fabbricazione di prodotti in fibrocemento"]
[null,null,null,null,null,null,null,null,null,null,null,null,null,null,null,null,null,246,null,null,"23.69.00","Fabbricazione di altri prodotti in calcestruzzo, gesso e cemento"]
[null,null,null,null,null,null,null,null,null,null,null,null,null,null,null,null,null,247,null,null,"23.70.10","Segagione e lavorazione delle pietre e del marmo"]
[null,null,null,null,null,null,null,null,null,null,null,null,null,null,null,null,null,248,null,null,"23.70.20","Lavorazione artistica del marmo e di altre pietre affini, lavori in mosaico"]
[null,null,null,null,null,null,null,null,null,null,null,null,null,null,null,null,null,249,null,null,"23.70.30","Frantumazione di pietre e minerali vari non in connessione con l'estrazione"]
[null,null,null,null,null,null,null,null,null,null,null,null,null,null,null,null,null,250,null,null,"23.91.00","Produzione di prodotti abrasivi"]
[null,null,null,null,null,null,null,null,null,null,null,null,null,null,null,null,null,251,null,null,"23.99.00","Fabbricazione di altri prodotti in minerali non metalliferi nca"]
[null,null,null,null,null,null,null,null,null,null,null,null,null,null,null,null,null,252,null,null,"24.10.00","Siderurgia - Fabbricazione di ferro, acciaio e ferroleghe"]
[null,null,null,null,null,null,null,null,null,null,null,null,null,null,null,null,null,253,null,null,"24.20.10","Fabbricazione di tubi e condotti senza saldatura"]
[null,null,null,null,null,null,null,null,null,null,null,null,null,null,null,null,null,254,null,null,"24.20.20","Fabbricazione di tubi e condotti saldati e simili"]
[null,null,null,null,null,null,null,null,null,null,null,null,null,null,null,null,null,255,null,null,"24.31.00","Stiratura a freddo di barre"]
[null,null,null,null,null,null,null,null,null,null,null,null,null,null,null,null,null,256,null,null,"24.32.00","Laminazione a freddo di nastri"]
[null,null,null,null,null,null,null,null,null,null,null,null,null,null,null,null,null,257,null,null,"24.33.01","Fabbricazione di pannelli stratificati in acciaio"]
[null,null,null,null,null,null,null,null,null,null,null,null,null,null,null,null,null,258,null,null,"24.33.02","Profilatura mediante formatura o piegatura a freddo"]
[null,null,null,null,null,null,null,null,null,null,null,null,null,null,null,null,null,259,null,null,"24.34.00","Trafilatura a freddo"]
[null,null,null,null,null,null,null,null,null,null,null,null,null,null,null,null,null,260,null,null,"24.41.00","Produzione di metalli preziosi e semilavorati"]
[null,null,null,null,null,null,null,null,null,null,null,null,null,null,null,null,null,261,null,null,"24.42.00","Produzione di alluminio e semilavorati"]
[null,null,null,null,null,null,null,null,null,null,null,null,null,null,null,null,null,262,null,null,"24.43.00","Produzione di piombo, zinco e stagno e semilavorati"]
[null,null,null,null,null,null,null,null,null,null,null,null,null,null,null,null,null,263,null,null,"24.44.00","Produzione di rame e semilavorati"]
[null,null,null,null,null,null,null,null,null,null,null,null,null,null,null,null,null,264,null,null,"24.45.00","Produzione di altri metalli non ferrosi e semilavorati"]
[null,null,null,null,null,null,null,null,null,null,null,null,null,null,null,null,null,265,null,null,"24.46.00","Trattamento dei combustibili nucleari (escluso l'arricchimento di uranio e torio)"]
[null,null,null,null,null,null,null,null,null,null,null,null,null,null,null,null,null,266,null,null,"24.51.00","Fusione di ghisa e produzione di tubi e raccordi in ghisa"]
[null,null,null,null,null,null,null,null,null,null,null,null,null,null,null,null,null,267,null,null,"24.52.00","Fusione di acciaio"]
[null,null,null,null,null,null,null,null,null,null,null,null,null,null,null,null,null,268,null,null,"24.53.00","Fusione di metalli leggeri"]
[null,null,null,null,null,null,null,null,null,null,null,null,null,null,null,null,null,"Nd",null,null,"24.54.00","Fusione di altri metalli non ferrosi"]
[null,null,null,null,null,null,null,null,null,null,null,null,null,null,null,null,null,null,null,null,"25.11.00","Fabbricazione di strutture metalliche e parti assemblate di strutture"]
[null,null,null,null,null,null,null,null,null,null,null,null,null,null,null,null,null,null,null,null,"25.12.10","Fabbricazione di porte, finestre e loro telai, imposte e cancelli metallici"]
[null,null,null,null,null,null,null,null,null,null,null,null,null,null,null,null,null,null,null,null,"25.12.20","Fabbricazione di strutture metalliche per tende da sole, tende alla veneziana e simili"]
[null,null,null,null,null,null,null,null,null,null,null,null,null,null,null,null,null,null,null,null,"25.21.00","Fabbricazione di radiatori e contenitori in metallo per caldaie per il riscaldamento centrale"]
[null,null,null,null,null,null,null,null,null,null,null,null,null,null,null,null,null,null,null,null,"25.29.00","Fabbricazione di cisterne, serbatoi e contenitori in metallo per impieghi di stoccaggio o di produzione"]
[null,null,null,null,null,null,null,null,null,null,null,null,null,null,null,null,null,null,null,null,"25.30.00","Fabbricazione di generatori di vapore (esclusi i contenitori in metallo per caldaie per il riscaldamento centrale ad acqua calda)"]
[null,null,null,null,null,null,null,null,null,null,null,null,null,null,null,null,null,null,null,null,"25.40.00","Fabbricazione di armi e munizioni"]
[null,null,null,null,null,null,null,null,null,null,null,null,null,null,null,null,null,null,null,null,"25.50.00","Fucinatura, imbutitura, stampaggio e profilatura dei metalli; metallurgia delle polveri"]
[null,null,null,null,null,null,null,null,null,null,null,null,null,null,null,null,null,null,null,null,"25.61.00","Trattamento e rivestimento dei metalli"]
[null,null,null,null,null,null,null,null,null,null,null,null,null,null,null,null,null,null,null,null,"25.62.00","Lavori di meccanica generale"]
[null,null,null,null,null,null,null,null,null,null,null,null,null,null,null,null,null,null,null,null,"25.71.00","Fabbricazione di articoli di coltelleria, posateria ed armi bianche"]
[null,null,null,null,null,null,null,null,null,null,null,null,null,null,null,null,null,null,null,null,"25.72.00","Fabbricazione di serrature e cerniere e ferramenta simili"]
[null,null,null,null,null,null,null,null,null,null,null,null,null,null,null,null,null,null,null,null,"25.73.11","Fabbricazione di utensileria ad azionamento manuale"]
[null,null,null,null,null,null,null,null,null,null,null,null,null,null,null,null,null,null,null,null,"25.73.12","Fabbricazione di parti intercambiabili per macchine utensili"]
[null,null,null,null,null,null,null,null,null,null,null,null,null,null,null,null,null,null,null,null,"25.73.20","Fabbricazione di stampi, portastampi, sagome, forme per macchine"]
[null,null,null,null,null,null,null,null,null,null,null,null,null,null,null,null,null,null,null,null,"25.91.00","Fabbricazione di bidoni in acciaio e contenitori analoghi per il trasporto e l'imballaggio"]
[null,null,null,null,null,null,null,null,null,null,null,null,null,null,null,null,null,null,null,null,"25.92.00","Fabbricazione di imballaggi leggeri in metallo"]
[null,null,null,null,null,null,null,null,null,null,null,null,null,null,null,null,null,null,null,null,"25.93.10","Fabbricazione di prodotti fabbricati con fili metallici"]
[null,null,null,null,null,null,null,null,null,null,null,null,null,null,null,null,null,null,null,null,"25.93.20","Fabbricazione di molle"]
[null,null,null,null,null,null,null,null,null,null,null,null,null,null,null,null,null,null,null,null,"25.93.30","Fabbricazione di catene fucinate senza saldatura e stampate"]
[null,null,null,null,null,null,null,null,null,null,null,null,null,null,null,null,null,null,null,null,"25.94.00","Fabbricazione di articoli di bulloneria"]
[null,null,null,null,null,null,null,null,null,null,null,null,null,null,null,null,null,null,null,null,"25.99.11","Fabbricazione di caraffe e bottiglie isolate in metallo"]
[null,null,null,null,null,null,null,null,null,null,null,null,null,null,null,null,null,null,null,null,"25.99.19","Fabbricazione di stoviglie, pentolame, vasellame, attrezzi da cucina e altri accessori casalinghi non elettrici, articoli metallici per l'arredamento di stanze da bagno"]
[null,null,null,null,null,null,null,null,null,null,null,null,null,null,null,null,null,null,null,null,"25.99.20","Fabbricazione di casseforti, forzieri e porte metalliche blindate"]
[null,null,null,null,null,null,null,null,null,null,null,null,null,null,null,null,null,null,null,null,"25.99.30","Fabbricazione di oggetti in ferro, in rame ed altri metalli"]
[null,null,null,null,null,null,null,null,null,null,null,null,null,null,null,null,null,null,null,null,"25.99.91","Fabbricazione di magneti metallici permanenti"]
[null,null,null,null,null,null,null,null,null,null,null,null,null,null,null,null,null,null,null,null,"25.99.99","Fabbricazione di altri articoli metallici e minuteria metallica nca"]
[null,null,null,null,null,null,null,null,null,null,null,null,null,null,null,null,null,null,null,null,"26.11.01","Fabbricazione di diodi, transistor e relativi congegni elettronici"]
[null,null,null,null,null,null,null,null,null,null,null,null,null,null,null,null,null,null,null,null,"26.11.09","Fabbricazione di altri componenti elettronici"]
[null,null,null,null,null,null,null,null,null,null,null,null,null,null,null,null,null,null,null,null,"26.12.00","Fabbricazione di schede elettroniche assemblate"]
[null,null,null,null,null,null,null,null,null,null,null,null,null,null,null,null,null,null,null,null,"26.20.00","Fabbricazione di computer e unità periferiche"]
[null,null,null,null,null,null,null,null,null,null,null,null,null,null,null,null,null,null,null,null,"26.30.10","Fabbricazione di apparecchi trasmittenti radiotelevisivi (incluse le telecamere)"]
[null,null,null,null,null,null,null,null,null,null,null,null,null,null,null,null,null,null,null,null,"26.30.21","Fabbricazione di sistemi antifurto e antincendio"]
[null,null,null,null,null,null,null,null,null,null,null,null,null,null,null,null,null,null,null,null,"26.30.29","Fabbricazione di altri apparecchi elettrici ed elettronici per telecomunicazioni"]
[null,null,null,null,null,null,null,null,null,null,null,null,null,null,null,null,null,null,null,null,"26.40.01","Fabbricazione di apparecchi per la riproduzione e registrazione del suono e delle immagini"]
[null,null,null,null,null,null,null,null,null,null,null,null,null,null,null,null,null,null,null,null,"26.40.02","Fabbricazione di console per videogiochi (esclusi i giochi elettronici)"]
[null,null,null,null,null,null,null,null,null,null,null,null,null,null,null,null,null,null,null,null,"26.51.10","Fabbricazione di strumenti per navigazione, idrologia, geofisica e meteorologia"]
[null,null,null,null,null,null,null,null,null,null,null,null,null,null,null,null,null,null,null,null,"26.51.21","Fabbricazione di rilevatori di fiamma e combustione, di mine, di movimento, generatori d'impulso e metal detector"]
[null,null,null,null,null,null,null,null,null,null,null,null,null,null,null,null,null,null,null,null,"26.51.29","Fabbricazione di altri apparecchi di misura e regolazione, strumenti da disegno, di contatori di elettricità, gas, acqua ed altri liquidi, di bilance analitiche di precisione (incluse parti staccate ed accessori)"]
[null,null,null,null,null,null,null,null,null,null,null,null,null,null,null,null,null,null,null,null,"26.52.00","Fabbricazione di orologi"]
[null,null,null,null,null,null,null,null,null,null,null,null,null,null,null,null,null,null,null,null,"26.60.01","Fabbricazione di apparecchiature di irradiazione per alimenti e latte"]
[null,null,null,null,null,null,null,null,null,null,null,null,null,null,null,null,null,null,null,null,"26.60.02","Fabbricazione di apparecchi elettromedicali (incluse parti staccate e accessori)"]
[null,null,null,null,null,null,null,null,null,null,null,null,null,null,null,null,null,null,null,null,"26.60.09","Fabbricazione di altri strumenti per irradiazione ed altre apparecchiature elettroterapeutiche"]
[null,null,null,null,null,null,null,null,null,null,null,null,null,null,null,null,null,null,null,null,"26.70.11","Fabbricazione di elementi ottici e strumenti ottici di precisione"]
[null,null,null,null,null,null,null,null,null,null,null,null,null,null,null,null,null,null,null,null,"26.70.12","Fabbricazione di attrezzature ottiche di misurazione e controllo"]
[null,null,null,null,null,null,null,null,null,null,null,null,null,null,null,null,null,null,null,null,"26.70.20","Fabbricazione di apparecchiature fotografiche e cinematografiche"]
[null,null,null,null,null,null,null,null,null,null,null,null,null,null,null,null,null,null,null,null,"26.80.00","Fabbricazione di supporti magnetici ed ottici"]
[null,null,null,null,null,null,null,null,null,null,null,null,null,null,null,null,null,null,null,null,"27.11.00","Fabbricazione di motori, generatori e trasformatori elettrici"]
[null,null,null,null,null,null,null,null,null,null,null,null,null,null,null,null,null,null,null,null,"27.12.00","Fabbricazione di apparecchiature per le reti di distribuzione e il controllo dell'elettricità"]
[null,null,null,null,null,null,null,null,null,null,null,null,null,null,null,null,null,null,null,null,"27.20.00","Fabbricazione di batterie di pile ed accumulatori elettrici"]
[null,null,null,null,null,null,null,null,null,null,null,null,null,null,null,null,null,null,null,null,"27.31.01","Fabbricazione di cavi a fibra ottica per la trasmissione di dati o di immagini"]
[null,null,null,null,null,null,null,null,null,null,null,null,null,null,null,null,null,null,null,null,"27.31.02","Fabbricazione di fibre ottiche"]
[null,null,null,null,null,null,null,null,null,null,null,null,null,null,null,null,null,null,null,null,"27.32.00","Fabbricazione di altri fili e cavi elettrici ed elettronici"]
[null,null,null,null,null,null,null,null,null,null,null,null,null,null,null,null,null,null,null,null,"27.33.01","Fabbricazione di apparecchiature in plastica non conduttiva"]
[null,null,null,null,null,null,null,null,null,null,null,null,null,null,null,null,null,null,null,null,"27.33.09","Fabbricazione di altre attrezzature per cablaggio"]
[null,null,null,null,null,null,null,null,null,null,null,null,null,null,null,null,null,null,null,null,"27.40.01","Fabbricazione di apparecchiature di illuminazione e segnalazione per mezzi di trasporto"]
[null,null,null,null,null,null,null,null,null,null,null,null,null,null,null,null,null,null,null,null,"27.40.09","Fabbricazione di altre apparecchiature per illuminazione"]
[null,null,null,null,null,null,null,null,null,null,null,null,null,null,null,null,null,null,null,null,"27.51.00","Fabbricazione di elettrodomestici"]
[null,null,null,null,null,null,null,null,null,null,null,null,null,null,null,null,null,null,null,null,"27.52.00","Fabbricazione di apparecchi per uso domestico non elettrici"]
[null,null,null,null,null,null,null,null,null,null,null,null,null,null,null,null,null,null,null,null,"27.90.01","Fabbricazione di apparecchiature elettriche per saldature e brasature"]
[null,null,null,null,null,null,null,null,null,null,null,null,null,null,null,null,null,null,null,null,"27.90.02","Fabbricazione di insegne elettriche e apparecchiature elettriche di segnalazione"]
[null,null,null,null,null,null,null,null,null,null,null,null,null,null,null,null,null,null,null,null,"27.90.03","Fabbricazione di capacitori elettrici, resistenze, condensatori e simili, acceleratori"]
[null,null,null,null,null,null,null,null,null,null,null,null,null,null,null,null,null,null,null,null,"27.90.09","Fabbricazione di altre apparecchiature elettriche nca"]
[null,null,null,null,null,null,null,null,null,null,null,null,null,null,null,null,null,null,null,null,"28.11.11","Fabbricazione di motori a combustione interna (esclusi i motori destinati ai mezzi di trasporto su strada e ad aeromobili)"]
[null,null,null,null,null,null,null,null,null,null,null,null,null,null,null,null,null,null,null,null,"28.11.12","Fabbricazione di pistoni, fasce elastiche, carburatori e parti simili di motori a combustione interna"]
[null,null,null,null,null,null,null,null,null,null,null,null,null,null,null,null,null,null,null,null,"28.11.20","Fabbricazione di turbine e turboalternatori (incluse parti e accessori)"]
[null,null,null,null,null,null,null,null,null,null,null,null,null,null,null,null,null,null,null,null,"28.12.00","Fabbricazione di apparecchiature fluidodinamiche"]
[null,null,null,null,null,null,null,null,null,null,null,null,null,null,null,null,null,null,null,null,"28.13.00","Fabbricazione di altre pompe e compressori"]
[null,null,null,null,null,null,null,null,null,null,null,null,null,null,null,null,null,null,null,null,"28.14.00","Fabbricazione di altri rubinetti e valvole"]
[null,null,null,null,null,null,null,null,null,null,null,null,null,null,null,null,null,null,null,null,"28.15.10","Fabbricazione di organi di trasmissione (esclusi quelli idraulici e quelli per autoveicoli, aeromobili e motocicli)"]
[null,null,null,null,null,null,null,null,null,null,null,null,null,null,null,null,null,null,null,null,"28.15.20","Fabbricazione di cuscinetti a sfere"]
[null,null,null,null,null,null,null,null,null,null,null,null,null,null,null,null,null,null,null,null,"28.21.10","Fabbricazione di forni, fornaci e bruciatori"]
[null,null,null,null,null,null,null,null,null,null,null,null,null,null,null,null,null,null,null,null,"28.21.21","Fabbricazione di caldaie per riscaldamento"]
[null,null,null,null,null,null,null,null,null,null,null,null,null,null,null,null,null,null,null,null,"28.21.29","Fabbricazione di altri sistemi per riscaldamento"]
[null,null,null,null,null,null,null,null,null,null,null,null,null,null,null,null,null,null,null,null,"28.22.01","Fabbricazione di ascensori, montacarichi e scale mobili"]
[null,null,null,null,null,null,null,null,null,null,null,null,null,null,null,null,null,null,null,null,"28.22.02","Fabbricazione di gru, argani, verricelli a mano e a motore, carrelli trasbordatori, carrelli elevatori e piattaforme girevoli"]
[null,null,null,null,null,null,null,null,null,null,null,null,null,null,null,null,null,null,null,null,"28.22.03","Fabbricazione di carriole"]
[null,null,null,null,null,null,null,null,null,null,null,null,null,null,null,null,null,null,null,null,"28.22.09","Fabbricazione di altre macchine e apparecchi di sollevamento e movimentazione"]
[null,null,null,null,null,null,null,null,null,null,null,null,null,null,null,null,null,null,null,null,"28.23.01","Fabbricazione di cartucce toner"]
[null,null,null,null,null,null,null,null,null,null,null,null,null,null,null,null,null,null,null,null,"28.23.09","Fabbricazione di macchine ed altre attrezzature per ufficio (esclusi computer e periferiche)"]
[null,null,null,null,null,null,null,null,null,null,null,null,null,null,null,null,null,null,null,null,"28.24.00","Fabbricazione di utensili portatili a motore"]
[null,null,null,null,null,null,null,null,null,null,null,null,null,null,null,null,null,null,null,null,"28.25.00","Fabbricazione di attrezzature di uso non domestico per la refrigerazione e la ventilazione; fabbricazione di condizionatori domestici fissi"]
[null,null,null,null,null,null,null,null,null,null,null,null,null,null,null,null,null,null,null,null,"28.29.10","Fabbricazione di bilance e di macchine automatiche per la vendita e la distribuzione (incluse parti staccate e accessori)"]
[null,null,null,null,null,null,null,null,null,null,null,null,null,null,null,null,null,null,null,null,"28.29.20","Fabbricazione di macchine e apparecchi per le industrie chimiche, petrolchimiche e petrolifere (incluse parti e accessori)"]
[null,null,null,null,null,null,null,null,null,null,null,null,null,null,null,null,null,null,null,null,"28.29.30","Fabbricazione di macchine automatiche per la dosatura, la confezione e per l'imballaggio (incluse parti e accessori)"]
[null,null,null,null,null,null,null,null,null,null,null,null,null,null,null,null,null,null,null,null,"28.29.91","Fabbricazione di apparecchi per depurare e filtrare liquidi e gas per uso non domestico"]
[null,null,null,null,null,null,null,null,null,null,null,null,null,null,null,null,null,null,null,null,"28.29.92","Fabbricazione di macchine per la pulizia (incluse le lavastoviglie) per uso non domestico"]
[null,null,null,null,null,null,null,null,null,null,null,null,null,null,null,null,null,null,null,null,"28.29.93","Fabbricazione di livelle, metri doppi a nastro e utensili simili, strumenti di precisione per meccanica (esclusi quelli ottici)"]
[null,null,null,null,null,null,null,null,null,null,null,null,null,null,null,null,null,null,null,null,"28.29.99","Fabbricazione di altro materiale meccanico e di altre macchine di impiego generale nca"]
[null,null,null,null,null,null,null,null,null,null,null,null,null,null,null,null,null,null,null,null,"28.30.10","Fabbricazione di trattori agricoli"]
[null,null,null,null,null,null,null,null,null,null,null,null,null,null,null,null,null,null,null,null,"28.30.90","Fabbricazione di altre macchine per l'agricoltura, la silvicoltura e la zootecnia"]
[null,null,null,null,null,null,null,null,null,null,null,null,null,null,null,null,null,null,null,null,"28.41.00","Fabbricazione di macchine utensili per la formatura dei metalli (incluse parti e accessori ed escluse le parti intercambiabili)"]
[null,null,null,null,null,null,null,null,null,null,null,null,null,null,null,null,null,null,null,null,"28.49.01","Fabbricazione di macchine per la galvanostegia"]
[null,null,null,null,null,null,null,null,null,null,null,null,null,null,null,null,null,null,null,null,"28.49.09","Fabbricazione di altre macchine utensili (incluse parti e accessori) nca"]
[null,null,null,null,null,null,null,null,null,null,null,null,null,null,null,null,null,null,null,null,"28.91.00","Fabbricazione di macchine per la metallurgia (incluse parti e accessori)"]
[null,null,null,null,null,null,null,null,null,null,null,null,null,null,null,null,null,null,null,null,"28.92.01","Fabbricazione di macchine per il trasporto a cassone ribaltabile per impiego specifico in miniere, cave e cantieri"]
[null,null,null,null,null,null,null,null,null,null,null,null,null,null,null,null,null,null,null,null,"28.92.09","Fabbricazione di altre macchine da miniera, cava e cantiere (incluse parti e accessori)"]
[null,null,null,null,null,null,null,null,null,null,null,null,null,null,null,null,null,null,null,null,"28.93.00","Fabbricazione di macchine per l'industria alimentare, delle bevande e del tabacco (incluse parti e accessori)"]
[null,null,null,null,null,null,null,null,null,null,null,null,null,null,null,null,null,null,null,null,"28.94.10","Fabbricazione di macchine tessili, di macchine e di impianti per il trattamento ausiliario dei tessili, di macchine per cucire e per maglieria (incluse parti e accessori)"]
[null,null,null,null,null,null,null,null,null,null,null,null,null,null,null,null,null,null,null,null,"28.94.20","Fabbricazione di macchine e apparecchi per l'industria delle pelli, del cuoio e delle calzature (incluse parti e accessori)"]
[null,null,null,null,null,null,null,null,null,null,null,null,null,null,null,null,null,null,null,null,"28.94.30","Fabbricazione di apparecchiature e di macchine per lavanderie e stirerie (incluse parti e accessori)"]
[null,null,null,null,null,null,null,null,null,null,null,null,null,null,null,null,null,null,null,null,"28.95.00","Fabbricazione di macchine per l'industria della carta e del cartone (incluse parti e accessori)"]
[null,null,null,null,null,null,null,null,null,null,null,null,null,null,null,null,null,null,null,null,"28.96.00","Fabbricazione di macchine per l'industria delle materie plastiche e della gomma (incluse parti e accessori)"]
[null,null,null,null,null,null,null,null,null,null,null,null,null,null,null,null,null,null,null,null,"28.99.10","Fabbricazione di macchine per la stampa e la legatoria (incluse parti e accessori)"]
[null,null,null,null,null,null,null,null,null,null,null,null,null,null,null,null,null,null,null,null,"28.99.20","Fabbricazione di robot industriali per usi molteplici (incluse parti e accessori)"]
[null,null,null,null,null,null,null,null,null,null,null,null,null,null,null,null,null,null,null,null,"28.99.30","Fabbricazione di apparecchi per istituti di bellezza e centri di benessere"]
[null,null,null,null,null,null,null,null,null,null,null,null,null,null,null,null,null,null,null,null,"28.99.91","Fabbricazione di apparecchiature per il lancio di aeromobili, catapulte per portaerei e apparecchiature simili"]
[null,null,null,null,null,null,null,null,null,null,null,null,null,null,null,null,null,null,null,null,"28.99.92","Fabbricazione di giostre, altalene ed altre attrezzature per parchi di divertimento"]
[null,null,null,null,null,null,null,null,null,null,null,null,null,null,null,null,null,null,null,null,"28.99.93","Fabbricazione di apparecchiature per l'allineamento e il bilanciamento delle ruote; altre apparecchiature per il bilanciamento"]
[null,null,null,null,null,null,null,null,null,null,null,null,null,null,null,null,null,null,null,null,"28.99.99","Fabbricazione di altre macchine ed attrezzature per impieghi speciali nca (incluse parti e accessori)"]
[null,null,null,null,null,null,null,null,null,null,null,null,null,null,null,null,null,null,null,null,"29.10.00","Fabbricazione di autoveicoli"]
[null,null,null,null,null,null,null,null,null,null,null,null,null,null,null,null,null,null,null,null,"29.20.00","Fabbricazione di carrozzerie per autoveicoli, rimorchi e semirimorchi"]
[null,null,null,null,null,null,null,null,null,null,null,null,null,null,null,null,null,null,null,null,"29.31.00","Fabbricazione di apparecchiature elettriche ed elettroniche per autoveicoli e loro motori"]
[null,null,null,null,null,null,null,null,null,null,null,null,null,null,null,null,null,null,null,null,"29.32.01","Fabbricazione di sedili per autoveicoli"]
[null,null,null,null,null,null,null,null,null,null,null,null,null,null,null,null,null,null,null,null,"29.32.09","Fabbricazione di altre parti ed accessori per autoveicoli e loro motori nca"]
[null,null,null,null,null,null,null,null,null,null,null,null,null,null,null,null,null,null,null,null,"30.11.01","Fabbricazione di sedili per navi"]
[null,null,null,null,null,null,null,null,null,null,null,null,null,null,null,null,null,null,null,null,"30.11.02","Cantieri navali per costruzioni metalliche e non metalliche (esclusi i sedili per navi)"]
[null,null,null,null,null,null,null,null,null,null,null,null,null,null,null,null,null,null,null,null,"30.12.00","Costruzione di imbarcazioni da diporto e sportive"]
[null,null,null,null,null,null,null,null,null,null,null,null,null,null,null,null,null,null,null,null,"30.20.01","Fabbricazione di sedili per tram, filovie e metropolitane"]
[null,null,null,null,null,null,null,null,null,null,null,null,null,null,null,null,null,null,null,null,"30.20.02","Costruzione di altro materiale rotabile ferroviario, tranviario, filoviario, per metropolitane e per miniere"]
[null,null,null,null,null,null,null,null,null,null,null,null,null,null,null,null,null,null,null,null,"30.30.01","Fabbricazione di sedili per aeromobili"]
[null,null,null,null,null,null,null,null,null,null,null,null,null,null,null,null,null,null,null,null,"30.30.02","Fabbricazione di missili balistici"]
[null,null,null,null,null,null,null,null,null,null,null,null,null,null,null,null,null,null,null,null,"30.30.09","Fabbricazione di aeromobili, di veicoli spaziali e dei relativi dispositivi nca"]
[null,null,null,null,null,null,null,null,null,null,null,null,null,null,null,null,null,null,null,null,"30.40.00","Fabbricazione di veicoli militari da combattimento"]
[null,null,null,null,null,null,null,null,null,null,null,null,null,null,null,null,null,null,null,null,"30.91.11","Fabbricazione di motori per motocicli"]
[null,null,null,null,null,null,null,null,null,null,null,null,null,null,null,null,null,null,null,null,"30.91.12","Fabbricazione di motocicli"]
[null,null,null,null,null,null,null,null,null,null,null,null,null,null,null,null,null,null,null,null,"30.91.20","Fabbricazione di accessori e pezzi staccati per motocicli e ciclomotori"]
[null,null,null,null,null,null,null,null,null,null,null,null,null,null,null,null,null,null,null,null,"30.92.10","Fabbricazione e montaggio di biciclette"]
[null,null,null,null,null,null,null,null,null,null,null,null,null,null,null,null,null,null,null,null,"30.92.20","Fabbricazione di parti ed accessori per biciclette"]
[null,null,null,null,null,null,null,null,null,null,null,null,null,null,null,null,null,null,null,null,"30.92.30","Fabbricazione di veicoli per invalidi (incluse parti e accessori)"]
[null,null,null,null,null,null,null,null,null,null,null,null,null,null,null,null,null,null,null,null,"30.92.40","Fabbricazione di carrozzine e passeggini per neonati"]
[null,null,null,null,null,null,null,null,null,null,null,null,null,null,null,null,null,null,null,null,"30.99.00","Fabbricazione di veicoli a trazione manuale o animale"]
[null,null,null,null,null,null,null,null,null,null,null,null,null,null,null,null,null,null,null,null,"31.01.10","Fabbricazione di sedie e poltrone per ufficio e negozi"]
[null,null,null,null,null,null,null,null,null,null,null,null,null,null,null,null,null,null,null,null,"31.01.21","Fabbricazione di altri mobili metallici per ufficio e negozi"]
[null,null,null,null,null,null,null,null,null,null,null,null,null,null,null,null,null,null,null,null,"31.01.22","Fabbricazione di altri mobili non metallici per ufficio e negozi"]
[null,null,null,null,null,null,null,null,null,null,null,null,null,null,null,null,null,null,null,null,"31.02.00","Fabbricazione di mobili per cucina"]
[null,null,null,null,null,null,null,null,null,null,null,null,null,null,null,null,null,null,null,null,"31.03.00","Fabbricazione di materassi"]
[null,null,null,null,null,null,null,null,null,null,null,null,null,null,null,null,null,null,null,null,"31.09.10","Fabbricazione di mobili per arredo domestico"]
[null,null,null,null,null,null,null,null,null,null,null,null,null,null,null,null,null,null,null,null,"31.09.20","Fabbricazione di sedie e sedili (esclusi quelli per aeromobili, autoveicoli, navi, treni, ufficio e negozi)"]
[null,null,null,null,null,null,null,null,null,null,null,null,null,null,null,null,null,null,null,null,"31.09.30","Fabbricazione di poltrone e divani"]
[null,null,null,null,null,null,null,null,null,null,null,null,null,null,null,null,null,null,null,null,"31.09.40","Fabbricazione di parti e accessori di mobili"]
[null,null,null,null,null,null,null,null,null,null,null,null,null,null,null,null,null,null,null,null,"31.09.50","Finitura di mobili"]
[null,null,null,null,null,null,null,null,null,null,null,null,null,null,null,null,null,null,null,null,"31.09.90","Fabbricazione di altri mobili (inclusi quelli per arredo esterno)"]
[null,null,null,null,null,null,null,null,null,null,null,null,null,null,null,null,null,null,null,null,"32.11.00","Coniazione di monete"]
[null,null,null,null,null,null,null,null,null,null,null,null,null,null,null,null,null,null,null,null,"32.12.10","Fabbricazione di oggetti di gioielleria ed oreficeria in metalli preziosi o rivestiti di metalli preziosi"]
[null,null,null,null,null,null,null,null,null,null,null,null,null,null,null,null,null,null,null,null,"32.12.20","Lavorazione di pietre preziose e semipreziose per gioielleria e per uso industriale"]
[null,null,null,null,null,null,null,null,null,null,null,null,null,null,null,null,null,null,null,null,"32.13.01","Fabbricazione di cinturini metallici per orologi (esclusi quelli in metalli preziosi)"]
[null,null,null,null,null,null,null,null,null,null,null,null,null,null,null,null,null,null,null,null,"32.13.09","Fabbricazione di bigiotteria e articoli simili nca"]
[null,null,null,null,null,null,null,null,null,null,null,null,null,null,null,null,null,null,null,null,"32.20.00","Fabbricazione di strumenti musicali (incluse parti e accessori)"]
[null,null,null,null,null,null,null,null,null,null,null,null,null,null,null,null,null,null,null,null,"32.30.00","Fabbricazione di articoli sportivi"]
[null,null,null,null,null,null,null,null,null,null,null,null,null,null,null,null,null,null,null,null,"32.40.10","Fabbricazione di giochi (inclusi i giochi elettronici)"]
[null,null,null,null,null,null,null,null,null,null,null,null,null,null,null,null,null,null,null,null,"32.40.20","Fabbricazione di giocattoli (inclusi i tricicli e gli strumenti musicali giocattolo)"]
[null,null,null,null,null,null,null,null,null,null,null,null,null,null,null,null,null,null,null,null,"32.50.11","Fabbricazione di materiale medico-chirurgico e veterinario"]
[null,null,null,null,null,null,null,null,null,null,null,null,null,null,null,null,null,null,null,null,"32.50.12","Fabbricazione di apparecchi e strumenti per odontoiatria e di apparecchi medicali (incluse parti staccate e accessori)"]
[null,null,null,null,null,null,null,null,null,null,null,null,null,null,null,null,null,null,null,null,"32.50.13","Fabbricazione di mobili per uso medico, chirurgico, odontoiatrico e veterinario"]
[null,null,null,null,null,null,null,null,null,null,null,null,null,null,null,null,null,null,null,null,"32.50.14","Fabbricazione di centrifughe per laboratori"]
[null,null,null,null,null,null,null,null,null,null,null,null,null,null,null,null,null,null,null,null,"32.50.20","Fabbricazione di protesi dentarie (inclusa riparazione)"]
[null,null,null,null,null,null,null,null,null,null,null,null,null,null,null,null,null,null,null,null,"32.50.30","Fabbricazione di protesi ortopediche, altre protesi ed ausili (inclusa riparazione)"]
[null,null,null,null,null,null,null,null,null,null,null,null,null,null,null,null,null,null,null,null,"32.50.40","Fabbricazione di lenti oftalmiche"]
[null,null,null,null,null,null,null,null,null,null,null,null,null,null,null,null,null,null,null,null,"32.50.50","Fabbricazione di armature per occhiali di qualsiasi tipo; montatura in serie di occhiali comuni"]
[null,null,null,null,null,null,null,null,null,null,null,null,null,null,null,null,null,null,null,null,"32.91.00","Fabbricazione di scope e spazzole"]
[null,null,null,null,null,null,null,null,null,null,null,null,null,null,null,null,null,null,null,null,"32.99.11","Fabbricazione di articoli di vestiario ignifughi e protettivi di sicurezza"]
[null,null,null,null,null,null,null,null,null,null,null,null,null,null,null,null,null,null,null,null,"32.99.12","Fabbricazione di articoli in plastica per la sicurezza personale"]
[null,null,null,null,null,null,null,null,null,null,null,null,null,null,null,null,null,null,null,null,"32.99.13","Fabbricazione di articoli in metallo per la sicurezza personale"]
[null,null,null,null,null,null,null,null,null,null,null,null,null,null,null,null,null,null,null,null,"32.99.14","Fabbricazione di maschere antigas"]
[null,null,null,null,null,null,null,null,null,null,null,null,null,null,null,null,null,null,null,null,"32.99.19","Fabbricazione di altre attrezzature ed altri articoli protettivi di sicurezza"]
[null,null,null,null,null,null,null,null,null,null,null,null,null,null,null,null,null,null,null,null,"32.99.20","Fabbricazione di ombrelli, bottoni, chiusure lampo, parrucche e affini"]
[null,null,null,null,null,null,null,null,null,null,null,null,null,null,null,null,null,null,null,null,"32.99.30","Fabbricazione di oggetti di cancelleria"]
[null,null,null,null,null,null,null,null,null,null,null,null,null,null,null,null,null,null,null,null,"32.99.40","Fabbricazione di casse funebri"]
[null,null,null,null,null,null,null,null,null,null,null,null,null,null,null,null,null,null,null,null,"32.99.90","Fabbricazione di altri articoli nca"]
[null,null,null,null,null,null,null,null,null,null,null,null,null,null,null,null,null,null,null,null,"33.11.01","Riparazione e manutenzione di stampi, portastampi, sagome, forme per macchine"]
[null,null,null,null,null,null,null,null,null,null,null,null,null,null,null,null,null,null,null,null,"33.11.02","Riparazione e manutenzione di utensileria ad azionamento manuale"]
[null,null,null,null,null,null,null,null,null,null,null,null,null,null,null,null,null,null,null,null,"33.11.03","Riparazione e manutenzione di armi, sistemi d'arma e munizioni"]
[null,null,null,null,null,null,null,null,null,null,null,null,null,null,null,null,null,null,null,null,"33.11.04","Riparazione e manutenzione di casseforti, forzieri, porte metalliche blindate"]
[null,null,null,null,null,null,null,null,null,null,null,null,null,null,null,null,null,null,null,null,"33.11.05","Riparazione e manutenzione di armi bianche"]
[null,null,null,null,null,null,null,null,null,null,null,null,null,null,null,null,null,null,null,null,"33.11.06","Riparazione e manutenzione di container"]
[null,null,null,null,null,null,null,null,null,null,null,null,null,null,null,null,null,null,null,null,"33.11.07","Riparazione e manutenzione di carrelli per la spesa"]
[null,null,null,null,null,null,null,null,null,null,null,null,null,null,null,null,null,null,null,null,"33.11.09","Riparazione e manutenzione di altri prodotti in metallo"]
[null,null,null,null,null,null,null,null,null,null,null,null,null,null,null,null,null,null,null,null,"33.12.10","Riparazione e manutenzione di macchine di impiego generale"]
[null,null,null,null,null,null,null,null,null,null,null,null,null,null,null,null,null,null,null,null,"33.12.20","Riparazione e manutenzione di forni, fornaci e bruciatori"]
[null,null,null,null,null,null,null,null,null,null,null,null,null,null,null,null,null,null,null,null,"33.12.30","Riparazione e manutenzione di macchine e apparecchi di sollevamento e movimentazione (esclusi ascensori)"]
[null,null,null,null,null,null,null,null,null,null,null,null,null,null,null,null,null,null,null,null,"33.12.40","Riparazione e manutenzione di attrezzature di uso non domestico per la refrigerazione e la ventilazione"]
[null,null,null,null,null,null,null,null,null,null,null,null,null,null,null,null,null,null,null,null,"33.12.51","Riparazione e manutenzione di macchine ed attrezzature per ufficio (esclusi computer, periferiche, fax)"]
[null,null,null,null,null,null,null,null,null,null,null,null,null,null,null,null,null,null,null,null,"33.12.52","Riparazione e manutenzione di bilance e macchine automatiche per la vendita e la distribuzione"]
[null,null,null,null,null,null,null,null,null,null,null,null,null,null,null,null,null,null,null,null,"33.12.53","Riparazione e manutenzione di macchine per le industrie chimiche, petrolchimiche e petrolifere"]
[null,null,null,null,null,null,null,null,null,null,null,null,null,null,null,null,null,null,null,null,"33.12.54","Riparazione e manutenzione di macchine per la dosatura, la confezione e l'imballaggio"]
[null,null,null,null,null,null,null,null,null,null,null,null,null,null,null,null,null,null,null,null,"33.12.55","Riparazione e manutenzione di estintori (inclusa la ricarica)"]
[null,null,null,null,null,null,null,null,null,null,null,null,null,null,null,null,null,null,null,null,"33.12.59","Riparazione e manutenzione di altre macchine di impiego generale nca"]
[null,null,null,null,null,null,null,null,null,null,null,null,null,null,null,null,null,null,null,null,"33.12.60","Riparazione e manutenzione di trattori agricoli"]
[null,null,null,null,null,null,null,null,null,null,null,null,null,null,null,null,null,null,null,null,"33.12.70","Riparazione e manutenzione di altre macchine per l'agricoltura, la silvicoltura e la zootecnia"]
[null,null,null,null,null,null,null,null,null,null,null,null,null,null,null,null,null,null,null,null,"33.12.91","Riparazione e manutenzione di parti intercambiabili per macchine utensili"]
[null,null,null,null,null,null,null,null,null,null,null,null,null,null,null,null,null,null,null,null,"33.12.92","Riparazione e manutenzione di giostre, altalene, padiglioni da tiro al bersaglio ed altre attrezzature per parchi di divertimento"]
[null,null,null,null,null,null,null,null,null,null,null,null,null,null,null,null,null,null,null,null,"33.12.99","Riparazione e manutenzione di altre macchine per impieghi speciali nca (incluse le macchine utensili)"]
[null,null,null,null,null,null,null,null,null,null,null,null,null,null,null,null,null,null,null,null,"33.13.01","Riparazione e manutenzione di apparecchiature ottiche, fotografiche e cinematografiche (escluse videocamere)"]
[null,null,null,null,null,null,null,null,null,null,null,null,null,null,null,null,null,null,null,null,1.3840509259259257,"Riparazione e manutenzione di apparecchiature elettriche"]
[null,null,null,null,null,null,null,null,null,null,null,null,null,null,null,null,null,null,null,null,"33.13.03","Riparazione e manutenzione di apparecchi elettromedicali, di materiale medico-chirurgico e veterinario, di apparecchi e strumenti per odontoiatria"]
[null,null,null,null,null,null,null,null,null,null,null,null,null,null,null,null,null,null,null,null,"33.13.04","Riparazione e manutenzione di apparati di distillazione per laboratori, di centrifughe per laboratori e di macchinari per pulizia ad ultrasuoni per laboratori"]
[null,null,null,null,null,null,null,null,null,null,null,null,null,null,null,null,null,null,null,null,"33.13.09","Riparazione e manutenzione di altre apparecchiature elettroniche (escluse quelle per le telecomunicazioni ed i computer)"]
[null,null,null,null,null,null,null,null,null,null,null,null,null,null,null,null,null,null,null,null,"33.14.00","Riparazione e manutenzione di apparecchiature elettriche (esclusi gli elettrodomestici)"]
[null,null,null,null,null,null,null,null,null,null,null,null,null,null,null,null,null,null,null,null,1.3847337962962962,"Riparazione e manutenzione di apparecchiature elettriche professionali"]
[null,null,null,null,null,null,null,null,null,null,null,null,null,null,null,null,null,null,null,null,"33.15.00","Riparazione e manutenzione di navi commerciali e imbarcazioni da diporto (esclusi i loro motori)"]
[null,null,null,null,null,null,null,null,null,null,null,null,null,null,null,null,null,null,null,null,"33.16.00","Riparazione e manutenzione di aeromobili e di veicoli spaziali"]
[null,null,null,null,null,null,null,null,null,null,null,null,null,null,null,null,null,null,null,null,"33.17.00","Riparazione e manutenzione di materiale rotabile ferroviario, tranviario, filoviario e per metropolitane (esclusi i loro motori)"]
[null,null,null,null,null,null,null,null,null,null,null,null,null,null,null,null,null,null,null,null,"33.19.01","Riparazioni di pallets e contenitori in legno per trasporto"]
[null,null,null,null,null,null,null,null,null,null,null,null,null,null,null,null,null,null,null,null,"33.19.02","Riparazione di prodotti in gomma"]
[null,null,null,null,null,null,null,null,null,null,null,null,null,null,null,null,null,null,null,null,"33.19.03","Riparazione di articoli in vetro"]
[null,null,null,null,null,null,null,null,null,null,null,null,null,null,null,null,null,null,null,null,"33.19.04","Riparazioni di altri prodotti in legno nca"]
[null,null,null,null,null,null,null,null,null,null,null,null,null,null,null,null,null,null,null,null,"33.19.09","Riparazione di altre apparecchiature nca"]
[null,null,null,null,null,null,null,null,null,null,null,null,null,null,null,null,null,null,null,null,"33.20.01","Installazione di motori, generatori e trasformatori elettrici; di apparecchiature per la distribuzione e il controllo dell'elettricità (esclusa l'installazione all'interno degli edifici)"]
[null,null,null,null,null,null,null,null,null,null,null,null,null,null,null,null,null,null,null,null,"33.20.02","Installazione di apparecchi elettrici ed elettronici per telecomunicazioni, di apparecchi trasmittenti radiotelevisivi, di impianti di apparecchiature elettriche ed elettroniche (esclusa l'installazione all'interno degli edifici)"]
[null,null,null,null,null,null,null,null,null,null,null,null,null,null,null,null,null,null,null,null,"33.20.03","Installazione di strumenti ed apparecchi di misurazione, controllo, prova, navigazione e simili (incluse le apparecchiature di controllo dei processi industriali)"]
[null,null,null,null,null,null,null,null,null,null,null,null,null,null,null,null,null,null,null,null,"33.20.04","Installazione di cisterne, serbatoi e contenitori in metallo"]
[null,null,null,null,null,null,null,null,null,null,null,null,null,null,null,null,null,null,null,null,"33.20.05","Installazione di generatori di vapore (escluse le caldaie per il riscaldamento centrale ad acqua calda)"]
[null,null,null,null,null,null,null,null,null,null,null,null,null,null,null,null,null,null,null,null,"33.20.06","Installazione di macchine per ufficio, di mainframe e computer simili"]
[null,null,null,null,null,null,null,null,null,null,null,null,null,null,null,null,null,null,null,null,"33.20.07","Installazione di apparecchi medicali, di apparecchi e strumenti per odontoiatria"]
[null,null,null,null,null,null,null,null,null,null,null,null,null,null,null,null,null,null,null,null,"33.20.08","Installazione di apparecchi elettromedicali"]
[null,null,null,null,null,null,null,null,null,null,null,null,null,null,null,null,null,null,null,null,"33.20.09","Installazione di altre macchine ed apparecchiature industriali"]
[null,null,null,null,null,null,null,null,null,null,null,null,null,null,null,null,null,null,null,null,"35.11.00","Produzione di energia elettrica"]
[null,null,null,null,null,null,null,null,null,null,null,null,null,null,null,null,null,null,null,null,"35.12.00","Trasmissione di energia elettrica"]
[null,null,null,null,null,null,null,null,null,null,null,null,null,null,null,null,null,null,null,null,"35.13.00","Distribuzione di energia elettrica"]
[null,null,null,null,null,null,null,null,null,null,null,null,null,null,null,null,null,null,null,null,"35.14.00","Commercio di energia elettrica"]
[null,null,null,null,null,null,null,null,null,null,null,null,null,null,null,null,null,null,null,null,"35.21.00","Produzione di gas"]
[null,null,null,null,null,null,null,null,null,null,null,null,null,null,null,null,null,null,null,null,"35.22.00","Distribuzione di combustibili gassosi mediante condotte"]
[null,null,null,null,null,null,null,null,null,null,null,null,null,null,null,null,null,null,null,null,"35.23.00","Commercio di gas distribuito mediante condotte"]
[null,null,null,null,null,null,null,null,null,null,null,null,null,null,null,null,null,null,null,null,"35.30.00","Fornitura di vapore e aria condizionata"]
[null,null,null,null,null,null,null,null,null,null,null,null,null,null,null,null,null,null,null,null,"36.00.00","Raccolta, trattamento e fornitura di acqua"]
[null,null,null,null,null,null,null,null,null,null,null,null,null,null,null,null,null,null,null,null,"37.00.00","Raccolta e depurazione delle acque di scarico"]
[null,null,null,null,null,null,null,null,null,null,null,null,null,null,null,null,null,null,null,null,"38.11.00","Raccolta di rifiuti solidi non pericolosi"]
[null,null,null,null,null,null,null,null,null,null,null,null,null,null,null,null,null,null,null,null,"38.12.00","Raccolta di rifiuti pericolosi solidi e non solidi"]
[null,null,null,null,null,null,null,null,null,null,null,null,null,null,null,null,null,null,null,null,"38.21.01","Produzione di compost"]
[null,null,null,null,null,null,null,null,null,null,null,null,null,null,null,null,null,null,null,null,"38.21.09","Trattamento e smaltimento di altri rifiuti non pericolosi"]
[null,null,null,null,null,null,null,null,null,null,null,null,null,null,null,null,null,null,null,null,"38.22.00","Trattamento e smaltimento di rifiuti pericolosi"]
[null,null,null,null,null,null,null,null,null,null,null,null,null,null,null,null,null,null,null,null,"38.31.10","Demolizione di carcasse"]
[null,null,null,null,null,null,null,null,null,null,null,null,null,null,null,null,null,null,null,null,"38.31.20","Cantieri di demolizione navali"]
[null,null,null,null,null,null,null,null,null,null,null,null,null,null,null,null,null,null,null,null,"38.32.10","Recupero e preparazione per il riciclaggio di cascami e rottami metallici"]
[null,null,null,null,null,null,null,null,null,null,null,null,null,null,null,null,null,null,null,null,"38.32.20","Recupero e preparazione per il riciclaggio di materiale plastico per produzione di materie prime plastiche, resine sintetiche"]
[null,null,null,null,null,null,null,null,null,null,null,null,null,null,null,null,null,null,null,null,"38.32.30","Recupero e preparazione per il riciclaggio dei rifiuti solidi urbani, industriali e biomasse"]
[null,null,null,null,null,null,null,null,null,null,null,null,null,null,null,null,null,null,null,null,"39.00.01","Attività di rimozione di strutture ed elementi in amianto specializzata per l'edilizia"]
[null,null,null,null,null,null,null,null,null,null,null,null,null,null,null,null,null,null,null,null,"39.00.09","Altre attività di risanamento e altri servizi di gestione dei rifiuti"]
[null,null,null,null,null,null,null,null,null,null,null,null,null,null,null,null,null,null,null,null,"41.10.00","Sviluppo di progetti immobiliari senza costruzione"]
[null,null,null,null,null,null,null,null,null,null,null,null,null,null,null,null,null,null,null,null,"41.20.00","Costruzione di edifici residenziali e non residenziali"]
[null,null,null,null,null,null,null,null,null,null,null,null,null,null,null,null,null,null,null,null,"42.11.00","Costruzione di strade, autostrade e piste aeroportuali"]
[null,null,null,null,null,null,null,null,null,null,null,null,null,null,null,null,null,null,null,null,"42.12.00","Costruzione di linee ferroviarie e metropolitane"]
[null,null,null,null,null,null,null,null,null,null,null,null,null,null,null,null,null,null,null,null,"42.13.00","Costruzione di ponti e gallerie"]
[null,null,null,null,null,null,null,null,null,null,null,null,null,null,null,null,null,null,null,null,"42.21.00","Costruzione di opere di pubblica utilità per il trasporto di fluidi"]
[null,null,null,null,null,null,null,null,null,null,null,null,null,null,null,null,null,null,null,null,"42.22.00","Costruzione di opere di pubblica utilità per l'energia elettrica e le telecomunicazioni"]
[null,null,null,null,null,null,null,null,null,null,null,null,null,null,null,null,null,null,null,null,"42.91.00","Costruzione di opere idrauliche"]
[null,null,null,null,null,null,null,null,null,null,null,null,null,null,null,null,null,null,null,null,"42.99.01","Lottizzazione dei terreni connessa con l'urbanizzazione"]
[null,null,null,null,null,null,null,null,null,null,null,null,null,null,null,null,null,null,null,null,"42.99.09","Altre attività di costruzione di altre opere di ingegneria civile nca"]
[null,null,null,null,null,null,null,null,null,null,null,null,null,null,null,null,null,null,null,null,"43.11.00","Demolizione"]
[null,null,null,null,null,null,null,null,null,null,null,null,null,null,null,null,null,null,null,null,"43.12.00","Preparazione del cantiere edile e sistemazione del terreno"]
[null,null,null,null,null,null,null,null,null,null,null,null,null,null,null,null,null,null,null,null,"43.13.00","Trivellazioni e perforazioni"]
[null,null,null,null,null,null,null,null,null,null,null,null,null,null,null,null,null,null,null,null,"43.21.01","Installazione di impianti elettrici in edifici o in altre opere di costruzione (inclusa manutenzione e riparazione)"]
[null,null,null,null,null,null,null,null,null,null,null,null,null,null,null,null,null,null,null,null,"43.21.02","Installazione di impianti elettronici (inclusa manutenzione e riparazione)"]
[null,null,null,null,null,null,null,null,null,null,null,null,null,null,null,null,null,null,null,null,"43.21.03","Installazione impianti di illuminazione stradale e dispositivi elettrici di segnalazione, illuminazione delle piste degli aeroporti (inclusa manutenzione e riparazione)"]
[null,null,null,null,null,null,null,null,null,null,null,null,null,null,null,null,null,null,null,null,"43.22.01","Installazione di impianti idraulici, di riscaldamento e di condizionamento dell'aria (inclusa manutenzione e riparazione) in edifici o in altre opere di costruzione"]
[null,null,null,null,null,null,null,null,null,null,null,null,null,null,null,null,null,null,null,null,"43.22.02","Installazione di impianti per la distribuzione del gas (inclusa manutenzione e riparazione)"]
[null,null,null,null,null,null,null,null,null,null,null,null,null,null,null,null,null,null,null,null,"43.22.03","Installazione di impianti di spegnimento antincendio (inclusi quelli integrati e la manutenzione e riparazione)"]
[null,null,null,null,null,null,null,null,null,null,null,null,null,null,null,null,null,null,null,null,"43.22.04","Installazione di impianti di depurazione per piscine (inclusa manutenzione e riparazione)"]
[null,null,null,null,null,null,null,null,null,null,null,null,null,null,null,null,null,null,null,null,"43.22.05","Installazione di impianti di irrigazione per giardini (inclusa manutenzione e riparazione)"]
[null,null,null,null,null,null,null,null,null,null,null,null,null,null,null,null,null,null,null,null,"43.29.01","Installazione, riparazione e manutenzione di ascensori e scale mobili"]
[null,null,null,null,null,null,null,null,null,null,null,null,null,null,null,null,null,null,null,null,"43.29.02","Lavori di isolamento termico, acustico o antivibrazioni"]
[null,null,null,null,null,null,null,null,null,null,null,null,null,null,null,null,null,null,null,null,"43.29.09","Altri lavori di costruzione e installazione nca"]
[null,null,null,null,null,null,null,null,null,null,null,null,null,null,null,null,null,null,null,null,"43.31.00","Intonacatura e stuccatura"]
[null,null,null,null,null,null,null,null,null,null,null,null,null,null,null,null,null,null,null,null,"43.32.01","Posa in opera di casseforti, forzieri, porte blindate"]
[null,null,null,null,null,null,null,null,null,null,null,null,null,null,null,null,null,null,null,null,"43.32.02","Posa in opera di infissi, arredi, controsoffitti, pareti mobili e simili"]
[null,null,null,null,null,null,null,null,null,null,null,null,null,null,null,null,null,null,null,null,"43.33.00","Rivestimento di pavimenti e di muri"]
[null,null,null,null,null,null,null,null,null,null,null,null,null,null,null,null,null,null,null,null,"43.34.00","Tinteggiatura e posa in opera di vetri"]
[null,null,null,null,null,null,null,null,null,null,null,null,null,null,null,null,null,null,null,null,"43.39.01","Attività non specializzate di lavori edili (muratori)"]
[null,null,null,null,null,null,null,null,null,null,null,null,null,null,null,null,null,null,null,null,"43.39.09","Altri lavori di completamento e di finitura degli edifici nca"]
[null,null,null,null,null,null,null,null,null,null,null,null,null,null,null,null,null,null,null,null,"43.91.00","Realizzazione di coperture"]
[null,null,null,null,null,null,null,null,null,null,null,null,null,null,null,null,null,null,null,null,"43.99.01","Pulizia a vapore, sabbiatura e attività simili per pareti esterne di edifici"]
[null,null,null,null,null,null,null,null,null,null,null,null,null,null,null,null,null,null,null,null,"43.99.02","Noleggio di gru ed altre attrezzature con operatore per la costruzione o la demolizione"]
[null,null,null,null,null,null,null,null,null,null,null,null,null,null,null,null,null,null,null,null,"43.99.09","Altre attività di lavori specializzati di costruzione nca"]
[null,null,null,null,null,null,null,null,null,null,null,null,null,null,null,null,null,null,null,null,"45.11.01","Commercio all'ingrosso e al dettaglio di autovetture e di autoveicoli leggeri"]
[null,null,null,null,null,null,null,null,null,null,null,null,null,null,null,null,null,null,null,null,"45.11.02","Intermediari del commercio di autovetture e di autoveicoli leggeri (incluse le agenzie di compravendita)"]
[null,null,null,null,null,null,null,null,null,null,null,null,null,null,null,null,null,null,null,null,"45.19.01","Commercio all'ingrosso e al dettaglio di altri autoveicoli"]
[null,null,null,null,null,null,null,null,null,null,null,null,null,null,null,null,null,null,null,null,"45.19.02","Intermediari del commercio di altri autoveicoli (incluse le agenzie di compravendita)"]
[null,null,null,null,null,null,null,null,null,null,null,null,null,null,null,null,null,null,null,null,"45.20.10","Riparazioni meccaniche di autoveicoli"]
[null,null,null,null,null,null,null,null,null,null,null,null,null,null,null,null,null,null,null,null,"45.20.20","Riparazione di carrozzerie di autoveicoli"]
[null,null,null,null,null,null,null,null,null,null,null,null,null,null,null,null,null,null,null,null,"45.20.30","Riparazione di impianti elettrici e di alimentazione per autoveicoli"]
[null,null,null,null,null,null,null,null,null,null,null,null,null,null,null,null,null,null,null,null,"45.20.40","Riparazione e sostituzione di pneumatici per autoveicoli"]
[null,null,null,null,null,null,null,null,null,null,null,null,null,null,null,null,null,null,null,null,"45.20.91","Lavaggio auto"]
[null,null,null,null,null,null,null,null,null,null,null,null,null,null,null,null,null,null,null,null,"45.20.99","Altre attività di manutenzione e di riparazione di autoveicoli"]
[null,null,null,null,null,null,null,null,null,null,null,null,null,null,null,null,null,null,null,null,"45.31.01","Commercio all'ingrosso di parti e accessori di autoveicoli"]
[null,null,null,null,null,null,null,null,null,null,null,null,null,null,null,null,null,null,null,null,"45.31.02","Intermediari del commercio di parti ed accessori di autoveicoli"]
[null,null,null,null,null,null,null,null,null,null,null,null,null,null,null,null,null,null,null,null,"45.32.00","Commercio al dettaglio di parti e accessori di autoveicoli"]
[null,null,null,null,null,null,null,null,null,null,null,null,null,null,null,null,null,null,null,null,"45.40.11","Commercio all'ingrosso e al dettaglio di motocicli e ciclomotori"]
[null,null,null,null,null,null,null,null,null,null,null,null,null,null,null,null,null,null,null,null,"45.40.12","Intermediari del commercio di motocicli e ciclomotori"]
[null,null,null,null,null,null,null,null,null,null,null,null,null,null,null,null,null,null,null,null,"45.40.21","Commercio all'ingrosso e al dettaglio di parti e accessori per motocicli e ciclomotori"]
[null,null,null,null,null,null,null,null,null,null,null,null,null,null,null,null,null,null,null,null,"45.40.22","Intermediari del commercio di parti ed accessori di motocicli e ciclomotori"]
[null,null,null,null,null,null,null,null,null,null,null,null,null,null,null,null,null,null,null,null,"45.40.30","Manutenzione e riparazione di motocicli e ciclomotori (inclusi i pneumatici)"]
[null,null,null,null,null,null,null,null,null,null,null,null,null,null,null,null,null,null,null,null,"46.11.01","Agenti e rappresentanti di materie prime agricole"]
[null,null,null,null,null,null,null,null,null,null,null,null,null,null,null,null,null,null,null,null,"46.11.02","Agenti e rappresentanti di fiori e piante"]
[null,null,null,null,null,null,null,null,null,null,null,null,null,null,null,null,null,null,null,null,"46.11.03","Agenti e rappresentanti di animali vivi"]
[null,null,null,null,null,null,null,null,null,null,null,null,null,null,null,null,null,null,null,null,"46.11.04","Agenti e rappresentanti di fibre tessili gregge e semilavorate; pelli grezze"]
[null,null,null,null,null,null,null,null,null,null,null,null,null,null,null,null,null,null,null,null,"46.11.05","Procacciatori d'affari di materie prime agricole, animali vivi, materie prime e semilavorati tessili; pelli grezze"]
[null,null,null,null,null,null,null,null,null,null,null,null,null,null,null,null,null,null,null,null,"46.11.06","Mediatori in materie prime agricole, materie prime e semilavorati tessili; pelli grezze"]
[null,null,null,null,null,null,null,null,null,null,null,null,null,null,null,null,null,null,null,null,"46.11.07","Mediatori in animali vivi"]
[null,null,null,null,null,null,null,null,null,null,null,null,null,null,null,null,null,null,null,null,"46.12.01","Agenti e rappresentanti di carburanti, gpl, gas in bombole e simili; lubrificanti"]
[null,null,null,null,null,null,null,null,null,null,null,null,null,null,null,null,null,null,null,null,"46.12.02","Agenti e rappresentanti di combustibili solidi"]
[null,null,null,null,null,null,null,null,null,null,null,null,null,null,null,null,null,null,null,null,"46.12.03","Agenti e rappresentanti di minerali, metalli e prodotti semilavorati"]
[null,null,null,null,null,null,null,null,null,null,null,null,null,null,null,null,null,null,null,null,"46.12.04","Agenti e rappresentanti di prodotti chimici per l'industria"]
[null,null,null,null,null,null,null,null,null,null,null,null,null,null,null,null,null,null,null,null,"46.12.05","Agenti e rappresentanti di prodotti chimici per l'agricoltura (inclusi i fertilizzanti)"]
[null,null,null,null,null,null,null,null,null,null,null,null,null,null,null,null,null,null,null,null,"46.12.06","Procacciatori d'affari di combustibili, minerali, metalli e prodotti chimici"]
[null,null,null,null,null,null,null,null,null,null,null,null,null,null,null,null,null,null,null,null,"46.12.07","Mediatori in combustibili, minerali, metalli e prodotti chimici"]
[null,null,null,null,null,null,null,null,null,null,null,null,null,null,null,null,null,null,null,null,"46.13.01","Agenti e rappresentanti di legname, semilavorati in legno e legno artificiale"]
[null,null,null,null,null,null,null,null,null,null,null,null,null,null,null,null,null,null,null,null,"46.13.02","Agenti e rappresentanti di materiale da costruzione (inclusi gli infissi e gli articoli igienico-sanitari); vetro piano"]
[null,null,null,null,null,null,null,null,null,null,null,null,null,null,null,null,null,null,null,null,"46.13.03","Agenti e rappresentanti di apparecchi ed accessori per riscaldamento e condizionamento e altri prodotti similari"]
[null,null,null,null,null,null,null,null,null,null,null,null,null,null,null,null,null,null,null,null,"46.13.04","Procacciatori d'affari di legname e materiali da costruzione"]
[null,null,null,null,null,null,null,null,null,null,null,null,null,null,null,null,null,null,null,null,"46.13.05","Mediatori in legname e materiali da costruzione"]
[null,null,null,null,null,null,null,null,null,null,null,null,null,null,null,null,null,null,null,null,"46.14.01","Agenti e rappresentanti di macchine, attrezzature ed impianti per l'industria ed il commercio; materiale e apparecchi elettrici ed elettronici per uso non domestico"]
[null,null,null,null,null,null,null,null,null,null,null,null,null,null,null,null,null,null,null,null,"46.14.02","Agenti e rappresentanti di macchine per costruzioni edili e stradali"]
[null,null,null,null,null,null,null,null,null,null,null,null,null,null,null,null,null,null,null,null,"46.14.03","Agenti e rappresentanti di macchine, attrezzature per ufficio, attrezzature per le telecomunicazioni, computer e loro periferiche"]
[null,null,null,null,null,null,null,null,null,null,null,null,null,null,null,null,null,null,null,null,"46.14.04","Agenti e rappresentanti di macchine ed attrezzature per uso agricolo (inclusi i trattori)"]
[null,null,null,null,null,null,null,null,null,null,null,null,null,null,null,null,null,null,null,null,"46.14.05","Agenti e rappresentanti di navi, aeromobili e altri veicoli (esclusi autoveicoli, motocicli, ciclomotori e biciclette)"]
[null,null,null,null,null,null,null,null,null,null,null,null,null,null,null,null,null,null,null,null,"46.14.06","Procacciatori d'affari di macchinari, impianti industriali, navi e aeromobili, macchine agricole, macchine per ufficio, attrezzature per le telecomunicazioni, computer e loro periferiche"]
[null,null,null,null,null,null,null,null,null,null,null,null,null,null,null,null,null,null,null,null,"46.14.07","Mediatori in macchinari, impianti industriali, navi e aeromobili, macchine agricole, macchine per ufficio, attrezzature per le telecomunicazioni, computer e loro periferiche"]
[null,null,null,null,null,null,null,null,null,null,null,null,null,null,null,null,null,null,null,null,"46.15.01","Agenti e rappresentanti di mobili in legno, metallo e materie plastiche"]
[null,null,null,null,null,null,null,null,null,null,null,null,null,null,null,null,null,null,null,null,"46.15.02","Agenti e rappresentanti di articoli di ferramenta e di bricolage"]
[null,null,null,null,null,null,null,null,null,null,null,null,null,null,null,null,null,null,null,null,"46.15.03","Agenti e rappresentanti di articoli casalinghi, porcellane, articoli in vetro eccetera"]
[null,null,null,null,null,null,null,null,null,null,null,null,null,null,null,null,null,null,null,null,"46.15.04","Agenti e rappresentanti di vernici, carte da parati, stucchi e cornici decorativi"]
[null,null,null,null,null,null,null,null,null,null,null,null,null,null,null,null,null,null,null,null,"46.15.05","Agenti e rappresentanti di mobili e oggetti di arredamento per la casa in canna, vimini, giunco, sughero, paglia; scope, spazzole, cesti e simili"]
[null,null,null,null,null,null,null,null,null,null,null,null,null,null,null,null,null,null,null,null,"46.15.06","Procacciatori d'affari di mobili, articoli per la casa e ferramenta"]
[null,null,null,null,null,null,null,null,null,null,null,null,null,null,null,null,null,null,null,null,"46.15.07","Mediatori in mobili, articoli per la casa e ferramenta"]
[null,null,null,null,null,null,null,null,null,null,null,null,null,null,null,null,null,null,null,null,"46.16.01","Agenti e rappresentanti di vestiario ed accessori di abbigliamento"]
[null,null,null,null,null,null,null,null,null,null,null,null,null,null,null,null,null,null,null,null,"46.16.02","Agenti e rappresentanti di pellicce"]
[null,null,null,null,null,null,null,null,null,null,null,null,null,null,null,null,null,null,null,null,"46.16.03","Agenti e rappresentanti di tessuti per abbigliamento ed arredamento (incluse merceria e passamaneria)"]
[null,null,null,null,null,null,null,null,null,null,null,null,null,null,null,null,null,null,null,null,"46.16.04","Agenti e rappresentanti di camicie, biancheria e maglieria intima"]
[null,null,null,null,null,null,null,null,null,null,null,null,null,null,null,null,null,null,null,null,"46.16.05","Agenti e rappresentanti di calzature ed accessori"]
[null,null,null,null,null,null,null,null,null,null,null,null,null,null,null,null,null,null,null,null,"46.16.06","Agenti e rappresentanti di pelletteria, valige ed articoli da viaggio"]
[null,null,null,null,null,null,null,null,null,null,null,null,null,null,null,null,null,null,null,null,"46.16.07","Agenti e rappresentanti di articoli tessili per la casa, tappeti, stuoie e materassi"]
[null,null,null,null,null,null,null,null,null,null,null,null,null,null,null,null,null,null,null,null,"46.16.08","Procacciatori d'affari di prodotti tessili, abbigliamento, pellicce, calzature e articoli in pelle"]
[null,null,null,null,null,null,null,null,null,null,null,null,null,null,null,null,null,null,null,null,"46.16.09","Mediatori in prodotti tessili, abbigliamento, pellicce, calzature e articoli in pelle"]
[null,null,null,null,null,null,null,null,null,null,null,null,null,null,null,null,null,null,null,null,"46.17.01","Agenti e rappresentanti di prodotti ortofrutticoli freschi, congelati e surgelati"]
[null,null,null,null,null,null,null,null,null,null,null,null,null,null,null,null,null,null,null,null,"46.17.02","Agenti e rappresentanti di carni fresche, congelate, surgelate, conservate e secche; salumi"]
[null,null,null,null,null,null,null,null,null,null,null,null,null,null,null,null,null,null,null,null,"46.17.03","Agenti e rappresentanti di latte, burro e formaggi"]
[null,null,null,null,null,null,null,null,null,null,null,null,null,null,null,null,null,null,null,null,"46.17.04","Agenti e rappresentanti di oli e grassi alimentari: olio d'oliva e di semi, margarina ed altri prodotti similari"]
[null,null,null,null,null,null,null,null,null,null,null,null,null,null,null,null,null,null,null,null,"46.17.05","Agenti e rappresentanti di bevande e prodotti similari"]
[null,null,null,null,null,null,null,null,null,null,null,null,null,null,null,null,null,null,null,null,"46.17.06","Agenti e rappresentanti di prodotti ittici freschi, congelati, surgelati e conservati e secchi"]
[null,null,null,null,null,null,null,null,null,null,null,null,null,null,null,null,null,null,null,null,"46.17.07","Agenti e rappresentanti di altri prodotti alimentari (incluse le uova e gli alimenti per gli animali domestici); tabacco"]
[null,null,null,null,null,null,null,null,null,null,null,null,null,null,null,null,null,null,null,null,"46.17.08","Procacciatori d'affari di prodotti alimentari, bevande e tabacco"]
[null,null,null,null,null,null,null,null,null,null,null,null,null,null,null,null,null,null,null,null,"46.17.09","Mediatori in prodotti alimentari, bevande e tabacco"]
[null,null,null,null,null,null,null,null,null,null,null,null,null,null,null,null,null,null,null,null,"46.18.11","Agenti e rappresentanti di carta e cartone (esclusi gli imballaggi); articoli di cartoleria e cancelleria"]
[null,null,null,null,null,null,null,null,null,null,null,null,null,null,null,null,null,null,null,null,"46.18.12","Agenti e rappresentanti di libri e altre pubblicazioni (incluso i relativi abbonamenti)"]
[null,null,null,null,null,null,null,null,null,null,null,null,null,null,null,null,null,null,null,null,"46.18.13","Procacciatori d'affari di prodotti di carta, cancelleria, libri"]
[null,null,null,null,null,null,null,null,null,null,null,null,null,null,null,null,null,null,null,null,"46.18.14","Mediatori in prodotti di carta, cancelleria, libri"]
[null,null,null,null,null,null,null,null,null,null,null,null,null,null,null,null,null,null,null,null,"46.18.21","Agenti e rappresentanti di elettronica di consumo audio e video, materiale elettrico per uso domestico"]
[null,null,null,null,null,null,null,null,null,null,null,null,null,null,null,null,null,null,null,null,"46.18.22","Agenti e rappresentanti di apparecchi elettrodomestici"]
[null,null,null,null,null,null,null,null,null,null,null,null,null,null,null,null,null,null,null,null,"46.18.23","Procacciatori d'affari di elettronica di consumo audio e video, materiale elettrico per uso domestico, elettrodomestici"]
[null,null,null,null,null,null,null,null,null,null,null,null,null,null,null,null,null,null,null,null,"46.18.24","Mediatori in elettronica di consumo audio e video, materiale elettrico per uso domestico, elettrodomestici"]
[null,null,null,null,null,null,null,null,null,null,null,null,null,null,null,null,null,null,null,null,"46.18.31","Agenti e rappresentanti di prodotti farmaceutici; prodotti di erboristeria per uso medico"]
[null,null,null,null,null,null,null,null,null,null,null,null,null,null,null,null,null,null,null,null,"46.18.32","Agenti e rappresentanti di prodotti sanitari ed apparecchi medicali, chirurgici e ortopedici; apparecchi per centri di estetica"]
[null,null,null,null,null,null,null,null,null,null,null,null,null,null,null,null,null,null,null,null,"46.18.33","Agenti e rappresentanti di prodotti di profumeria e di cosmetica (inclusi articoli per parrucchieri); prodotti di erboristeria per uso cosmetico"]
[null,null,null,null,null,null,null,null,null,null,null,null,null,null,null,null,null,null,null,null,"46.18.34","Procacciatori d'affari di prodotti farmaceutici e di cosmetici"]
[null,null,null,null,null,null,null,null,null,null,null,null,null,null,null,null,null,null,null,null,"46.18.35","Mediatori in prodotti farmaceutici e cosmetici"]
[null,null,null,null,null,null,null,null,null,null,null,null,null,null,null,null,null,null,null,null,"46.18.91","Agenti e rappresentanti di attrezzature sportive; biciclette"]
[null,null,null,null,null,null,null,null,null,null,null,null,null,null,null,null,null,null,null,null,"46.18.92","Agenti e rappresentanti di orologi, oggetti e semilavorati per gioielleria e oreficeria"]
[null,null,null,null,null,null,null,null,null,null,null,null,null,null,null,null,null,null,null,null,"46.18.93","Agenti e rappresentanti di articoli fotografici, ottici e prodotti simili; strumenti scientifici e per laboratori di analisi"]
[null,null,null,null,null,null,null,null,null,null,null,null,null,null,null,null,null,null,null,null,"46.18.94","Agenti e rappresentanti di saponi, detersivi, candele e prodotti simili"]
[null,null,null,null,null,null,null,null,null,null,null,null,null,null,null,null,null,null,null,null,"46.18.95","Agenti e rappresentanti di giocattoli"]
[null,null,null,null,null,null,null,null,null,null,null,null,null,null,null,null,null,null,null,null,"46.18.96","Agenti e rappresentanti di chincaglieria e bigiotteria"]
[null,null,null,null,null,null,null,null,null,null,null,null,null,null,null,null,null,null,null,null,"46.18.97","Agenti e rappresentanti di altri prodotti non alimentari nca (inclusi gli imballaggi e gli articoli antinfortunistici, antincendio e pubblicitari)"]
[null,null,null,null,null,null,null,null,null,null,null,null,null,null,null,null,null,null,null,null,"46.18.98","Procacciatori d'affari di attrezzature sportive, biciclette e altri prodotti nca"]
[null,null,null,null,null,null,null,null,null,null,null,null,null,null,null,null,null,null,null,null,"46.18.99","Mediatori in attrezzature sportive, biciclette e altri prodotti nca"]
[null,null,null,null,null,null,null,null,null,null,null,null,null,null,null,null,null,null,null,null,"46.19.01","Agenti e rappresentanti di vari prodotti senza prevalenza di alcuno"]
[null,null,null,null,null,null,null,null,null,null,null,null,null,null,null,null,null,null,null,null,"46.19.02","Procacciatori d'affari di vari prodotti senza prevalenza di alcuno"]
[null,null,null,null,null,null,null,null,null,null,null,null,null,null,null,null,null,null,null,null,"46.19.03","Mediatori in vari prodotti senza prevalenza di alcuno"]
[null,null,null,null,null,null,null,null,null,null,null,null,null,null,null,null,null,null,null,null,"46.19.04","Gruppi di acquisto; mandatari agli acquisti; buyer"]
[null,null,null,null,null,null,null,null,null,null,null,null,null,null,null,null,null,null,null,null,"46.21.10","Commercio all'ingrosso di cereali e legumi secchi"]
[null,null,null,null,null,null,null,null,null,null,null,null,null,null,null,null,null,null,null,null,"46.21.21","Commercio all'ingrosso di tabacco grezzo"]
[null,null,null,null,null,null,null,null,null,null,null,null,null,null,null,null,null,null,null,null,"46.21.22","Commercio all'ingrosso di sementi e alimenti per il bestiame (mangimi), piante officinali, semi oleosi, patate da semina"]
[null,null,null,null,null,null,null,null,null,null,null,null,null,null,null,null,null,null,null,null,"46.22.00","Commercio all'ingrosso di fiori e piante"]
[null,null,null,null,null,null,null,null,null,null,null,null,null,null,null,null,null,null,null,null,"46.23.00","Commercio all'ingrosso di animali vivi"]
[null,null,null,null,null,null,null,null,null,null,null,null,null,null,null,null,null,null,null,null,"46.24.10","Commercio all'ingrosso di cuoio e pelli gregge e lavorate (escluse le pelli per pellicceria)"]
[null,null,null,null,null,null,null,null,null,null,null,null,null,null,null,null,null,null,null,null,"46.24.20","Commercio all'ingrosso di pelli gregge e lavorate per pellicceria"]
[null,null,null,null,null,null,null,null,null,null,null,null,null,null,null,null,null,null,null,null,"46.31.10","Commercio all'ingrosso di frutta e ortaggi freschi"]
[null,null,null,null,null,null,null,null,null,null,null,null,null,null,null,null,null,null,null,null,"46.31.20","Commercio all'ingrosso di frutta e ortaggi conservati"]
[null,null,null,null,null,null,null,null,null,null,null,null,null,null,null,null,null,null,null,null,"46.32.10","Commercio all'ingrosso di carne fresca, congelata e surgelata"]
[null,null,null,null,null,null,null,null,null,null,null,null,null,null,null,null,null,null,null,null,"46.32.20","Commercio all'ingrosso di prodotti di salumeria"]
[null,null,null,null,null,null,null,null,null,null,null,null,null,null,null,null,null,null,null,null,"46.33.10","Commercio all'ingrosso di prodotti lattiero-caseari e di uova"]
[null,null,null,null,null,null,null,null,null,null,null,null,null,null,null,null,null,null,null,null,"46.33.20","Commercio all'ingrosso di oli e grassi alimentari di origine vegetale o animale"]
[null,null,null,null,null,null,null,null,null,null,null,null,null,null,null,null,null,null,null,null,"46.34.10","Commercio all'ingrosso di bevande alcoliche"]
[null,null,null,null,null,null,null,null,null,null,null,null,null,null,null,null,null,null,null,null,"46.34.20","Commercio all'ingrosso di bevande non alcoliche"]
[null,null,null,null,null,null,null,null,null,null,null,null,null,null,null,null,null,null,null,null,"46.35.00","Commercio all'ingrosso di prodotti del tabacco"]
[null,null,null,null,null,null,null,null,null,null,null,null,null,null,null,null,null,null,null,null,"46.36.00","Commercio all'ingrosso di zucchero, cioccolato, dolciumi e prodotti da forno"]
[null,null,null,null,null,null,null,null,null,null,null,null,null,null,null,null,null,null,null,null,"46.37.01","Commercio all'ingrosso di caffè"]
[null,null,null,null,null,null,null,null,null,null,null,null,null,null,null,null,null,null,null,null,"46.37.02","Commercio all'ingrosso di tè, cacao e spezie"]
[null,null,null,null,null,null,null,null,null,null,null,null,null,null,null,null,null,null,null,null,"46.38.10","Commercio all'ingrosso di prodotti della pesca freschi"]
[null,null,null,null,null,null,null,null,null,null,null,null,null,null,null,null,null,null,null,null,"46.38.20","Commercio all'ingrosso di prodotti della pesca congelati, surgelati, conservati, secchi"]
[null,null,null,null,null,null,null,null,null,null,null,null,null,null,null,null,null,null,null,null,"46.38.30","Commercio all'ingrosso di pasti e piatti pronti"]
[null,null,null,null,null,null,null,null,null,null,null,null,null,null,null,null,null,null,null,null,"46.38.90","Commercio all'ingrosso di altri prodotti alimentari"]
[null,null,null,null,null,null,null,null,null,null,null,null,null,null,null,null,null,null,null,null,"46.39.10","Commercio all'ingrosso non specializzato di prodotti surgelati"]
[null,null,null,null,null,null,null,null,null,null,null,null,null,null,null,null,null,null,null,null,"46.39.20","Commercio all'ingrosso non specializzato di altri prodotti alimentari, bevande e tabacco"]
[null,null,null,null,null,null,null,null,null,null,null,null,null,null,null,null,null,null,null,null,"46.41.10","Commercio all'ingrosso di tessuti"]
[null,null,null,null,null,null,null,null,null,null,null,null,null,null,null,null,null,null,null,null,"46.41.20","Commercio all'ingrosso di articoli di merceria, filati e passamaneria"]
[null,null,null,null,null,null,null,null,null,null,null,null,null,null,null,null,null,null,null,null,"46.41.90","Commercio all'ingrosso di altri articoli tessili"]
[null,null,null,null,null,null,null,null,null,null,null,null,null,null,null,null,null,null,null,null,"46.42.10","Commercio all'ingrosso di abbigliamento e accessori"]
[null,null,null,null,null,null,null,null,null,null,null,null,null,null,null,null,null,null,null,null,"46.42.20","Commercio all'ingrosso di articoli in pelliccia"]
[null,null,null,null,null,null,null,null,null,null,null,null,null,null,null,null,null,null,null,null,"46.42.30","Commercio all'ingrosso di camicie, biancheria intima, maglieria e simili"]
[null,null,null,null,null,null,null,null,null,null,null,null,null,null,null,null,null,null,null,null,"46.42.40","Commercio all'ingrosso di calzature e accessori"]
[null,null,null,null,null,null,null,null,null,null,null,null,null,null,null,null,null,null,null,null,"46.43.10","Commercio all'ingrosso di elettrodomestici, di elettronica di consumo audio e video"]
[null,null,null,null,null,null,null,null,null,null,null,null,null,null,null,null,null,null,null,null,"46.43.20","Commercio all'ingrosso di supporti registrati, audio, video (Cd, Dvd e altri supporti)"]
[null,null,null,null,null,null,null,null,null,null,null,null,null,null,null,null,null,null,null,null,"46.43.30","Commercio all'ingrosso di articoli per fotografia, cinematografia e ottica"]
[null,null,null,null,null,null,null,null,null,null,null,null,null,null,null,null,null,null,null,null,"46.44.10","Commercio all'ingrosso di vetreria e cristalleria"]
[null,null,null,null,null,null,null,null,null,null,null,null,null,null,null,null,null,null,null,null,"46.44.20","Commercio all'ingrosso di ceramiche e porcellana"]
[null,null,null,null,null,null,null,null,null,null,null,null,null,null,null,null,null,null,null,null,"46.44.30","Commercio all'ingrosso di saponi, detersivi e altri prodotti per la pulizia"]
[null,null,null,null,null,null,null,null,null,null,null,null,null,null,null,null,null,null,null,null,"46.44.40","Commercio all'ingrosso di coltelleria, posateria e pentolame"]
[null,null,null,null,null,null,null,null,null,null,null,null,null,null,null,null,null,null,null,null,"46.45.00","Commercio all'ingrosso di profumi e cosmetici"]
[null,null,null,null,null,null,null,null,null,null,null,null,null,null,null,null,null,null,null,null,"46.46.10","Commercio all'ingrosso di medicinali"]
[null,null,null,null,null,null,null,null,null,null,null,null,null,null,null,null,null,null,null,null,"46.46.20","Commercio all'ingrosso di prodotti botanici per uso farmaceutico"]
[null,null,null,null,null,null,null,null,null,null,null,null,null,null,null,null,null,null,null,null,"46.46.30","Commercio all'ingrosso di articoli medicali ed ortopedici"]
[null,null,null,null,null,null,null,null,null,null,null,null,null,null,null,null,null,null,null,null,"46.47.10","Commercio all'ingrosso di mobili di qualsiasi materiale"]
[null,null,null,null,null,null,null,null,null,null,null,null,null,null,null,null,null,null,null,null,"46.47.20","Commercio all'ingrosso di tappeti"]
[null,null,null,null,null,null,null,null,null,null,null,null,null,null,null,null,null,null,null,null,"46.47.30","Commercio all'ingrosso di articoli per l'illuminazione; materiale elettrico vario per uso domestico"]
[null,null,null,null,null,null,null,null,null,null,null,null,null,null,null,null,null,null,null,null,"46.48.00","Commercio all'ingrosso di orologi e di gioielleria"]
[null,null,null,null,null,null,null,null,null,null,null,null,null,null,null,null,null,null,null,null,"46.49.10","Commercio all'ingrosso di carta, cartone e articoli di cartoleria"]
[null,null,null,null,null,null,null,null,null,null,null,null,null,null,null,null,null,null,null,null,"46.49.20","Commercio all'ingrosso di libri, riviste e giornali"]
[null,null,null,null,null,null,null,null,null,null,null,null,null,null,null,null,null,null,null,null,"46.49.30","Commercio all'ingrosso di giochi e giocattoli"]
[null,null,null,null,null,null,null,null,null,null,null,null,null,null,null,null,null,null,null,null,"46.49.40","Commercio all'ingrosso di articoli sportivi (incluse le biciclette)"]
[null,null,null,null,null,null,null,null,null,null,null,null,null,null,null,null,null,null,null,null,"46.49.50","Commercio all'ingrosso di articoli in pelle; articoli da viaggio in qualsiasi materiale"]
[null,null,null,null,null,null,null,null,null,null,null,null,null,null,null,null,null,null,null,null,"46.49.90","Commercio all'ingrosso di vari prodotti di consumo non alimentare nca"]
[null,null,null,null,null,null,null,null,null,null,null,null,null,null,null,null,null,null,null,null,"46.51.00","Commercio all'ingrosso di computer, apparecchiature informatiche periferiche e di software"]
[null,null,null,null,null,null,null,null,null,null,null,null,null,null,null,null,null,null,null,null,"46.52.01","Commercio all'ingrosso di apparecchi e materiali telefonici"]
[null,null,null,null,null,null,null,null,null,null,null,null,null,null,null,null,null,null,null,null,"46.52.02","Commercio all'ingrosso di nastri non registrati"]
[null,null,null,null,null,null,null,null,null,null,null,null,null,null,null,null,null,null,null,null,"46.52.09","Commercio all'ingrosso di altre apparecchiature elettroniche per telecomunicazioni e di altri componenti elettronici"]
[null,null,null,null,null,null,null,null,null,null,null,null,null,null,null,null,null,null,null,null,"46.61.00","Commercio all'ingrosso di macchine, accessori e utensili agricoli, inclusi i trattori"]
[null,null,null,null,null,null,null,null,null,null,null,null,null,null,null,null,null,null,null,null,"46.62.00","Commercio all'ingrosso di macchine utensili (incluse le relative parti intercambiabili)"]
[null,null,null,null,null,null,null,null,null,null,null,null,null,null,null,null,null,null,null,null,"46.63.00","Commercio all'ingrosso di macchine per le miniere, l'edilizia e l'ingegneria civile"]
[null,null,null,null,null,null,null,null,null,null,null,null,null,null,null,null,null,null,null,null,"46.64.00","Commercio all'ingrosso di macchine per l'industria tessile, di macchine per cucire e per maglieria"]
[null,null,null,null,null,null,null,null,null,null,null,null,null,null,null,null,null,null,null,null,"46.65.00","Commercio all'ingrosso di mobili per ufficio e negozi"]
[null,null,null,null,null,null,null,null,null,null,null,null,null,null,null,null,null,null,null,null,"46.66.00","Commercio all'ingrosso di altre macchine e attrezzature per ufficio"]
[null,null,null,null,null,null,null,null,null,null,null,null,null,null,null,null,null,null,null,null,"46.69.11","Commercio all'ingrosso di imbarcazioni da diporto"]
[null,null,null,null,null,null,null,null,null,null,null,null,null,null,null,null,null,null,null,null,"46.69.19","Commercio all'ingrosso di altri mezzi ed attrezzature di trasporto"]
[null,null,null,null,null,null,null,null,null,null,null,null,null,null,null,null,null,null,null,null,"46.69.20","Commercio all'ingrosso di materiale elettrico per impianti di uso industriale"]
[null,null,null,null,null,null,null,null,null,null,null,null,null,null,null,null,null,null,null,null,"46.69.30","Commercio all'ingrosso di apparecchiature per parrucchieri, palestre, solarium e centri estetici"]
[null,null,null,null,null,null,null,null,null,null,null,null,null,null,null,null,null,null,null,null,"46.69.91","Commercio all'ingrosso di strumenti e attrezzature di misurazione per uso scientifico"]
[null,null,null,null,null,null,null,null,null,null,null,null,null,null,null,null,null,null,null,null,"46.69.92","Commercio all'ingrosso di strumenti e attrezzature di misurazione per uso non scientifico"]
[null,null,null,null,null,null,null,null,null,null,null,null,null,null,null,null,null,null,null,null,"46.69.93","Commercio all'ingrosso di giochi per luna-park e videogiochi per pubblici esercizi"]
[null,null,null,null,null,null,null,null,null,null,null,null,null,null,null,null,null,null,null,null,"46.69.94","Commercio all'ingrosso di articoli antincendio e antinfortunistici"]
[null,null,null,null,null,null,null,null,null,null,null,null,null,null,null,null,null,null,null,null,"46.69.99","Commercio all'ingrosso di altre macchine ed attrezzature per l'industria, il commercio e la navigazione nca"]
[null,null,null,null,null,null,null,null,null,null,null,null,null,null,null,null,null,null,null,null,"46.71.00","Commercio all'ingrosso di prodotti petroliferi e lubrificanti per autotrazione, di combustibili per riscaldamento"]
[null,null,null,null,null,null,null,null,null,null,null,null,null,null,null,null,null,null,null,null,"46.72.10","Commercio all'ingrosso di minerali metalliferi, di metalli ferrosi e prodotti semilavorati"]
[null,null,null,null,null,null,null,null,null,null,null,null,null,null,null,null,null,null,null,null,"46.72.20","Commercio all'ingrosso di metalli non ferrosi e prodotti semilavorati"]
[null,null,null,null,null,null,null,null,null,null,null,null,null,null,null,null,null,null,null,null,"46.73.10","Commercio all'ingrosso di legname, semilavorati in legno e legno artificiale"]
[null,null,null,null,null,null,null,null,null,null,null,null,null,null,null,null,null,null,null,null,"46.73.21","Commercio all'ingrosso di moquette e linoleum"]
[null,null,null,null,null,null,null,null,null,null,null,null,null,null,null,null,null,null,null,null,"46.73.22","Commercio all'ingrosso di altri materiali per rivestimenti (inclusi gli apparecchi igienico-sanitari)"]
[null,null,null,null,null,null,null,null,null,null,null,null,null,null,null,null,null,null,null,null,"46.73.23","Commercio all'ingrosso di infissi"]
[null,null,null,null,null,null,null,null,null,null,null,null,null,null,null,null,null,null,null,null,"46.73.29","Commercio all'ingrosso di altri materiali da costruzione"]
[null,null,null,null,null,null,null,null,null,null,null,null,null,null,null,null,null,null,null,null,"46.73.30","Commercio all'ingrosso di vetro piano"]
[null,null,null,null,null,null,null,null,null,null,null,null,null,null,null,null,null,null,null,null,"46.73.40","Commercio all'ingrosso di carta da parati, colori e vernici"]
[null,null,null,null,null,null,null,null,null,null,null,null,null,null,null,null,null,null,null,null,"46.74.10","Commercio all'ingrosso di articoli in ferro e in altri metalli (ferramenta)"]
[null,null,null,null,null,null,null,null,null,null,null,null,null,null,null,null,null,null,null,null,"46.74.20","Commercio all'ingrosso di apparecchi e accessori per impianti idraulici, di riscaldamento e di condizionamento"]
[null,null,null,null,null,null,null,null,null,null,null,null,null,null,null,null,null,null,null,null,"46.75.01","Commercio all'ingrosso di fertilizzanti e di altri prodotti chimici per l'agricoltura"]
[null,null,null,null,null,null,null,null,null,null,null,null,null,null,null,null,null,null,null,null,"46.75.02","Commercio all'ingrosso di prodotti chimici per l'industria"]
[null,null,null,null,null,null,null,null,null,null,null,null,null,null,null,null,null,null,null,null,"46.76.10","Commercio all'ingrosso di fibre tessili gregge e semilavorate"]
[null,null,null,null,null,null,null,null,null,null,null,null,null,null,null,null,null,null,null,null,"46.76.20","Commercio all'ingrosso di gomma greggia, materie plastiche in forme primarie e semilavorati"]
[null,null,null,null,null,null,null,null,null,null,null,null,null,null,null,null,null,null,null,null,"46.76.30","Commercio all'ingrosso di imballaggi"]
[null,null,null,null,null,null,null,null,null,null,null,null,null,null,null,null,null,null,null,null,"46.76.90","Commercio all'ingrosso di altri prodotti intermedi nca"]
[null,null,null,null,null,null,null,null,null,null,null,null,null,null,null,null,null,null,null,null,"46.77.10","Commercio all'ingrosso di rottami e sottoprodotti della lavorazione industriale metallici"]
[null,null,null,null,null,null,null,null,null,null,null,null,null,null,null,null,null,null,null,null,"46.77.20","Commercio all'ingrosso di altri materiali di recupero non metallici (vetro, carta, cartoni eccetera); sottoprodotti non metallici della lavorazione industriale (cascami)"]
[null,null,null,null,null,null,null,null,null,null,null,null,null,null,null,null,null,null,null,null,"46.90.00","Commercio all'ingrosso non specializzato"]
[null,null,null,null,null,null,null,null,null,null,null,null,null,null,null,null,null,null,null,null,"47.11.10","Ipermercati"]
[null,null,null,null,null,null,null,null,null,null,null,null,null,null,null,null,null,null,null,null,"47.11.20","Supermercati"]
[null,null,null,null,null,null,null,null,null,null,null,null,null,null,null,null,null,null,null,null,"47.11.30","Discount di alimentari"]
[null,null,null,null,null,null,null,null,null,null,null,null,null,null,null,null,null,null,null,null,"47.11.40","Minimercati ed altri esercizi non specializzati di alimentari vari"]
[null,null,null,null,null,null,null,null,null,null,null,null,null,null,null,null,null,null,null,null,"47.11.50","Commercio al dettaglio di prodotti surgelati"]
[null,null,null,null,null,null,null,null,null,null,null,null,null,null,null,null,null,null,null,null,"47.19.10","Grandi magazzini"]
[null,null,null,null,null,null,null,null,null,null,null,null,null,null,null,null,null,null,null,null,"47.19.20","Commercio al dettaglio in esercizi non specializzati di computer, periferiche, attrezzature per le telecomunicazioni, elettronica di consumo audio e video, elettrodomestici"]
[null,null,null,null,null,null,null,null,null,null,null,null,null,null,null,null,null,null,null,null,"47.19.90","Empori ed altri negozi non specializzati di vari prodotti non alimentari"]
[null,null,null,null,null,null,null,null,null,null,null,null,null,null,null,null,null,null,null,null,"47.21.01","Commercio al dettaglio di frutta e verdura fresca"]
[null,null,null,null,null,null,null,null,null,null,null,null,null,null,null,null,null,null,null,null,"47.21.02","Commercio al dettaglio di frutta e verdura preparata e conservata"]
[null,null,null,null,null,null,null,null,null,null,null,null,null,null,null,null,null,null,null,null,"47.22.00","Commercio al dettaglio di carni e di prodotti a base di carne"]
[null,null,null,null,null,null,null,null,null,null,null,null,null,null,null,null,null,null,null,null,"47.23.00","Commercio al dettaglio di pesci, crostacei e molluschi"]
[null,null,null,null,null,null,null,null,null,null,null,null,null,null,null,null,null,null,null,null,"47.24.10","Commercio al dettaglio di pane"]
[null,null,null,null,null,null,null,null,null,null,null,null,null,null,null,null,null,null,null,null,"47.24.20","Commercio al dettaglio di torte, dolciumi, confetteria"]
[null,null,null,null,null,null,null,null,null,null,null,null,null,null,null,null,null,null,null,null,"47.25.00","Commercio al dettaglio di bevande"]
[null,null,null,null,null,null,null,null,null,null,null,null,null,null,null,null,null,null,null,null,"47.26.00","Commercio al dettaglio di generi di monopolio (tabaccherie)"]
[null,null,null,null,null,null,null,null,null,null,null,null,null,null,null,null,null,null,null,null,"47.29.10","Commercio al dettaglio di latte e di prodotti lattiero-caseari"]
[null,null,null,null,null,null,null,null,null,null,null,null,null,null,null,null,null,null,null,null,"47.29.20","Commercio al dettaglio di caffè torrefatto"]
[null,null,null,null,null,null,null,null,null,null,null,null,null,null,null,null,null,null,null,null,"47.29.30","Commercio al dettaglio di prodotti macrobiotici e dietetici"]
[null,null,null,null,null,null,null,null,null,null,null,null,null,null,null,null,null,null,null,null,"47.29.90","Commercio al dettaglio di altri prodotti alimentari in esercizi specializzati nca"]
[null,null,null,null,null,null,null,null,null,null,null,null,null,null,null,null,null,null,null,null,"47.30.00","Commercio al dettaglio di carburante per autotrazione"]
[null,null,null,null,null,null,null,null,null,null,null,null,null,null,null,null,null,null,null,null,"47.41.00","Commercio al dettaglio di computer, unità periferiche, software e attrezzature per ufficio in esercizi specializzati"]
[null,null,null,null,null,null,null,null,null,null,null,null,null,null,null,null,null,null,null,null,"47.42.00","Commercio al dettaglio di apparecchiature per le telecomunicazioni e la telefonia in esercizi specializzati"]
[null,null,null,null,null,null,null,null,null,null,null,null,null,null,null,null,null,null,null,null,"47.43.00","Commercio al dettaglio di apparecchi audio e video in esercizi specializzati"]
[null,null,null,null,null,null,null,null,null,null,null,null,null,null,null,null,null,null,null,null,"47.51.10","Commercio al dettaglio di tessuti per l'abbigliamento, l'arredamento e di biancheria per la casa"]
[null,null,null,null,null,null,null,null,null,null,null,null,null,null,null,null,null,null,null,null,"47.51.20","Commercio al dettaglio di filati per maglieria e merceria"]
[null,null,null,null,null,null,null,null,null,null,null,null,null,null,null,null,null,null,null,null,"47.52.10","Commercio al dettaglio di ferramenta, vernici, vetro piano e materiale elettrico e termoidraulico"]
[null,null,null,null,null,null,null,null,null,null,null,null,null,null,null,null,null,null,null,null,"47.52.20","Commercio al dettaglio di articoli igienico-sanitari"]
[null,null,null,null,null,null,null,null,null,null,null,null,null,null,null,null,null,null,null,null,"47.52.30","Commercio al dettaglio di materiali da costruzione, ceramiche e piastrelle"]
[null,null,null,null,null,null,null,null,null,null,null,null,null,null,null,null,null,null,null,null,"47.52.40","Commercio al dettaglio di macchine, attrezzature e prodotti per l'agricoltura; macchine e attrezzature per il giardinaggio"]
[null,null,null,null,null,null,null,null,null,null,null,null,null,null,null,null,null,null,null,null,"47.53.11","Commercio al dettaglio di tende e tendine"]
[null,null,null,null,null,null,null,null,null,null,null,null,null,null,null,null,null,null,null,null,"47.53.12","Commercio al dettaglio di tappeti"]
[null,null,null,null,null,null,null,null,null,null,null,null,null,null,null,null,null,null,null,null,"47.53.20","Commercio al dettaglio di carta da parati e rivestimenti per pavimenti (moquette e linoleum)"]
[null,null,null,null,null,null,null,null,null,null,null,null,null,null,null,null,null,null,null,null,"47.54.00","Commercio al dettaglio di elettrodomestici in esercizi specializzati"]
[null,null,null,null,null,null,null,null,null,null,null,null,null,null,null,null,null,null,null,null,"47.59.10","Commercio al dettaglio di mobili per la casa"]
[null,null,null,null,null,null,null,null,null,null,null,null,null,null,null,null,null,null,null,null,"47.59.20","Commercio al dettaglio di utensili per la casa, di cristallerie e vasellame"]
[null,null,null,null,null,null,null,null,null,null,null,null,null,null,null,null,null,null,null,null,"47.59.30","Commercio al dettaglio di articoli per l'illuminazione"]
[null,null,null,null,null,null,null,null,null,null,null,null,null,null,null,null,null,null,null,null,"47.59.40","Commercio al dettaglio di macchine per cucire e per maglieria per uso domestico"]
[null,null,null,null,null,null,null,null,null,null,null,null,null,null,null,null,null,null,null,null,"47.59.50","Commercio al dettaglio di sistemi di sicurezza"]
[null,null,null,null,null,null,null,null,null,null,null,null,null,null,null,null,null,null,null,null,"47.59.60","Commercio al dettaglio di strumenti musicali e spartiti"]
[null,null,null,null,null,null,null,null,null,null,null,null,null,null,null,null,null,null,null,null,"47.59.91","Commercio al dettaglio di articoli in legno, sughero, vimini e articoli in plastica per uso domestico"]
[null,null,null,null,null,null,null,null,null,null,null,null,null,null,null,null,null,null,null,null,"47.59.99","Commercio al dettaglio di altri articoli per uso domestico nca"]
[null,null,null,null,null,null,null,null,null,null,null,null,null,null,null,null,null,null,null,null,"47.61.00","Commercio al dettaglio di libri nuovi in esercizi specializzati"]
[null,null,null,null,null,null,null,null,null,null,null,null,null,null,null,null,null,null,null,null,"47.62.10","Commercio al dettaglio di giornali, riviste e periodici"]
[null,null,null,null,null,null,null,null,null,null,null,null,null,null,null,null,null,null,null,null,"47.62.20","Commercio al dettaglio di articoli di cartoleria e forniture per ufficio"]
[null,null,null,null,null,null,null,null,null,null,null,null,null,null,null,null,null,null,null,null,"47.63.00","Commercio al dettaglio di registrazioni musicali e video in esercizi specializzati"]
[null,null,null,null,null,null,null,null,null,null,null,null,null,null,null,null,null,null,null,null,"47.64.10","Commercio al dettaglio di articoli sportivi, biciclette e articoli per il tempo libero"]
[null,null,null,null,null,null,null,null,null,null,null,null,null,null,null,null,null,null,null,null,"47.64.20","Commercio al dettaglio di natanti e accessori"]
[null,null,null,null,null,null,null,null,null,null,null,null,null,null,null,null,null,null,null,null,"47.65.00","Commercio al dettaglio di giochi e giocattoli (inclusi quelli elettronici)"]
[null,null,null,null,null,null,null,null,null,null,null,null,null,null,null,null,null,null,null,null,"47.71.10","Commercio al dettaglio di confezioni per adulti"]
[null,null,null,null,null,null,null,null,null,null,null,null,null,null,null,null,null,null,null,null,"47.71.20","Commercio al dettaglio di confezioni per bambini e neonati"]
[null,null,null,null,null,null,null,null,null,null,null,null,null,null,null,null,null,null,null,null,"47.71.30","Commercio al dettaglio di biancheria personale, maglieria, camicie"]
[null,null,null,null,null,null,null,null,null,null,null,null,null,null,null,null,null,null,null,null,"47.71.40","Commercio al dettaglio di pellicce e di abbigliamento in pelle"]
[null,null,null,null,null,null,null,null,null,null,null,null,null,null,null,null,null,null,null,null,"47.71.50","Commercio al dettaglio di cappelli, ombrelli, guanti e cravatte"]
[null,null,null,null,null,null,null,null,null,null,null,null,null,null,null,null,null,null,null,null,"47.72.10","Commercio al dettaglio di calzature e accessori"]
[null,null,null,null,null,null,null,null,null,null,null,null,null,null,null,null,null,null,null,null,"47.72.20","Commercio al dettaglio di articoli di pelletteria e da viaggio"]
[null,null,null,null,null,null,null,null,null,null,null,null,null,null,null,null,null,null,null,null,"47.73.10","Farmacie"]
[null,null,null,null,null,null,null,null,null,null,null,null,null,null,null,null,null,null,null,null,"47.73.20","Commercio al dettaglio in altri esercizi specializzati di medicinali non soggetti a prescrizione medica"]
[null,null,null,null,null,null,null,null,null,null,null,null,null,null,null,null,null,null,null,null,"47.74.00","Commercio al dettaglio di articoli medicali e ortopedici in esercizi specializzati"]
[null,null,null,null,null,null,null,null,null,null,null,null,null,null,null,null,null,null,null,null,"47.75.10","Commercio al dettaglio di articoli di profumeria, prodotti per toletta e per l'igiene personale"]
[null,null,null,null,null,null,null,null,null,null,null,null,null,null,null,null,null,null,null,null,"47.75.20","Erboristerie"]
[null,null,null,null,null,null,null,null,null,null,null,null,null,null,null,null,null,null,null,null,"47.76.10","Commercio al dettaglio di fiori e piante"]
[null,null,null,null,null,null,null,null,null,null,null,null,null,null,null,null,null,null,null,null,"47.76.20","Commercio al dettaglio di piccoli animali domestici"]
[null,null,null,null,null,null,null,null,null,null,null,null,null,null,null,null,null,null,null,null,"47.77.00","Commercio al dettaglio di orologi, articoli di gioielleria e argenteria"]
[null,null,null,null,null,null,null,null,null,null,null,null,null,null,null,null,null,null,null,null,"47.78.10","Commercio al dettaglio di mobili per ufficio"]
[null,null,null,null,null,null,null,null,null,null,null,null,null,null,null,null,null,null,null,null,"47.78.20","Commercio al dettaglio di materiale per ottica e fotografia"]
[null,null,null,null,null,null,null,null,null,null,null,null,null,null,null,null,null,null,null,null,"47.78.31","Commercio al dettaglio di oggetti d'arte (incluse le gallerie d'arte)"]
[null,null,null,null,null,null,null,null,null,null,null,null,null,null,null,null,null,null,null,null,"47.78.32","Commercio al dettaglio di oggetti d'artigianato"]
[null,null,null,null,null,null,null,null,null,null,null,null,null,null,null,null,null,null,null,null,"47.78.33","Commercio al dettaglio di arredi sacri ed articoli religiosi"]
[null,null,null,null,null,null,null,null,null,null,null,null,null,null,null,null,null,null,null,null,"47.78.34","Commercio al dettaglio di articoli da regalo e per fumatori"]
[null,null,null,null,null,null,null,null,null,null,null,null,null,null,null,null,null,null,null,null,"47.78.35","Commercio al dettaglio di bomboniere"]
[null,null,null,null,null,null,null,null,null,null,null,null,null,null,null,null,null,null,null,null,"47.78.36","Commercio al dettaglio di chincaglieria e bigiotteria (inclusi gli oggetti ricordo e gli articoli di promozione pubblicitaria)"]
[null,null,null,null,null,null,null,null,null,null,null,null,null,null,null,null,null,null,null,null,"47.78.37","Commercio al dettaglio di articoli per le belle arti"]
[null,null,null,null,null,null,null,null,null,null,null,null,null,null,null,null,null,null,null,null,"47.78.40","Commercio al dettaglio di combustibile per uso domestico e per riscaldamento"]
[null,null,null,null,null,null,null,null,null,null,null,null,null,null,null,null,null,null,null,null,"47.78.50","Commercio al dettaglio di armi e munizioni, articoli militari"]
[null,null,null,null,null,null,null,null,null,null,null,null,null,null,null,null,null,null,null,null,"47.78.60","Commercio al dettaglio di saponi, detersivi, prodotti per la lucidatura e affini"]
[null,null,null,null,null,null,null,null,null,null,null,null,null,null,null,null,null,null,null,null,"47.78.91","Commercio al dettaglio di filatelia, numismatica e articoli da collezionismo"]
[null,null,null,null,null,null,null,null,null,null,null,null,null,null,null,null,null,null,null,null,"47.78.92","Commercio al dettaglio di spaghi, cordami, tele e sacchi di juta e prodotti per l'imballaggio (esclusi quelli in carta e cartone)"]
[null,null,null,null,null,null,null,null,null,null,null,null,null,null,null,null,null,null,null,null,"47.78.93","Commercio al dettaglio di articoli funerari e cimiteriali"]
[null,null,null,null,null,null,null,null,null,null,null,null,null,null,null,null,null,null,null,null,"47.78.94","Commercio al dettaglio di articoli per adulti (sexy shop)"]
[null,null,null,null,null,null,null,null,null,null,null,null,null,null,null,null,null,null,null,null,"47.78.99","Commercio al dettaglio di altri prodotti non alimentari nca"]
[null,null,null,null,null,null,null,null,null,null,null,null,null,null,null,null,null,null,null,null,"47.79.10","Commercio al dettaglio di libri di seconda mano"]
[null,null,null,null,null,null,null,null,null,null,null,null,null,null,null,null,null,null,null,null,"47.79.20","Commercio al dettaglio di mobili usati e oggetti di antiquariato"]
[null,null,null,null,null,null,null,null,null,null,null,null,null,null,null,null,null,null,null,null,"47.79.30","Commercio al dettaglio di indumenti e altri oggetti usati"]
[null,null,null,null,null,null,null,null,null,null,null,null,null,null,null,null,null,null,null,null,"47.79.40","Case d'asta al dettaglio (escluse aste via internet)"]
[null,null,null,null,null,null,null,null,null,null,null,null,null,null,null,null,null,null,null,null,"47.81.01","Commercio al dettaglio ambulante di prodotti ortofrutticoli"]
[null,null,null,null,null,null,null,null,null,null,null,null,null,null,null,null,null,null,null,null,"47.81.02","Commercio al dettaglio ambulante di prodotti ittici"]
[null,null,null,null,null,null,null,null,null,null,null,null,null,null,null,null,null,null,null,null,"47.81.03","Commercio al dettaglio ambulante di carne"]
[null,null,null,null,null,null,null,null,null,null,null,null,null,null,null,null,null,null,null,null,"47.81.09","Commercio al dettaglio ambulante di altri prodotti alimentari e bevande nca"]
[null,null,null,null,null,null,null,null,null,null,null,null,null,null,null,null,null,null,null,null,"47.82.01","Commercio al dettaglio ambulante di tessuti, articoli tessili per la casa, articoli di abbigliamento"]
[null,null,null,null,null,null,null,null,null,null,null,null,null,null,null,null,null,null,null,null,"47.82.02","Commercio al dettaglio ambulante di calzature e pelletterie"]
[null,null,null,null,null,null,null,null,null,null,null,null,null,null,null,null,null,null,null,null,"47.89.01","Commercio al dettaglio ambulante di fiori, piante, bulbi, semi e fertilizzanti"]
[null,null,null,null,null,null,null,null,null,null,null,null,null,null,null,null,null,null,null,null,"47.89.02","Commercio al dettaglio ambulante di macchine, attrezzature e prodotti per l'agricoltura; attrezzature per il giardinaggio"]
[null,null,null,null,null,null,null,null,null,null,null,null,null,null,null,null,null,null,null,null,"47.89.03","Commercio al dettaglio ambulante di profumi e cosmetici; saponi, detersivi ed altri detergenti per qualsiasi uso"]
[null,null,null,null,null,null,null,null,null,null,null,null,null,null,null,null,null,null,null,null,"47.89.04","Commercio al dettaglio ambulante di chincaglieria e bigiotteria"]
[null,null,null,null,null,null,null,null,null,null,null,null,null,null,null,null,null,null,null,null,"47.89.05","Commercio al dettaglio ambulante di arredamenti per giardino; mobili; tappeti e stuoie; articoli casalinghi; elettrodomestici; materiale elettrico"]
[null,null,null,null,null,null,null,null,null,null,null,null,null,null,null,null,null,null,null,null,"47.89.09","Commercio al dettaglio ambulante di altri prodotti nca"]
[null,null,null,null,null,null,null,null,null,null,null,null,null,null,null,null,null,null,null,null,"47.91.10","Commercio al dettaglio di qualsiasi tipo di prodotto effettuato via internet"]
[null,null,null,null,null,null,null,null,null,null,null,null,null,null,null,null,null,null,null,null,"47.91.20","Commercio al dettaglio di qualsiasi tipo di prodotto effettuato per televisione"]
[null,null,null,null,null,null,null,null,null,null,null,null,null,null,null,null,null,null,null,null,"47.91.30","Commercio al dettaglio di qualsiasi tipo di prodotto per corrispondenza, radio, telefono"]
[null,null,null,null,null,null,null,null,null,null,null,null,null,null,null,null,null,null,null,null,"47.99.10","Commercio al dettaglio di prodotti vari, mediante l'intervento di un dimostratore o di un incaricato alla vendita (porta a porta)"]
[null,null,null,null,null,null,null,null,null,null,null,null,null,null,null,null,null,null,null,null,"47.99.20","Commercio effettuato per mezzo di distributori automatici"]
[null,null,null,null,null,null,null,null,null,null,null,null,null,null,null,null,null,null,null,null,"49.10.00","Trasporto ferroviario di passeggeri (interurbano)"]
[null,null,null,null,null,null,null,null,null,null,null,null,null,null,null,null,null,null,null,null,"49.20.00","Trasporto ferroviario di merci"]
[null,null,null,null,null,null,null,null,null,null,null,null,null,null,null,null,null,null,null,null,"49.31.00","Trasporto terrestre di passeggeri in aree urbane e suburbane"]
[null,null,null,null,null,null,null,null,null,null,null,null,null,null,null,null,null,null,null,null,"49.32.10","Trasporto con taxi"]
[null,null,null,null,null,null,null,null,null,null,null,null,null,null,null,null,null,null,null,null,"49.32.20","Trasporto mediante noleggio di autovetture da rimessa con conducente"]
[null,null,null,null,null,null,null,null,null,null,null,null,null,null,null,null,null,null,null,null,"49.39.01","Gestioni di funicolari, ski-lift e seggiovie se non facenti parte dei sistemi di transito urbano o suburbano"]
[null,null,null,null,null,null,null,null,null,null,null,null,null,null,null,null,null,null,null,null,"49.39.09","Altre attività di trasporti terrestri di passeggeri nca"]
[null,null,null,null,null,null,null,null,null,null,null,null,null,null,null,null,null,null,null,null,"49.41.00","Trasporto di merci su strada"]
[null,null,null,null,null,null,null,null,null,null,null,null,null,null,null,null,null,null,null,null,"49.42.00","Servizi di trasloco"]
[null,null,null,null,null,null,null,null,null,null,null,null,null,null,null,null,null,null,null,null,"49.50.10","Trasporto mediante condotte di gas"]
[null,null,null,null,null,null,null,null,null,null,null,null,null,null,null,null,null,null,null,null,"49.50.20","Trasporto mediante condotte di liquidi"]
[null,null,null,null,null,null,null,null,null,null,null,null,null,null,null,null,null,null,null,null,"50.10.00","Trasporto marittimo e costiero di passeggeri"]
[null,null,null,null,null,null,null,null,null,null,null,null,null,null,null,null,null,null,null,null,"50.20.00","Trasporto marittimo e costiero di merci"]
[null,null,null,null,null,null,null,null,null,null,null,null,null,null,null,null,null,null,null,null,"50.30.00","Trasporto di passeggeri per vie d'acqua interne (inclusi i trasporti lagunari)"]
[null,null,null,null,null,null,null,null,null,null,null,null,null,null,null,null,null,null,null,null,"50.40.00","Trasporto di merci per vie d'acqua interne"]
[null,null,null,null,null,null,null,null,null,null,null,null,null,null,null,null,null,null,null,null,"51.10.10","Trasporto aereo di linea di passeggeri"]
[null,null,null,null,null,null,null,null,null,null,null,null,null,null,null,null,null,null,null,null,"51.10.20","Trasporto aereo non di linea di passeggeri; voli charter"]
[null,null,null,null,null,null,null,null,null,null,null,null,null,null,null,null,null,null,null,null,"51.21.00","Trasporto aereo di merci"]
[null,null,null,null,null,null,null,null,null,null,null,null,null,null,null,null,null,null,null,null,"51.22.00","Trasporto spaziale"]
[null,null,null,null,null,null,null,null,null,null,null,null,null,null,null,null,null,null,null,null,"52.10.10","Magazzini di custodia e deposito per conto terzi"]
[null,null,null,null,null,null,null,null,null,null,null,null,null,null,null,null,null,null,null,null,"52.10.20","Magazzini frigoriferi per conto terzi"]
[null,null,null,null,null,null,null,null,null,null,null,null,null,null,null,null,null,null,null,null,"52.21.10","Gestione di infrastrutture ferroviarie"]
[null,null,null,null,null,null,null,null,null,null,null,null,null,null,null,null,null,null,null,null,"52.21.20","Gestione di strade, ponti, gallerie"]
[null,null,null,null,null,null,null,null,null,null,null,null,null,null,null,null,null,null,null,null,"52.21.30","Gestione di stazioni per autobus"]
[null,null,null,null,null,null,null,null,null,null,null,null,null,null,null,null,null,null,null,null,"52.21.40","Gestione di centri di movimentazione merci (interporti)"]
[null,null,null,null,null,null,null,null,null,null,null,null,null,null,null,null,null,null,null,null,"52.21.50","Gestione di parcheggi e autorimesse"]
[null,null,null,null,null,null,null,null,null,null,null,null,null,null,null,null,null,null,null,null,"52.21.60","Attività di traino e soccorso stradale"]
[null,null,null,null,null,null,null,null,null,null,null,null,null,null,null,null,null,null,null,null,"52.21.90","Altre attività connesse ai trasporti terrestri nca"]
[null,null,null,null,null,null,null,null,null,null,null,null,null,null,null,null,null,null,null,null,"52.22.01","Liquefazione e rigassificazione di gas a scopo di trasporto marittimo e per vie d'acqua effettuata al di fuori del sito di estrazione"]
[null,null,null,null,null,null,null,null,null,null,null,null,null,null,null,null,null,null,null,null,"52.22.09","Altre attività dei servizi connessi al trasporto marittimo e per vie d'acqua"]
[null,null,null,null,null,null,null,null,null,null,null,null,null,null,null,null,null,null,null,null,"52.23.00","Attività dei servizi connessi al trasporto aereo"]
[null,null,null,null,null,null,null,null,null,null,null,null,null,null,null,null,null,null,null,null,"52.24.10","Movimento merci relativo a trasporti aerei"]
[null,null,null,null,null,null,null,null,null,null,null,null,null,null,null,null,null,null,null,null,"52.24.20","Movimento merci relativo a trasporti marittimi e fluviali"]
[null,null,null,null,null,null,null,null,null,null,null,null,null,null,null,null,null,null,null,null,"52.24.30","Movimento merci relativo a trasporti ferroviari"]
[null,null,null,null,null,null,null,null,null,null,null,null,null,null,null,null,null,null,null,null,"52.24.40","Movimento merci relativo ad altri trasporti terrestri"]
[null,null,null,null,null,null,null,null,null,null,null,null,null,null,null,null,null,null,null,null,"52.29.10","Spedizionieri e agenzie di operazioni doganali"]
[null,null,null,null,null,null,null,null,null,null,null,null,null,null,null,null,null,null,null,null,"52.29.21","Intermediari dei trasporti"]
[null,null,null,null,null,null,null,null,null,null,null,null,null,null,null,null,null,null,null,null,"52.29.22","Servizi logistici relativi alla distribuzione delle merci"]
[null,null,null,null,null,null,null,null,null,null,null,null,null,null,null,null,null,null,null,null,"53.10.00","Attività postali con obbligo di servizio universale"]
[null,null,null,null,null,null,null,null,null,null,null,null,null,null,null,null,null,null,null,null,"53.20.00","Altre attività postali e di corriere senza obbligo di servizio universale"]
[null,null,null,null,null,null,null,null,null,null,null,null,null,null,null,null,null,null,null,null,"55.10.00","Alberghi"]
[null,null,null,null,null,null,null,null,null,null,null,null,null,null,null,null,null,null,null,null,"55.20.10","Villaggi turistici"]
[null,null,null,null,null,null,null,null,null,null,null,null,null,null,null,null,null,null,null,null,"55.20.20","Ostelli della gioventù"]
[null,null,null,null,null,null,null,null,null,null,null,null,null,null,null,null,null,null,null,null,"55.20.30","Rifugi di montagna"]
[null,null,null,null,null,null,null,null,null,null,null,null,null,null,null,null,null,null,null,null,"55.20.40","Colonie marine e montane"]
[null,null,null,null,null,null,null,null,null,null,null,null,null,null,null,null,null,null,null,null,"55.20.51","Affittacamere per brevi soggiorni, case ed appartamenti per vacanze, bed and breakfast, residence"]
[null,null,null,null,null,null,null,null,null,null,null,null,null,null,null,null,null,null,null,null,"55.20.52","Attività di alloggio connesse alle aziende agricole"]
[null,null,null,null,null,null,null,null,null,null,null,null,null,null,null,null,null,null,null,null,"55.30.00","Aree di campeggio e aree attrezzate per camper e roulotte"]
[null,null,null,null,null,null,null,null,null,null,null,null,null,null,null,null,null,null,null,null,"55.90.10","Gestione di vagoni letto"]
[null,null,null,null,null,null,null,null,null,null,null,null,null,null,null,null,null,null,null,null,"55.90.20","Alloggi per studenti e lavoratori con servizi accessori di tipo alberghiero"]
[null,null,null,null,null,null,null,null,null,null,null,null,null,null,null,null,null,null,null,null,"56.10.11","Ristorazione con somministrazione"]
[null,null,null,null,null,null,null,null,null,null,null,null,null,null,null,null,null,null,null,null,"56.10.12","Attività di ristorazione connesse alle aziende agricole"]
[null,null,null,null,null,null,null,null,null,null,null,null,null,null,null,null,null,null,null,null,"56.10.20","Ristorazione senza somministrazione con preparazione di cibi da asporto"]
[null,null,null,null,null,null,null,null,null,null,null,null,null,null,null,null,null,null,null,null,"56.10.30","Gelaterie e pasticcerie"]
[null,null,null,null,null,null,null,null,null,null,null,null,null,null,null,null,null,null,null,null,"56.10.41","Gelaterie e pasticcerie ambulanti"]
[null,null,null,null,null,null,null,null,null,null,null,null,null,null,null,null,null,null,null,null,"56.10.42","Ristorazione ambulante"]
[null,null,null,null,null,null,null,null,null,null,null,null,null,null,null,null,null,null,null,null,"56.10.50","Ristorazione su treni e navi"]
[null,null,null,null,null,null,null,null,null,null,null,null,null,null,null,null,null,null,null,null,"56.21.00","Catering per eventi, banqueting"]
[null,null,null,null,null,null,null,null,null,null,null,null,null,null,null,null,null,null,null,null,"56.29.10","Mense"]
[null,null,null,null,null,null,null,null,null,null,null,null,null,null,null,null,null,null,null,null,"56.29.20","Catering continuativo su base contrattuale"]
[null,null,null,null,null,null,null,null,null,null,null,null,null,null,null,null,null,null,null,null,"56.30.00","Bar e altri esercizi simili senza cucina"]
[null,null,null,null,null,null,null,null,null,null,null,null,null,null,null,null,null,null,null,null,"58.11.00","Edizione di libri"]
[null,null,null,null,null,null,null,null,null,null,null,null,null,null,null,null,null,null,null,null,"58.12.01","Pubblicazione di elenchi"]
[null,null,null,null,null,null,null,null,null,null,null,null,null,null,null,null,null,null,null,null,"58.12.02","Pubblicazione di mailing list"]
[null,null,null,null,null,null,null,null,null,null,null,null,null,null,null,null,null,null,null,null,"58.13.00","Edizione di quotidiani"]
[null,null,null,null,null,null,null,null,null,null,null,null,null,null,null,null,null,null,null,null,"58.14.00","Edizione di riviste e periodici"]
[null,null,null,null,null,null,null,null,null,null,null,null,null,null,null,null,null,null,null,null,"58.19.00","Altre attività editoriali"]
[null,null,null,null,null,null,null,null,null,null,null,null,null,null,null,null,null,null,null,null,"58.21.00","Edizione di giochi per computer"]
[null,null,null,null,null,null,null,null,null,null,null,null,null,null,null,null,null,null,null,null,"58.29.00","Edizione di altri software a pacchetto (esclusi giochi per computer)"]
[null,null,null,null,null,null,null,null,null,null,null,null,null,null,null,null,null,null,null,null,"59.11.00","Attività di produzione cinematografica, di video e di programmi televisivi"]
[null,null,null,null,null,null,null,null,null,null,null,null,null,null,null,null,null,null,null,null,"59.12.00","Attività di post-produzione cinematografica, di video e di programmi televisivi"]
[null,null,null,null,null,null,null,null,null,null,null,null,null,null,null,null,null,null,null,null,"59.13.00","Attività di distribuzione cinematografica, di video e di programmi televisivi"]
[null,null,null,null,null,null,null,null,null,null,null,null,null,null,null,null,null,null,null,null,"59.14.00","Attività di proiezione cinematografica"]
[null,null,null,null,null,null,null,null,null,null,null,null,null,null,null,null,null,null,null,null,"59.20.10","Edizione di registrazioni sonore"]
[null,null,null,null,null,null,null,null,null,null,null,null,null,null,null,null,null,null,null,null,"59.20.20","Edizione di musica stampata"]
[null,null,null,null,null,null,null,null,null,null,null,null,null,null,null,null,null,null,null,null,"59.20.30","Studi di registrazione sonora"]
[null,null,null,null,null,null,null,null,null,null,null,null,null,null,null,null,null,null,null,null,"60.10.00","Trasmissioni radiofoniche"]
[null,null,null,null,null,null,null,null,null,null,null,null,null,null,null,null,null,null,null,null,"60.20.00","Programmazione e trasmissioni televisive"]
[null,null,null,null,null,null,null,null,null,null,null,null,null,null,null,null,null,null,null,null,"61.10.00","Telecomunicazioni fisse"]
[null,null,null,null,null,null,null,null,null,null,null,null,null,null,null,null,null,null,null,null,"61.20.00","Telecomunicazioni mobili"]
[null,null,null,null,null,null,null,null,null,null,null,null,null,null,null,null,null,null,null,null,"61.30.00","Telecomunicazioni satellitari"]
[null,null,null,null,null,null,null,null,null,null,null,null,null,null,null,null,null,null,null,null,"61.90.10","Erogazione di servizi di accesso ad internet (ISP)"]
[null,null,null,null,null,null,null,null,null,null,null,null,null,null,null,null,null,null,null,null,"61.90.20","Posto telefonico pubblico ed Internet Point"]
[null,null,null,null,null,null,null,null,null,null,null,null,null,null,null,null,null,null,null,null,"61.90.91","Intermediazione in servizi di telecomunicazione e trasmissione dati"]
[null,null,null,null,null,null,null,null,null,null,null,null,null,null,null,null,null,null,null,null,"61.90.99","Altre attività connesse alle telecomunicazioni nca"]
[null,null,null,null,null,null,null,null,null,null,null,null,null,null,null,null,null,null,null,null,"62.01.00","Produzione di software non connesso all'edizione"]
[null,null,null,null,null,null,null,null,null,null,null,null,null,null,null,null,null,null,null,null,"62.02.00","Consulenza nel settore delle tecnologie dell'informatica"]
[null,null,null,null,null,null,null,null,null,null,null,null,null,null,null,null,null,null,null,null,"62.03.00","Gestione di strutture e apparecchiature informatiche hardware - housing (esclusa la riparazione)"]
[null,null,null,null,null,null,null,null,null,null,null,null,null,null,null,null,null,null,null,null,"62.09.01","Configurazione di personal computer"]
[null,null,null,null,null,null,null,null,null,null,null,null,null,null,null,null,null,null,null,null,"62.09.09","Altre attività dei servizi connessi alle tecnologie dell'informatica nca"]
[null,null,null,null,null,null,null,null,null,null,null,null,null,null,null,null,null,null,null,null,"63.11.11","Elaborazione elettronica di dati contabili (esclusi i Centri di assistenza fiscale - Caf)"]
[null,null,null,null,null,null,null,null,null,null,null,null,null,null,null,null,null,null,null,null,"63.11.19","Altre elaborazioni elettroniche di dati"]
[null,null,null,null,null,null,null,null,null,null,null,null,null,null,null,null,null,null,null,null,"63.11.20","Gestione database (attività delle banche dati)"]
[null,null,null,null,null,null,null,null,null,null,null,null,null,null,null,null,null,null,null,null,"63.11.30","Hosting e fornitura di servizi applicativi (ASP)"]
[null,null,null,null,null,null,null,null,null,null,null,null,null,null,null,null,null,null,null,null,"63.12.00","Portali web"]
[null,null,null,null,null,null,null,null,null,null,null,null,null,null,null,null,null,null,null,null,"63.91.00","Attività delle agenzie di stampa"]
[null,null,null,null,null,null,null,null,null,null,null,null,null,null,null,null,null,null,null,null,"63.99.00","Altre attività dei servizi di informazione nca"]
[null,null,null,null,null,null,null,null,null,null,null,null,null,null,null,null,null,null,null,null,"64.11.00","Attività della Banca Centrale"]
[null,null,null,null,null,null,null,null,null,null,null,null,null,null,null,null,null,null,null,null,"64.19.10","Intermediazione monetaria di istituti monetari diverse dalle Banche centrali"]
[null,null,null,null,null,null,null,null,null,null,null,null,null,null,null,null,null,null,null,null,"64.19.20","Fondi comuni di investimento monetario"]
[null,null,null,null,null,null,null,null,null,null,null,null,null,null,null,null,null,null,null,null,"64.19.30","Istituti di moneta elettronica (Imel)"]
[null,null,null,null,null,null,null,null,null,null,null,null,null,null,null,null,null,null,null,null,"64.19.40","Cassa Depositi e Prestiti"]
[null,null,null,null,null,null,null,null,null,null,null,null,null,null,null,null,null,null,null,null,"64.20.00","Attività delle società di partecipazione (holding)"]
[null,null,null,null,null,null,null,null,null,null,null,null,null,null,null,null,null,null,null,null,"64.30.10","Fondi comuni di investimento (aperti e chiusi, immobiliari, di mercato mobiliare)"]
[null,null,null,null,null,null,null,null,null,null,null,null,null,null,null,null,null,null,null,null,"64.30.20","Sicav (Società di investimento a capitale variabile)"]
[null,null,null,null,null,null,null,null,null,null,null,null,null,null,null,null,null,null,null,null,"64.91.00","Leasing finanziario"]
[null,null,null,null,null,null,null,null,null,null,null,null,null,null,null,null,null,null,null,null,"64.92.01","Attività dei consorzi di garanzia collettiva fidi"]
[null,null,null,null,null,null,null,null,null,null,null,null,null,null,null,null,null,null,null,null,"64.92.09","Altre attività creditizie nca"]
[null,null,null,null,null,null,null,null,null,null,null,null,null,null,null,null,null,null,null,null,"64.99.10","Attività di intermediazione mobiliare"]
[null,null,null,null,null,null,null,null,null,null,null,null,null,null,null,null,null,null,null,null,"64.99.20","Attività di factoring"]
[null,null,null,null,null,null,null,null,null,null,null,null,null,null,null,null,null,null,null,null,"64.99.30","Attività di merchant bank"]
[null,null,null,null,null,null,null,null,null,null,null,null,null,null,null,null,null,null,null,null,"64.99.40","Attività delle società veicolo"]
[null,null,null,null,null,null,null,null,null,null,null,null,null,null,null,null,null,null,null,null,"64.99.50","Attività di intermediazione in cambi"]
[null,null,null,null,null,null,null,null,null,null,null,null,null,null,null,null,null,null,null,null,"64.99.60","Altre intermediazioni finanziarie nca"]
[null,null,null,null,null,null,null,null,null,null,null,null,null,null,null,null,null,null,null,null,"65.11.00","Assicurazioni sulla vita"]
[null,null,null,null,null,null,null,null,null,null,null,null,null,null,null,null,null,null,null,null,"65.12.00","Assicurazioni diverse da quelle sulla vita"]
[null,null,null,null,null,null,null,null,null,null,null,null,null,null,null,null,null,null,null,null,"65.20.00","Attività di riassicurazione"]
[null,null,null,null,null,null,null,null,null,null,null,null,null,null,null,null,null,null,null,null,"65.30.10","Attività dei fondi pensione aperti"]
[null,null,null,null,null,null,null,null,null,null,null,null,null,null,null,null,null,null,null,null,"65.30.20","Attività dei fondi pensione negoziali"]
[null,null,null,null,null,null,null,null,null,null,null,null,null,null,null,null,null,null,null,null,"65.30.30","Attività dei fondi pensione preesistenti"]
[null,null,null,null,null,null,null,null,null,null,null,null,null,null,null,null,null,null,null,null,"66.11.00","Amministrazione di mercati finanziari"]
[null,null,null,null,null,null,null,null,null,null,null,null,null,null,null,null,null,null,null,null,"66.12.00","Attività di negoziazione di contratti relativi a titoli e merci"]
[null,null,null,null,null,null,null,null,null,null,null,null,null,null,null,null,null,null,null,null,"66.19.10","Attività di gestione ed elaborazione di pagamenti tramite carta di credito"]
[null,null,null,null,null,null,null,null,null,null,null,null,null,null,null,null,null,null,null,null,"66.19.21","Promotori finanziari"]
[null,null,null,null,null,null,null,null,null,null,null,null,null,null,null,null,null,null,null,null,"66.19.22","Agenti, mediatori e procacciatori in prodotti finanziari"]
[null,null,null,null,null,null,null,null,null,null,null,null,null,null,null,null,null,null,null,null,"66.19.30","Attività delle società fiduciarie di amministrazione"]
[null,null,null,null,null,null,null,null,null,null,null,null,null,null,null,null,null,null,null,null,"66.19.40","Attività di Bancoposta"]
[null,null,null,null,null,null,null,null,null,null,null,null,null,null,null,null,null,null,null,null,"66.19.50","Servizi di trasferimento di denaro (money transfer)"]
[null,null,null,null,null,null,null,null,null,null,null,null,null,null,null,null,null,null,null,null,"66.21.00","Attività dei periti e liquidatori indipendenti delle assicurazioni"]
[null,null,null,null,null,null,null,null,null,null,null,null,null,null,null,null,null,null,null,null,"66.22.01","Broker di assicurazioni"]
[null,null,null,null,null,null,null,null,null,null,null,null,null,null,null,null,null,null,null,null,"66.22.02","Agenti di assicurazioni"]
[null,null,null,null,null,null,null,null,null,null,null,null,null,null,null,null,null,null,null,null,"66.22.03","Sub-agenti di assicurazioni"]
[null,null,null,null,null,null,null,null,null,null,null,null,null,null,null,null,null,null,null,null,"66.22.04","Produttori, procacciatori ed altri intermediari delle assicurazioni"]
[null,null,null,null,null,null,null,null,null,null,null,null,null,null,null,null,null,null,null,null,"66.29.01","Autorità centrali di vigilanza su assicurazioni e fondi pensione"]
[null,null,null,null,null,null,null,null,null,null,null,null,null,null,null,null,null,null,null,null,"66.29.09","Altre attività ausiliarie delle assicurazioni e dei fondi pensione nca"]
[null,null,null,null,null,null,null,null,null,null,null,null,null,null,null,null,null,null,null,null,"66.30.00","Gestione di fondi comuni di investimento e dei fondi pensione"]
[null,null,null,null,null,null,null,null,null,null,null,null,null,null,null,null,null,null,null,null,"68.10.00","Compravendita di beni immobili effettuata su beni propri"]
[null,null,null,null,null,null,null,null,null,null,null,null,null,null,null,null,null,null,null,null,"68.20.01","Locazione immobiliare di beni propri o in leasing (affitto)"]
[null,null,null,null,null,null,null,null,null,null,null,null,null,null,null,null,null,null,null,null,"68.20.02","Affitto di aziende"]
[null,null,null,null,null,null,null,null,null,null,null,null,null,null,null,null,null,null,null,null,"68.31.00","Attività di mediazione immobiliare"]
[null,null,null,null,null,null,null,null,null,null,null,null,null,null,null,null,null,null,null,null,"68.32.00","Amministrazione di condomini e gestione di beni immobili per conto terzi"]
[null,null,null,null,null,null,null,null,null,null,null,null,null,null,null,null,null,null,null,null,"69.10.10","Attività degli studi legali"]
[null,null,null,null,null,null,null,null,null,null,null,null,null,null,null,null,null,null,null,null,"69.10.20","Attività degli studi notarili"]
[null,null,null,null,null,null,null,null,null,null,null,null,null,null,null,null,null,null,null,null,"69.20.11","Servizi forniti da dottori commercialisti"]
[null,null,null,null,null,null,null,null,null,null,null,null,null,null,null,null,null,null,null,null,"69.20.12","Servizi forniti da ragionieri e periti commerciali"]
[null,null,null,null,null,null,null,null,null,null,null,null,null,null,null,null,null,null,null,null,"69.20.13","Servizi forniti da revisori contabili, periti, consulenti ed altri soggetti che svolgono attività in materia di amministrazione, contabilità e tributi"]
[null,null,null,null,null,null,null,null,null,null,null,null,null,null,null,null,null,null,null,null,"69.20.14","Attività svolta dai Centri di assistenza fiscale (Caf)"]
[null,null,null,null,null,null,null,null,null,null,null,null,null,null,null,null,null,null,null,null,"69.20.15","Gestione ed amministrazione del personale per conto terzi"]
[null,null,null,null,null,null,null,null,null,null,null,null,null,null,null,null,null,null,null,null,"69.20.20","Attività delle società di revisione e certificazione di bilanci"]
[null,null,null,null,null,null,null,null,null,null,null,null,null,null,null,null,null,null,null,null,"69.20.30","Attività dei consulenti del lavoro"]
[null,null,null,null,null,null,null,null,null,null,null,null,null,null,null,null,null,null,null,null,"70.10.00","Attività delle holding impegnate nelle attività gestionali (holding operative)"]
[null,null,null,null,null,null,null,null,null,null,null,null,null,null,null,null,null,null,null,null,"70.21.00","Pubbliche relazioni e comunicazione"]
[null,null,null,null,null,null,null,null,null,null,null,null,null,null,null,null,null,null,null,null,"70.22.01","Attività di consulenza per la gestione della logistica aziendale"]
[null,null,null,null,null,null,null,null,null,null,null,null,null,null,null,null,null,null,null,null,"70.22.09","Altre attività di consulenza imprenditoriale e altra consulenza amministrativo-gestionale e pianificazione aziendale"]
[null,null,null,null,null,null,null,null,null,null,null,null,null,null,null,null,null,null,null,null,"71.11.00","Attività degli studi di architettura"]
[null,null,null,null,null,null,null,null,null,null,null,null,null,null,null,null,null,null,null,null,"71.12.10","Attività degli studi di ingegneria"]
[null,null,null,null,null,null,null,null,null,null,null,null,null,null,null,null,null,null,null,null,"71.12.20","Servizi di progettazione di ingegneria integrata"]
[null,null,null,null,null,null,null,null,null,null,null,null,null,null,null,null,null,null,null,null,"71.12.30","Attività tecniche svolte da geometri"]
[null,null,null,null,null,null,null,null,null,null,null,null,null,null,null,null,null,null,null,null,"71.12.40","Attività di cartografia e aerofotogrammetria"]
[null,null,null,null,null,null,null,null,null,null,null,null,null,null,null,null,null,null,null,null,"71.12.50","Attività di studio geologico e di prospezione geognostica e mineraria"]
[null,null,null,null,null,null,null,null,null,null,null,null,null,null,null,null,null,null,null,null,"71.20.10","Collaudi e analisi tecniche di prodotti"]
[null,null,null,null,null,null,null,null,null,null,null,null,null,null,null,null,null,null,null,null,"71.20.21","Controllo di qualità e certificazione di prodotti, processi e sistemi"]
[null,null,null,null,null,null,null,null,null,null,null,null,null,null,null,null,null,null,null,null,"71.20.22","Attività per la tutela di beni di produzione controllata"]
[null,null,null,null,null,null,null,null,null,null,null,null,null,null,null,null,null,null,null,null,"72.11.00","Ricerca e sviluppo sperimentale nel campo delle biotecnologie"]
[null,null,null,null,null,null,null,null,null,null,null,null,null,null,null,null,null,null,null,null,"72.19.01","Ricerca e sviluppo sperimentale nel campo della geologia"]
[null,null,null,null,null,null,null,null,null,null,null,null,null,null,null,null,null,null,null,null,"72.19.09","Ricerca e sviluppo sperimentale nel campo delle altre scienze naturali e dell'ingegneria"]
[null,null,null,null,null,null,null,null,null,null,null,null,null,null,null,null,null,null,null,null,"72.20.00","Ricerca e sviluppo sperimentale nel campo delle scienze sociali e umanistiche"]
[null,null,null,null,null,null,null,null,null,null,null,null,null,null,null,null,null,null,null,null,"73.11.01","Ideazione di campagne pubblicitarie"]
[null,null,null,null,null,null,null,null,null,null,null,null,null,null,null,null,null,null,null,null,"73.11.02","Conduzione di campagne di marketing e altri servizi pubblicitari"]
[null,null,null,null,null,null,null,null,null,null,null,null,null,null,null,null,null,null,null,null,"73.12.00","Attività delle concessionarie e degli altri intermediari di servizi pubblicitari"]
[null,null,null,null,null,null,null,null,null,null,null,null,null,null,null,null,null,null,null,null,"73.20.00","Ricerche di mercato e sondaggi di opinione"]
[null,null,null,null,null,null,null,null,null,null,null,null,null,null,null,null,null,null,null,null,"74.10.10","Attività di design di moda e design industriale"]
[null,null,null,null,null,null,null,null,null,null,null,null,null,null,null,null,null,null,null,null,"74.10.21","Attività dei disegnatori grafici di pagine web"]
[null,null,null,null,null,null,null,null,null,null,null,null,null,null,null,null,null,null,null,null,"74.10.29","Altre attività dei disegnatori grafici"]
[null,null,null,null,null,null,null,null,null,null,null,null,null,null,null,null,null,null,null,null,"74.10.30","Attività dei disegnatori tecnici"]
[null,null,null,null,null,null,null,null,null,null,null,null,null,null,null,null,null,null,null,null,"74.10.90","Altre attività di design"]
[null,null,null,null,null,null,null,null,null,null,null,null,null,null,null,null,null,null,null,null,"74.20.11","Attività di fotoreporter"]
[null,null,null,null,null,null,null,null,null,null,null,null,null,null,null,null,null,null,null,null,"74.20.12","Attività di riprese aeree nel campo della fotografia"]
[null,null,null,null,null,null,null,null,null,null,null,null,null,null,null,null,null,null,null,null,"74.20.19","Altre attività di riprese fotografiche"]
[null,null,null,null,null,null,null,null,null,null,null,null,null,null,null,null,null,null,null,null,"74.20.20","Laboratori fotografici per lo sviluppo e la stampa"]
[null,null,null,null,null,null,null,null,null,null,null,null,null,null,null,null,null,null,null,null,"74.30.00","Traduzione e interpretariato"]
[null,null,null,null,null,null,null,null,null,null,null,null,null,null,null,null,null,null,null,null,"74.90.11","Consulenza agraria fornita da agronomi"]
[null,null,null,null,null,null,null,null,null,null,null,null,null,null,null,null,null,null,null,null,"74.90.12","Consulenza agraria fornita da agrotecnici e periti agrari"]
[null,null,null,null,null,null,null,null,null,null,null,null,null,null,null,null,null,null,null,null,"74.90.21","Consulenza sulla sicurezza ed igiene dei posti di lavoro"]
[null,null,null,null,null,null,null,null,null,null,null,null,null,null,null,null,null,null,null,null,"74.90.29","Altra attività di consulenza in materia di sicurezza"]
[null,null,null,null,null,null,null,null,null,null,null,null,null,null,null,null,null,null,null,null,"74.90.91","Attività tecniche svolte da periti industriali"]
[null,null,null,null,null,null,null,null,null,null,null,null,null,null,null,null,null,null,null,null,"74.90.92","Attività riguardanti le previsioni meteorologiche"]
[null,null,null,null,null,null,null,null,null,null,null,null,null,null,null,null,null,null,null,null,"74.90.93","Altre attività di consulenza tecnica nca"]
[null,null,null,null,null,null,null,null,null,null,null,null,null,null,null,null,null,null,null,null,"74.90.94","Agenzie ed agenti o procuratori per lo spettacolo e lo sport"]
[null,null,null,null,null,null,null,null,null,null,null,null,null,null,null,null,null,null,null,null,"74.90.99","Altre attività professionali nca"]
[null,null,null,null,null,null,null,null,null,null,null,null,null,null,null,null,null,null,null,null,"75.00.00","Servizi veterinari"]
[null,null,null,null,null,null,null,null,null,null,null,null,null,null,null,null,null,null,null,null,"77.11.00","Noleggio di autovetture ed autoveicoli leggeri"]
[null,null,null,null,null,null,null,null,null,null,null,null,null,null,null,null,null,null,null,null,"77.12.00","Noleggio di autocarri e di altri veicoli pesanti"]
[null,null,null,null,null,null,null,null,null,null,null,null,null,null,null,null,null,null,null,null,"77.21.01","Noleggio di biciclette"]
[null,null,null,null,null,null,null,null,null,null,null,null,null,null,null,null,null,null,null,null,"77.21.02","Noleggio senza equipaggio di imbarcazioni da diporto (inclusi i pedalò)"]
[null,null,null,null,null,null,null,null,null,null,null,null,null,null,null,null,null,null,null,null,"77.21.09","Noleggio di altre attrezzature sportive e ricreative"]
[null,null,null,null,null,null,null,null,null,null,null,null,null,null,null,null,null,null,null,null,"77.22.00","Noleggio di videocassette, Cd, Dvd e dischi contenenti audiovisivi o videogame"]
[null,null,null,null,null,null,null,null,null,null,null,null,null,null,null,null,null,null,null,null,"77.29.10","Noleggio di biancheria da tavola, da letto, da bagno e di articoli di vestiario"]
[null,null,null,null,null,null,null,null,null,null,null,null,null,null,null,null,null,null,null,null,"77.29.90","Noleggio di altri beni per uso personale e domestico nca (escluse le attrezzature sportive e ricreative)"]
[null,null,null,null,null,null,null,null,null,null,null,null,null,null,null,null,null,null,null,null,"77.31.00","Noleggio di macchine e attrezzature agricole"]
[null,null,null,null,null,null,null,null,null,null,null,null,null,null,null,null,null,null,null,null,"77.32.00","Noleggio di macchine e attrezzature per lavori edili e di genio civile"]
[null,null,null,null,null,null,null,null,null,null,null,null,null,null,null,null,null,null,null,null,"77.33.00","Noleggio di macchine e attrezzature per ufficio (inclusi i computer)"]
[null,null,null,null,null,null,null,null,null,null,null,null,null,null,null,null,null,null,null,null,"77.34.00","Noleggio di mezzi di trasporto marittimo e fluviale"]
[null,null,null,null,null,null,null,null,null,null,null,null,null,null,null,null,null,null,null,null,"77.35.00","Noleggio di mezzi di trasporto aereo"]
[null,null,null,null,null,null,null,null,null,null,null,null,null,null,null,null,null,null,null,null,"77.39.10","Noleggio di altri mezzi di trasporto terrestri"]
[null,null,null,null,null,null,null,null,null,null,null,null,null,null,null,null,null,null,null,null,"77.39.91","Noleggio di container adibiti ad alloggi o ad uffici"]
[null,null,null,null,null,null,null,null,null,null,null,null,null,null,null,null,null,null,null,null,"77.39.92","Noleggio di container per diverse modalità di trasporto"]
[null,null,null,null,null,null,null,null,null,null,null,null,null,null,null,null,null,null,null,null,"77.39.93","Noleggio senza operatore di attrezzature di sollevamento e movimentazione merci: carrelli elevatori, pallet eccetera"]
[null,null,null,null,null,null,null,null,null,null,null,null,null,null,null,null,null,null,null,null,"77.39.94","Noleggio di strutture ed attrezzature per manifestazioni e spettacoli: impianti luce ed audio senza operatore, palchi, stand ed addobbi luminosi"]
[null,null,null,null,null,null,null,null,null,null,null,null,null,null,null,null,null,null,null,null,"77.39.99","Noleggio senza operatore di altre macchine ed attrezzature nca"]
[null,null,null,null,null,null,null,null,null,null,null,null,null,null,null,null,null,null,null,null,"77.40.00","Concessione dei diritti di sfruttamento di proprietà intellettuale e prodotti simili (escluse le opere protette dal copyright)"]
[null,null,null,null,null,null,null,null,null,null,null,null,null,null,null,null,null,null,null,null,"78.10.00","Servizi di ricerca, selezione, collocamento e supporto per il ricollocamento di personale"]
[null,null,null,null,null,null,null,null,null,null,null,null,null,null,null,null,null,null,null,null,"78.20.00","Attività delle agenzie di fornitura di lavoro temporaneo (interinale)"]
[null,null,null,null,null,null,null,null,null,null,null,null,null,null,null,null,null,null,null,null,"78.30.00","Altre attività di fornitura e gestione di risorse umane (staff leasing)"]
[null,null,null,null,null,null,null,null,null,null,null,null,null,null,null,null,null,null,null,null,"79.11.00","Attività delle agenzie di viaggio"]
[null,null,null,null,null,null,null,null,null,null,null,null,null,null,null,null,null,null,null,null,"79.12.00","Attività dei tour operator"]
[null,null,null,null,null,null,null,null,null,null,null,null,null,null,null,null,null,null,null,null,"79.90.11","Servizi di biglietteria per eventi teatrali, sportivi ed altri eventi ricreativi e d'intrattenimento"]
[null,null,null,null,null,null,null,null,null,null,null,null,null,null,null,null,null,null,null,null,"79.90.19","Altri servizi di prenotazione e altre attività di assistenza turistica non svolte dalle agenzie di viaggio nca"]
[null,null,null,null,null,null,null,null,null,null,null,null,null,null,null,null,null,null,null,null,"79.90.20","Attività delle guide e degli accompagnatori turistici"]
[null,null,null,null,null,null,null,null,null,null,null,null,null,null,null,null,null,null,null,null,"80.10.00","Servizi di vigilanza privata"]
[null,null,null,null,null,null,null,null,null,null,null,null,null,null,null,null,null,null,null,null,"80.20.00","Servizi connessi ai sistemi di vigilanza"]
[null,null,null,null,null,null,null,null,null,null,null,null,null,null,null,null,null,null,null,null,"80.30.00","Servizi di investigazione privata"]
[null,null,null,null,null,null,null,null,null,null,null,null,null,null,null,null,null,null,null,null,"81.10.00","Servizi integrati di gestione agli edifici"]
[null,null,null,null,null,null,null,null,null,null,null,null,null,null,null,null,null,null,null,null,"81.21.00","Pulizia generale (non specializzata) di edifici"]
[null,null,null,null,null,null,null,null,null,null,null,null,null,null,null,null,null,null,null,null,"81.22.01","Attività di sterilizzazione di attrezzature medico sanitarie"]
[null,null,null,null,null,null,null,null,null,null,null,null,null,null,null,null,null,null,null,null,"81.22.02","Altre attività di pulizia specializzata di edifici e di impianti e macchinari industriali"]
[null,null,null,null,null,null,null,null,null,null,null,null,null,null,null,null,null,null,null,null,"81.29.10","Servizi di disinfestazione"]
[null,null,null,null,null,null,null,null,null,null,null,null,null,null,null,null,null,null,null,null,"81.29.91","Pulizia e lavaggio di aree pubbliche, rimozione di neve e ghiaccio"]
[null,null,null,null,null,null,null,null,null,null,null,null,null,null,null,null,null,null,null,null,"81.29.99","Altre attività di pulizia nca"]
[null,null,null,null,null,null,null,null,null,null,null,null,null,null,null,null,null,null,null,null,"81.30.00","Cura e manutenzione del paesaggio (inclusi parchi, giardini e aiuole)"]
[null,null,null,null,null,null,null,null,null,null,null,null,null,null,null,null,null,null,null,null,"82.11.01","Servizi integrati di supporto per le funzioni d'ufficio"]
[null,null,null,null,null,null,null,null,null,null,null,null,null,null,null,null,null,null,null,null,"82.11.02","Gestione di uffici temporanei, uffici residence"]
[null,null,null,null,null,null,null,null,null,null,null,null,null,null,null,null,null,null,null,null,"82.19.01","Spedizione di materiale propagandistico, compilazione e gestione di indirizzi"]
[null,null,null,null,null,null,null,null,null,null,null,null,null,null,null,null,null,null,null,null,"82.19.09","Servizi di fotocopiatura, preparazione di documenti e altre attività di supporto specializzate per le funzioni d'ufficio"]
[null,null,null,null,null,null,null,null,null,null,null,null,null,null,null,null,null,null,null,null,"82.20.00","Attività dei call center"]
[null,null,null,null,null,null,null,null,null,null,null,null,null,null,null,null,null,null,null,null,"82.30.00","Organizzazione di convegni e fiere"]
[null,null,null,null,null,null,null,null,null,null,null,null,null,null,null,null,null,null,null,null,"82.91.10","Attività di agenzie di recupero crediti"]
[null,null,null,null,null,null,null,null,null,null,null,null,null,null,null,null,null,null,null,null,"82.91.20","Agenzie di informazioni commerciali"]
[null,null,null,null,null,null,null,null,null,null,null,null,null,null,null,null,null,null,null,null,"82.92.10","Imballaggio e confezionamento di generi alimentari"]
[null,null,null,null,null,null,null,null,null,null,null,null,null,null,null,null,null,null,null,null,"82.92.20","Imballaggio e confezionamento di generi non alimentari"]
[null,null,null,null,null,null,null,null,null,null,null,null,null,null,null,null,null,null,null,null,"82.99.10","Imprese di gestione esattoriale"]
[null,null,null,null,null,null,null,null,null,null,null,null,null,null,null,null,null,null,null,null,"82.99.20","Agenzie di distribuzione di libri, giornali e riviste"]
[null,null,null,null,null,null,null,null,null,null,null,null,null,null,null,null,null,null,null,null,"82.99.30","Servizi di gestione di pubblici mercati e pese pubbliche"]
[null,null,null,null,null,null,null,null,null,null,null,null,null,null,null,null,null,null,null,null,"82.99.40","Richiesta certificati e disbrigo pratiche"]
[null,null,null,null,null,null,null,null,null,null,null,null,null,null,null,null,null,null,null,null,"82.99.91","Servizi di stenotipia"]
[null,null,null,null,null,null,null,null,null,null,null,null,null,null,null,null,null,null,null,null,"82.99.99","Altri servizi di sostegno alle imprese nca"]
[null,null,null,null,null,null,null,null,null,null,null,null,null,null,null,null,null,null,null,null,"84.11.10","Attività degli organi legislativi ed esecutivi, centrali e locali; amministrazione finanziaria; amministrazioni regionali, provinciali e comunali"]
[null,null,null,null,null,null,null,null,null,null,null,null,null,null,null,null,null,null,null,null,"84.11.20","Attività di pianificazione generale e servizi statistici generali"]
[null,null,null,null,null,null,null,null,null,null,null,null,null,null,null,null,null,null,null,null,"84.12.10","Regolamentazione dell'attività degli organismi preposti alla sanità"]
[null,null,null,null,null,null,null,null,null,null,null,null,null,null,null,null,null,null,null,null,"84.12.20","Regolamentazione dell'attività degli organismi preposti all'istruzione"]
[null,null,null,null,null,null,null,null,null,null,null,null,null,null,null,null,null,null,null,null,"84.12.30","Regolamentazione dell'attività degli organismi preposti alla gestione di progetti per l'edilizia abitativa e l'assetto del territorio e per la tutela dell'ambiente"]
[null,null,null,null,null,null,null,null,null,null,null,null,null,null,null,null,null,null,null,null,"84.12.40","Regolamentazione dell'attività degli organismi preposti ai servizi ricreativi, culturali e sociali vari"]
[null,null,null,null,null,null,null,null,null,null,null,null,null,null,null,null,null,null,null,null,"84.13.10","Regolamentazione degli affari concernenti i combustibili e l'energia"]
[null,null,null,null,null,null,null,null,null,null,null,null,null,null,null,null,null,null,null,null,"84.13.20","Regolamentazione degli affari e servizi concernenti l'agricoltura, silvicoltura, caccia e pesca"]
[null,null,null,null,null,null,null,null,null,null,null,null,null,null,null,null,null,null,null,null,"84.13.30","Regolamentazione degli affari e dei servizi concernenti le industrie estrattive e le risorse minerarie (eccetto i combustibili) le industrie manifatturiere, le costruzioni e le opere pubbliche ad eccezione delle strade e opere per la navigazione"]
[null,null,null,null,null,null,null,null,null,null,null,null,null,null,null,null,null,null,null,null,"84.13.40","Regolamentazione degli affari e servizi concernenti la costruzione di strade"]
[null,null,null,null,null,null,null,null,null,null,null,null,null,null,null,null,null,null,null,null,"84.13.50","Regolamentazione degli affari e servizi concernenti la costruzione di opere per la navigazione interna e marittima"]
[null,null,null,null,null,null,null,null,null,null,null,null,null,null,null,null,null,null,null,null,"84.13.60","Regolamentazione degli affari e servizi concernenti i trasporti e le comunicazioni"]
[null,null,null,null,null,null,null,null,null,null,null,null,null,null,null,null,null,null,null,null,"84.13.70","Regolamentazione degli affari e servizi concernenti il commercio interno"]
[null,null,null,null,null,null,null,null,null,null,null,null,null,null,null,null,null,null,null,null,"84.13.80","Regolamentazione degli affari e servizi concernenti il turismo"]
[null,null,null,null,null,null,null,null,null,null,null,null,null,null,null,null,null,null,null,null,"84.13.90","Regolamentazione di altri affari e servizi economici"]
[null,null,null,null,null,null,null,null,null,null,null,null,null,null,null,null,null,null,null,null,"84.21.00","Affari esteri"]
[null,null,null,null,null,null,null,null,null,null,null,null,null,null,null,null,null,null,null,null,"84.22.00","Difesa nazionale"]
[null,null,null,null,null,null,null,null,null,null,null,null,null,null,null,null,null,null,null,null,"84.23.00","Giustizia ed attività giudiziarie"]
[null,null,null,null,null,null,null,null,null,null,null,null,null,null,null,null,null,null,null,null,"84.24.00","Ordine pubblico e sicurezza nazionale"]
[null,null,null,null,null,null,null,null,null,null,null,null,null,null,null,null,null,null,null,null,"84.25.10","Attività dei vigili del fuoco"]
[null,null,null,null,null,null,null,null,null,null,null,null,null,null,null,null,null,null,null,null,"84.25.20","Attività di protezione civile"]
[null,null,null,null,null,null,null,null,null,null,null,null,null,null,null,null,null,null,null,null,"84.30.00","Assicurazione sociale obbligatoria"]
[null,null,null,null,null,null,null,null,null,null,null,null,null,null,null,null,null,null,null,null,"85.10.00","Istruzione di grado preparatorio: scuole dell'infanzia, scuole speciali collegate a quelle primarie"]
[null,null,null,null,null,null,null,null,null,null,null,null,null,null,null,null,null,null,null,null,"85.20.00","Istruzione primaria: scuole elementari"]
[null,null,null,null,null,null,null,null,null,null,null,null,null,null,null,null,null,null,null,null,"85.31.10","Istruzione secondaria di primo grado: scuole medie"]
[null,null,null,null,null,null,null,null,null,null,null,null,null,null,null,null,null,null,null,null,"85.31.20","Istruzione secondaria di secondo grado di formazione generale: licei"]
[null,null,null,null,null,null,null,null,null,null,null,null,null,null,null,null,null,null,null,null,"85.32.01","Scuole di vela e navigazione che rilasciano brevetti o patenti commerciali"]
[null,null,null,null,null,null,null,null,null,null,null,null,null,null,null,null,null,null,null,null,"85.32.02","Scuole di volo che rilasciano brevetti o patenti commerciali"]
[null,null,null,null,null,null,null,null,null,null,null,null,null,null,null,null,null,null,null,null,"85.32.03","Scuole di guida professionale per autisti, ad esempio di autocarri, di autobus e di pullman"]
[null,null,null,null,null,null,null,null,null,null,null,null,null,null,null,null,null,null,null,null,"85.32.09","Altra istruzione secondaria di secondo grado di formazione tecnica, professionale e artistica"]
[null,null,null,null,null,null,null,null,null,null,null,null,null,null,null,null,null,null,null,null,"85.41.00","Istruzione e formazione tecnica superiore (IFTS)"]
[null,null,null,null,null,null,null,null,null,null,null,null,null,null,null,null,null,null,null,null,"85.42.00","Istruzione universitaria e post-universitaria; accademie e conservatori"]
[null,null,null,null,null,null,null,null,null,null,null,null,null,null,null,null,null,null,null,null,"85.51.00","Corsi sportivi e ricreativi"]
[null,null,null,null,null,null,null,null,null,null,null,null,null,null,null,null,null,null,null,null,"85.52.01","Corsi di danza"]
[null,null,null,null,null,null,null,null,null,null,null,null,null,null,null,null,null,null,null,null,"85.52.09","Altra formazione culturale"]
[null,null,null,null,null,null,null,null,null,null,null,null,null,null,null,null,null,null,null,null,"85.53.00","Autoscuole, scuole di pilotaggio e nautiche"]
[null,null,null,null,null,null,null,null,null,null,null,null,null,null,null,null,null,null,null,null,"85.59.10","Università popolare"]
[null,null,null,null,null,null,null,null,null,null,null,null,null,null,null,null,null,null,null,null,"85.59.20","Corsi di formazione e corsi di aggiornamento professionale"]
[null,null,null,null,null,null,null,null,null,null,null,null,null,null,null,null,null,null,null,null,"85.59.30","Scuole e corsi di lingua"]
[null,null,null,null,null,null,null,null,null,null,null,null,null,null,null,null,null,null,null,null,"85.59.90","Altri servizi di istruzione nca"]
[null,null,null,null,null,null,null,null,null,null,null,null,null,null,null,null,null,null,null,null,"85.60.01","Consulenza scolastica e servizi di orientamento scolastico"]
[null,null,null,null,null,null,null,null,null,null,null,null,null,null,null,null,null,null,null,null,"85.60.09","Altre attività di supporto all'istruzione"]
[null,null,null,null,null,null,null,null,null,null,null,null,null,null,null,null,null,null,null,null,"86.10.10","Ospedali e case di cura generici"]
[null,null,null,null,null,null,null,null,null,null,null,null,null,null,null,null,null,null,null,null,"86.10.20","Ospedali e case di cura specialistici"]
[null,null,null,null,null,null,null,null,null,null,null,null,null,null,null,null,null,null,null,null,"86.10.30","Istituti, cliniche e policlinici universitari"]
[null,null,null,null,null,null,null,null,null,null,null,null,null,null,null,null,null,null,null,null,"86.10.40","Ospedali e case di cura per lunga degenza"]
[null,null,null,null,null,null,null,null,null,null,null,null,null,null,null,null,null,null,null,null,"86.21.00","Servizi degli studi medici di medicina generale"]
[null,null,null,null,null,null,null,null,null,null,null,null,null,null,null,null,null,null,null,null,"86.22.01","Prestazioni sanitarie svolte da chirurghi"]
[null,null,null,null,null,null,null,null,null,null,null,null,null,null,null,null,null,null,null,null,"86.22.02","Ambulatori e poliambulatori del Servizio Sanitario Nazionale"]
[null,null,null,null,null,null,null,null,null,null,null,null,null,null,null,null,null,null,null,null,"86.22.03","Attività dei centri di radioterapia"]
[null,null,null,null,null,null,null,null,null,null,null,null,null,null,null,null,null,null,null,null,"86.22.04","Attività dei centri di dialisi"]
[null,null,null,null,null,null,null,null,null,null,null,null,null,null,null,null,null,null,null,null,"86.22.05","Studi di omeopatia e di agopuntura"]
[null,null,null,null,null,null,null,null,null,null,null,null,null,null,null,null,null,null,null,null,"86.22.06","Centri di medicina estetica"]
[null,null,null,null,null,null,null,null,null,null,null,null,null,null,null,null,null,null,null,null,"86.22.09","Altri studi medici specialistici e poliambulatori"]
[null,null,null,null,null,null,null,null,null,null,null,null,null,null,null,null,null,null,null,null,"86.23.00","Attività degli studi odontoiatrici"]
[null,null,null,null,null,null,null,null,null,null,null,null,null,null,null,null,null,null,null,null,"86.90.11","Laboratori radiografici"]
[null,null,null,null,null,null,null,null,null,null,null,null,null,null,null,null,null,null,null,null,"86.90.12","Laboratori di analisi cliniche"]
[null,null,null,null,null,null,null,null,null,null,null,null,null,null,null,null,null,null,null,null,"86.90.13","Laboratori di igiene e profilassi"]
[null,null,null,null,null,null,null,null,null,null,null,null,null,null,null,null,null,null,null,null,"86.90.21","Fisioterapia"]
[null,null,null,null,null,null,null,null,null,null,null,null,null,null,null,null,null,null,null,null,"86.90.29","Altre attività paramediche indipendenti nca"]
[null,null,null,null,null,null,null,null,null,null,null,null,null,null,null,null,null,null,null,null,"86.90.30","Attività svolta da psicologi"]
[null,null,null,null,null,null,null,null,null,null,null,null,null,null,null,null,null,null,null,null,"86.90.41","Attività degli ambulatori tricologici"]
[null,null,null,null,null,null,null,null,null,null,null,null,null,null,null,null,null,null,null,null,"86.90.42","Servizi di ambulanza, delle banche del sangue e altri servizi sanitari nca"]
[null,null,null,null,null,null,null,null,null,null,null,null,null,null,null,null,null,null,null,null,"87.10.00","Strutture di assistenza infermieristica residenziale per anziani"]
[null,null,null,null,null,null,null,null,null,null,null,null,null,null,null,null,null,null,null,null,"87.20.00","Strutture di assistenza residenziale per persone affette da ritardi mentali, disturbi mentali o che abusano di sostanze stupefacenti"]
[null,null,null,null,null,null,null,null,null,null,null,null,null,null,null,null,null,null,null,null,"87.30.00","Strutture di assistenza residenziale per anziani e disabili"]
[null,null,null,null,null,null,null,null,null,null,null,null,null,null,null,null,null,null,null,null,"87.90.00","Altre strutture di assistenza sociale residenziale"]
[null,null,null,null,null,null,null,null,null,null,null,null,null,null,null,null,null,null,null,null,"88.10.00","Assistenza sociale non residenziale per anziani e disabili"]
[null,null,null,null,null,null,null,null,null,null,null,null,null,null,null,null,null,null,null,null,"88.91.00","Servizi di asili nido; assistenza diurna per minori disabili"]
[null,null,null,null,null,null,null,null,null,null,null,null,null,null,null,null,null,null,null,null,"88.99.00","Altre attività di assistenza sociale non residenziale nca"]
[null,null,null,null,null,null,null,null,null,null,null,null,null,null,null,null,null,null,null,null,"90.01.01","Attività nel campo della recitazione"]
[null,null,null,null,null,null,null,null,null,null,null,null,null,null,null,null,null,null,null,null,"90.01.09","Altre rappresentazioni artistiche"]
[null,null,null,null,null,null,null,null,null,null,null,null,null,null,null,null,null,null,null,null,"90.02.01","Noleggio con operatore di strutture ed attrezzature per manifestazioni e spettacoli"]
[null,null,null,null,null,null,null,null,null,null,null,null,null,null,null,null,null,null,null,null,"90.02.02","Attività nel campo della regia"]
[null,null,null,null,null,null,null,null,null,null,null,null,null,null,null,null,null,null,null,null,"90.02.09","Altre attività di supporto alle rappresentazioni artistiche"]
[null,null,null,null,null,null,null,null,null,null,null,null,null,null,null,null,null,null,null,null,"90.03.01","Attività dei giornalisti indipendenti"]
[null,null,null,null,null,null,null,null,null,null,null,null,null,null,null,null,null,null,null,null,"90.03.02","Attività di conservazione e restauro di opere d'arte"]
[null,null,null,null,null,null,null,null,null,null,null,null,null,null,null,null,null,null,null,null,"90.03.09","Altre creazioni artistiche e letterarie"]
[null,null,null,null,null,null,null,null,null,null,null,null,null,null,null,null,null,null,null,null,"90.04.00","Gestione di teatri, sale da concerto e altre strutture artistiche"]
[null,null,null,null,null,null,null,null,null,null,null,null,null,null,null,null,null,null,null,null,"91.01.00","Attività di biblioteche ed archivi"]
[null,null,null,null,null,null,null,null,null,null,null,null,null,null,null,null,null,null,null,null,"91.02.00","Attività di musei"]
[null,null,null,null,null,null,null,null,null,null,null,null,null,null,null,null,null,null,null,null,"91.03.00","Gestione di luoghi e monumenti storici e attrazioni simili"]
[null,null,null,null,null,null,null,null,null,null,null,null,null,null,null,null,null,null,null,null,"91.04.00","Attività degli orti botanici, dei giardini zoologici e delle riserve naturali"]
[null,null,null,null,null,null,null,null,null,null,null,null,null,null,null,null,null,null,null,null,"92.00.01","Ricevitorie del Lotto, SuperEnalotto, Totocalcio eccetera"]
[null,null,null,null,null,null,null,null,null,null,null,null,null,null,null,null,null,null,null,null,"92.00.02","Gestione di apparecchi che consentono vincite in denaro funzionanti a moneta o a gettone"]
[null,null,null,null,null,null,null,null,null,null,null,null,null,null,null,null,null,null,null,null,"92.00.09","Altre attività connesse con le lotterie e le scommesse"]
[null,null,null,null,null,null,null,null,null,null,null,null,null,null,null,null,null,null,null,null,"93.11.10","Gestione di stadi"]
[null,null,null,null,null,null,null,null,null,null,null,null,null,null,null,null,null,null,null,null,"93.11.20","Gestione di piscine"]
[null,null,null,null,null,null,null,null,null,null,null,null,null,null,null,null,null,null,null,null,"93.11.30","Gestione di impianti sportivi polivalenti"]
[null,null,null,null,null,null,null,null,null,null,null,null,null,null,null,null,null,null,null,null,"93.11.90","Gestione di altri impianti sportivi nca"]
[null,null,null,null,null,null,null,null,null,null,null,null,null,null,null,null,null,null,null,null,"93.12.00","Attività di club sportivi"]
[null,null,null,null,null,null,null,null,null,null,null,null,null,null,null,null,null,null,null,null,"93.13.00","Gestione di palestre"]
[null,null,null,null,null,null,null,null,null,null,null,null,null,null,null,null,null,null,null,null,"93.19.10","Enti e organizzazioni sportive, promozione di eventi sportivi"]
[null,null,null,null,null,null,null,null,null,null,null,null,null,null,null,null,null,null,null,null,"93.19.91","Ricarica di bombole per attività subacquee"]
[null,null,null,null,null,null,null,null,null,null,null,null,null,null,null,null,null,null,null,null,"93.19.92","Attività delle guide alpine"]
[null,null,null,null,null,null,null,null,null,null,null,null,null,null,null,null,null,null,null,null,"93.19.99","Altre attività sportive nca"]
[null,null,null,null,null,null,null,null,null,null,null,null,null,null,null,null,null,null,null,null,"93.21.00","Parchi di divertimento e parchi tematici"]
[null,null,null,null,null,null,null,null,null,null,null,null,null,null,null,null,null,null,null,null,"93.29.10","Discoteche, sale da ballo night-club e simili"]
[null,null,null,null,null,null,null,null,null,null,null,null,null,null,null,null,null,null,null,null,"93.29.20","Gestione di stabilimenti balneari: marittimi, lacuali e fluviali"]
[null,null,null,null,null,null,null,null,null,null,null,null,null,null,null,null,null,null,null,null,"93.29.30","Sale giochi e biliardi"]
[null,null,null,null,null,null,null,null,null,null,null,null,null,null,null,null,null,null,null,null,"93.29.90","Altre attività di intrattenimento e di divertimento nca"]
[null,null,null,null,null,null,null,null,null,null,null,null,null,null,null,null,null,null,null,null,"94.11.00","Attività di organizzazione di datori di lavoro, federazioni di industria, commercio, artigianato e servizi, associazioni, unioni, federazioni fra istituzioni"]
[null,null,null,null,null,null,null,null,null,null,null,null,null,null,null,null,null,null,null,null,"94.12.10","Attività di federazioni e consigli di ordini e collegi professionali"]
[null,null,null,null,null,null,null,null,null,null,null,null,null,null,null,null,null,null,null,null,"94.12.20","Attività di associazioni professionali"]
[null,null,null,null,null,null,null,null,null,null,null,null,null,null,null,null,null,null,null,null,"94.20.00","Attività dei sindacati di lavoratori dipendenti"]
[null,null,null,null,null,null,null,null,null,null,null,null,null,null,null,null,null,null,null,null,"94.91.00","Attività delle organizzazioni religiose nell'esercizio del culto"]
[null,null,null,null,null,null,null,null,null,null,null,null,null,null,null,null,null,null,null,null,"94.92.00","Attività dei partiti e delle associazioni politiche"]
[null,null,null,null,null,null,null,null,null,null,null,null,null,null,null,null,null,null,null,null,"94.99.10","Attività di organizzazioni per la tutela degli interessi e dei diritti dei cittadini"]
[null,null,null,null,null,null,null,null,null,null,null,null,null,null,null,null,null,null,null,null,"94.99.20","Attività di organizzazioni che perseguono fini culturali, ricreativi e la coltivazione di hobby"]
[null,null,null,null,null,null,null,null,null,null,null,null,null,null,null,null,null,null,null,null,"94.99.30","Attività di organizzazioni patriottiche e associazioni combattentistiche"]
[null,null,null,null,null,null,null,null,null,null,null,null,null,null,null,null,null,null,null,null,"94.99.40","Attività di organizzazioni per la cooperazione e la solidarietà internazionale"]
[null,null,null,null,null,null,null,null,null,null,null,null,null,null,null,null,null,null,null,null,"94.99.50","Attività di organizzazioni per la filantropia"]
[null,null,null,null,null,null,null,null,null,null,null,null,null,null,null,null,null,null,null,null,"94.99.60","Attività di organizzazioni per la promozione e la difesa degli animali e dell'ambiente"]
[null,null,null,null,null,null,null,null,null,null,null,null,null,null,null,null,null,null,null,null,"94.99.90","Attività di altre organizzazioni associative nca"]
[null,null,null,null,null,null,null,null,null,null,null,null,null,null,null,null,null,null,null,null,"95.11.00","Riparazione e manutenzione di computer e periferiche"]
[null,null,null,null,null,null,null,null,null,null,null,null,null,null,null,null,null,null,null,null,"95.12.01","Riparazione e manutenzione di telefoni fissi, cordless e cellulari"]
[null,null,null,null,null,null,null,null,null,null,null,null,null,null,null,null,null,null,null,null,"95.12.09","Riparazione e manutenzione di altre apparecchiature per le comunicazioni"]
[null,null,null,null,null,null,null,null,null,null,null,null,null,null,null,null,null,null,null,null,"95.21.00","Riparazione di prodotti elettronici di consumo audio e video"]
[null,null,null,null,null,null,null,null,null,null,null,null,null,null,null,null,null,null,null,null,"95.22.01","Riparazione di elettrodomestici e di articoli per la casa"]
[null,null,null,null,null,null,null,null,null,null,null,null,null,null,null,null,null,null,null,null,"95.22.02","Riparazione di articoli per il giardinaggio"]
[null,null,null,null,null,null,null,null,null,null,null,null,null,null,null,null,null,null,null,null,"95.23.00","Riparazione di calzature e articoli da viaggio in pelle, cuoio o in altri materiali simili"]
[null,null,null,null,null,null,null,null,null,null,null,null,null,null,null,null,null,null,null,null,"95.24.01","Riparazione di mobili e di oggetti di arredamento"]
[null,null,null,null,null,null,null,null,null,null,null,null,null,null,null,null,null,null,null,null,"95.24.02","Laboratori di tappezzeria"]
[null,null,null,null,null,null,null,null,null,null,null,null,null,null,null,null,null,null,null,null,"95.25.00","Riparazione di orologi e di gioielli"]
[null,null,null,null,null,null,null,null,null,null,null,null,null,null,null,null,null,null,null,null,"95.29.01","Riparazione di strumenti musicali"]
[null,null,null,null,null,null,null,null,null,null,null,null,null,null,null,null,null,null,null,null,"95.29.02","Riparazione di articoli sportivi (escluse le armi sportive) e attrezzature da campeggio (incluse le biciclette)"]
[null,null,null,null,null,null,null,null,null,null,null,null,null,null,null,null,null,null,null,null,"95.29.03","Modifica e riparazione di articoli di vestiario non effettuate dalle sartorie"]
[null,null,null,null,null,null,null,null,null,null,null,null,null,null,null,null,null,null,null,null,"95.29.04","Servizi di riparazioni rapide, duplicazione chiavi, affilatura coltelli, stampa immediata su articoli tessili, incisioni rapide su metallo non prezioso"]
[null,null,null,null,null,null,null,null,null,null,null,null,null,null,null,null,null,null,null,null,"95.29.09","Riparazione di altri beni di consumo per uso personale e per la casa nca"]
[null,null,null,null,null,null,null,null,null,null,null,null,null,null,null,null,null,null,null,null,"96.01.10","Attività delle lavanderie industriali"]
[null,null,null,null,null,null,null,null,null,null,null,null,null,null,null,null,null,null,null,null,"96.01.20","Altre lavanderie, tintorie"]
[null,null,null,null,null,null,null,null,null,null,null,null,null,null,null,null,null,null,null,null,"96.02.01","Servizi dei saloni di barbiere e parrucchiere"]
[null,null,null,null,null,null,null,null,null,null,null,null,null,null,null,null,null,null,null,null,"96.02.02","Servizi degli istituti di bellezza"]
[null,null,null,null,null,null,null,null,null,null,null,null,null,null,null,null,null,null,null,null,"96.02.03","Servizi di manicure e pedicure"]
[null,null,null,null,null,null,null,null,null,null,null,null,null,null,null,null,null,null,null,null,"96.03.00","Servizi di pompe funebri e attività connesse"]
[null,null,null,null,null,null,null,null,null,null,null,null,null,null,null,null,null,null,null,null,"96.04.10","Servizi di centri per il benessere fisico (esclusi gli stabilimenti termali)"]
[null,null,null,null,null,null,null,null,null,null,null,null,null,null,null,null,null,null,null,null,"96.04.20","Stabilimenti termali"]
[null,null,null,null,null,null,null,null,null,null,null,null,null,null,null,null,null,null,null,null,"96.09.01","Attività di sgombero di cantine, solai e garage"]
[null,null,null,null,null,null,null,null,null,null,null,null,null,null,null,null,null,null,null,null,"96.09.02","Attività di tatuaggio e piercing"]
[null,null,null,null,null,null,null,null,null,null,null,null,null,null,null,null,null,null,null,null,"96.09.03","Agenzie matrimoniali e d'incontro"]
[null,null,null,null,null,null,null,null,null,null,null,null,null,null,null,null,null,null,null,null,"96.09.04","Servizi di cura degli animali da compagnia (esclusi i servizi veterinari)"]
[null,null,null,null,null,null,null,null,null,null,null,null,null,null,null,null,null,null,null,null,"96.09.05","Organizzazione di feste e cerimonie"]
[null,null,null,null,null,null,null,null,null,null,null,null,null,null,null,null,null,null,null,null,"96.09.09","Altre attività di servizi per la persona nca"]
[null,null,null,null,null,null,null,null,null,null,null,null,null,null,null,null,null,null,null,null,"97.00.00","Attività di famiglie e convivenze come datori di lavoro per personale domestico"]
[null,null,null,null,null,null,null,null,null,null,null,null,null,null,null,null,null,null,null,null,"98.10.00","Produzione di beni indifferenziati per uso proprio da parte di famiglie e convivenze"]
[null,null,null,null,null,null,null,null,null,null,null,null,null,null,null,null,null,null,null,null,"98.20.00","Produzione di servizi indifferenziati per uso proprio da parte di famiglie e convivenze"]
[null,null,null,null,null,null,null,null,null,null,null,null,null,null,null,null,null,null,null,null,"99.00.00","Organizzazioni ed organismi extraterritoriali"]

{"sheet":"TABELLA 2","index":2,"n_rows":37,"n_cols":15,"rows_kept":37,"cut":false,"hidden":false,"merged":[[9,8,9,9],[3,4,3,5],[3,8,3,9],[1,0,1,13],[0,0,0,13],[3,1,3,3],[6,4,6,5],[26,13,27,13],[28,12,29,12],[28,13,29,13],[14,12,15,12],[14,13,15,13],[16,12,17,12],[16,13,17,13],[18,12,19,12],[18,13,19,13],[20,13,21,13],[24,12,25,12],[24,13,25,13],[33,1,33,13],[34,1,34,13],[35,1,35,13],[36,1,36,13],[12,4,12,5],[12,6,12,7],[12,8,12,9],[12,10,12,11],[12,12,12,13],[13,1,13,3],[20,12,21,12],[30,12,31,12],[30,13,31,13],[26,12,27,12],[22,12,23,12],[22,13,23,13]]}
["TABELLA 2",null,null,null,null,null,null,null,null,null,null,null,null,null,"n.d."]
["INFORMAZIONI GENERALI SULLE UNITA’ PRODUTTIVE NELL'AMBITO COMUNALE (a)"]
[]
[null,"1. Localizzazione"]
[null,null,null,null,"(Comune)",null,null,null,"(Provincia)"]
[]
[]
[null,null,null,null,"(Regione)"]
[]
[null,"2. Numero totale delle unità produttive presenti nel comune "]
[]
[null,"3. Occupati alle dipendenze per ciascuna unità produttiva con più di 100 dipendenti al 31.12.2015 (secondo anno del biennio) (b)"]
[null,null,null,null,"DIRIGENTI",null,"QUADRI",null,"IMPIEGATI (c)   \n(e CS)",null,"OPERAI (d) \n(e APPR)",null,"TOTALE"]
[null,null,null,null,"MF","F","MF","F","MF","F","MF","F","MF","F"]
[null,"U.P.",1,null,null,null,null,null,null,null,null,null,{"$f":"E15+G15+I15+K15","v":0},{"$f":"F15+H15+J15+L15","v":0}]
[]
[null,"U.P.",2,null,null,null,null,null,null,null,null,null,{"$f":"E17+G17+I17+K17","v":0},{"$f":"F17+H17+J17+L17","v":0}]
[]
[null,"U.P.",3,null,null,null,null,null,null,null,null,null,{"$f":"E19+G19+I19+K19","v":0},{"$f":"F19+H19+J19+L19","v":0}]
[]
[null,"U.P.",4,null,null,null,null,null,null,null,null,null,{"$f":"E21+G21+I21+K21","v":0},{"$f":"F21+H21+J21+L21","v":0}]
[]
[null,"U.P.",5,null,null,null,null,null,null,null,null,null,{"$f":"E23+G23+I23+K23","v":0},{"$f":"F23+H23+J23+L23","v":0}]
[]
[null,"U.P.",6,null,null,null,null,null,null,null,null,null,{"$f":"E25+G25+I25+K25","v":0},{"$f":"F25+H25+J25+L25","v":0}]
[]
[null,"U.P.",7,null,null,null,null,null,null,null,null,null,{"$f":"E27+G27+I27+K27","v":0},{"$f":"F27+H27+J27+L27","v":0}]
[]
[null,"U.P.",8,null,null,null,null,null,null,null,null,null,{"$f":"E29+G29+I29+K29","v":0},{"$f":"F29+H29+J29+L29","v":0}]
[]
[null,"U.P.",9,null,null,null,null,null,null,null,null,null,{"$f":"E31+G31+I31+K31","v":0},{"$f":"F31+H31+J31+L31","v":0}]
[]
[null,"Nota: indicare con n.d. se il fenomeno è presente,  ma il dato non è disponibile."]
[null,"(a) I dati vanno riferiti al complesso delle unità produttive e delle dipendenze nonchè per ciascuna unità produttiva con più di 100 dipendenti."]
[null,"(b) Occupati alle dipendenze: vanno considerati tutti i lavoratori con un contratto di lavoro subordinato (inclusi quindi i cassintegrati, i dipendenti in aspettativa e le lavoratrici in maternità). Se l’impresa ha fatto ricorso al lavoro a domicilio, i lavoratori subordinati a domicilio non vanno inclusi  nei dati della tavola."]
[null,"(c) Includere tra gli impiegati le categorie speciali (o intermedi, o equiparati)."]
[null,"(d) Includere tra gli operai gli apprendisti."]

{"sheet":"TABELLA 3","index":3,"n_rows":26,"n_cols":15,"rows_kept":26,"cut":false,"hidden":false,"merged":[[14,20,15,20],[27,1,27,12],[4,2,5,2],[13,1,13,12],[6,2,7,2],[8,2,9,2],[4,11,5,11],[4,12,5,12],[6,11,7,11],[6,12,7,12],[8,11,9,11],[8,12,9,12],[25,1,25,12],[21,1,22,12],[23,1,24,12],[14,1,14,12],[0,0,0,12],[1,0,1,12],[15,1,15,12],[18,1,18,12],[17,1,17,12],[16,1,16,12],[2,11,2,12],[3,1,3,2],[2,3,2,4],[2,5,2,6],[2,7,2,8],[2,9,2,10]]}
["TABELLA 3 ",null,null,null,null,null,null,null,null,null,null,null,null,null,"n.d."]
["Occupati alle dipendenze al 31.12.2014 (primo anno del biennio) e al 31.12.2015 (secondo anno del biennio) (a)"]
[null,null,null,"DIRIGENTI",null,"QUADRI",null,"IMPIEGATI (b)   \n(e CS)",null,"OPERAI (c)\n(e APPR)",null,"TOTALE"]
[null,null,null,"MF","F","MF","F","MF","F","MF","F","MF","F"]
[null,"1.","Occupati alle dipendenze al 31.12.2014 (d) (primo anno del biennio)",null,null,null,null,null,null,null,null,{"$f":"D5+F5+H5+J5","v":0},{"$f":"E5+G5+I5+K5","v":0}]
[]
[null,"2.","Entrate (e)",null,null,null,null,null,null,null,null,{"$f":"D7+F7+H7+J7","v":0},{"$f":"E7+G7+I7+K7","v":0}]
[]
[null,"3.","Uscite (f) ",null,null,null,null,null,null,null,null,{"$f":"D9+F9+H9+J9","v":0},{"$f":"E9+G9+I9+K9","v":0}]
[]
[null,"4.","Occupati alle dipendenze al 31.12.2015 (g) (secondo anno del biennio)",{"$f":"D5+D7-D9","v":0},{"$f":"E5+E7-E9","v":0},0,0,0,0,0,0,{"$f":"D11+F11+H11+J11","v":0},{"$f":"E11+G11+I11+K11","v":0}]
[]
[null,"Nota: indicare con n.d. se il fenomeno è presente,  ma il dato non è disponibile."]
[null,"(a) I dati vanno riferiti al complesso delle unità produttive e delle dipendenze nonchè per ciascuna unità produttiva con più di 100 dipendenti."]
[null,"(b) Includere tra gli impiegati le categorie speciali (o intermedi, o equiparati)."]
[null,"(c) Includere tra gli operai gli apprendisti."]
[null,"(d) Occupati alle dipendenze: vanno considerati tutti i lavoratori con un contratto di lavoro subordinato (inclusi quindi i cassintegrati, i dipendenti in aspettativa, le lavoratrici in maternità)."]
[null,"Se l’impresa ha fatto ricorso al lavoro a domicilio, i lavoratori subordinati a domicilio non vanno inclusi nei dati della tavola."]
[null,"Indicare qui il totale dei lavoratori a domicilio che risultano nel registro dell’impresa al 31.12.2015:"]
[null,null,null,"MF   (no.)"]
[null,null,null,"F     (no.)"]
[null,"(e) Entrate: includono le assunzioni; i trasferimenti da unità produttive o dipendenze della stessa impresa localizzate in altri comuni; i passaggi da una categoria professionale all’altra (ad esempio, da “impiegati” a “quadri”, da “operai” a “impiegati”, etc.)"]
[]
[null,"(f) Uscite: includono le cessazioni del rapporto di lavoro, i trasferimenti ad altre unità produttive o dipendenze della stessa impresa localizzate in altri comuni, i passaggi da una categoria professionale all’altra (v. sopra)"]
[]
[null,"(g) I dati riportati nell’ultima riga devono essere pari alla somma algebrica dei dati riportati nelle tre righe precedenti."]

{"sheet":"TABELLA 4","index":4,"n_rows":167,"n_cols":11,"rows_kept":167,"cut":false,"hidden":false,"merged":[[105,2,106,2],[107,2,108,2],[111,2,112,2],[166,1,166,8],[30,2,31,2],[32,2,33,2],[163,1,163,8],[164,1,164,8],[165,1,165,8],[137,2,138,2],[139,2,140,2],[141,2,142,2],[143,2,144,2],[101,1,128,1],[41,1,82,1],[73,2,74,2],[28,2,29,2],[34,2,35,2],[49,2,50,2],[168,12,170,12],[163,12,164,12],[133,2,134,2],[96,2,97,2],[153,2,154,2],[155,2,156,2],[135,2,136,2],[145,2,146,2],[147,2,148,2],[149,2,150,2],[151,2,152,2],[125,2,126,2],[103,2,104,2],[22,2,23,2],[18,2,19,2],[16,2,17,2],[20,2,21,2],[26,2,27,2],[88,2,89,2],[98,2,99,2],[77,2,78,2],[79,2,80,2],[81,2,82,2],[84,2,85,2],[90,2,91,2],[92,2,93,2],[94,2,95,2],[86,2,87,2],[168,1,168,10],[167,1,167,10],[109,2,110,2],[121,2,122,2],[129,2,130,2],[131,2,132,2],[113,2,114,2],[115,2,116,2],[101,2,102,2],[157,2,158,2],[84,1,99,1],[5,2,6,2],[160,1,160,2],[127,2,128,2],[123,2,124,2],[117,2,118,2],[119,2,120,2],[41,2,42,2],[43,2,44,2],[45,2,46,2],[55,2,56,2],[69,2,70,2],[59,2,60,2],[61,2,62,2],[0,0,0,8],[1,0,1,8],[5,1,14,1],[16,1,39,1],[2,1,3,1],[2,2,3,2],[2,3,2,4],[2,5,2,6],[2,7,2,8],[7,2,8,2],[13,2,14,2],[11,2,12,2],[9,2,10,2],[38,2,39,2],[36,2,37,2],[24,2,25,2],[63,2,64,2],[65,2,66,2],[67,2,68,2],[47,2,48,2],[75,2,76,2],[51,2,52,2],[53,2,54,2],[57,2,58,2],[71,2,72,2]]}
["TABELLA 4",null,null,null,null,null,null,null,null,"n.d."]
["Occupati alle dipendenze al 31.12.2015 (secondo anno del biennio) per categoria professionale e livello di inquadramento: promozioni nell’anno e assunzioni nell’anno per categoria professionale e livello d’inquadramento"]
[null,"CATEG.\nPROFES.\n(1)","LIVELLO (a) \n(2)","OCCUPAZIONE (b) \nAL 31.12.2015",null,"PROMOZIONI (c)\nAL 31.12.2015",null,"ASSUNZIONI (d) \nAL 31.12.2015"]
[null,null,null,"MF\n(3)","F\n(4)","MF\n(5)","F\n(6)","MF\n(7)","F\n(8)"]
[]
[null,"Dirigenti",null,null,null,null,null,null,null,null,"Livello 1"]
[null,null,null,null,null,null,null,null,null,null,"Livello 2"]
[null,null,null,null,null,null,null,null,null,null,"Livello 3"]
[null,null,null,null,null,null,null,null,null,null,"Livello 4"]
[null,null,null,null,null,null,null,null,null,null,"Livello 5"]
[null,null,null,null,null,null,null,null,null,null,"Livello 6"]
[null,null,null,null,null,null,null,null,null,null,"Livello 7"]
[null,null,null,null,null,null,null,null,null,null,"Livello 8"]
[null,null,null,null,null,null,null,null,null,null,"Livello 9"]
[null,null,null,null,null,null,null,null,null,null,"Livello 10"]
[null,null,null,null,null,null,null,null,null,null,"Livello 11"]
[null,"Quadri ","Livello 1",null,null,null,null,null,null,null,"Livello 12"]
[null,null,null,null,null,null,null,null,null,null,"Livello 13"]
[null,null,"Livello 2",null,null,null,null,null,null,null,"Livello 14"]
[null,null,null,null,null,null,null,null,null,null,"Livello 15"]
[null,null,null,null,null,null,null,null,null,null,"Livello 16"]
[null,null,null,null,null,null,null,null,null,null,"Livello 17"]
[null,null,null,null,null,null,null,null,null,null,"Livello 18"]
[null,null,null,null,null,null,null,null,null,null,"Livello 19"]
[null,null,null,null,null,null,null,null,null,null,"Livello 20"]
[null,null,null,null,null,null,null,null,null,null,"Livello 21"]
[null,null,null,null,null,null,null,null,null,null,"Livello 22"]
[null,null,null,null,null,null,null,null,null,null,"Livello 23"]
[null,null,null,null,null,null,null,null,null,null,"Livello 24"]
[null,null,null,null,null,null,null,null,null,null,"Livello 25"]
[null,null,null,null,null,null,null,null,null,null,"Livello 22"]
[null,null,null,null,null,null,null,null,null,null,"Livello 23"]
[null,null,null,null,null,null,null,null,null,null,"Livello 24"]
[null,null,null,null,null,null,null,null,null,null,"Livello 25"]
[null,null,null,null,null,null,null,null,null,null,"Livello 26"]
[null,null,null,null,null,null,null,null,null,null,"Livello 27"]
[null,null,null,null,null,null,null,null,null,null,"Livello 28"]
[null,null,null,null,null,null,null,null,null,null,"Livello 29"]
[null,null,null,null,null,null,null,null,null,null,"Livello 30"]
[null,null,null,null,null,null,null,null,null,null,"Altro Livello"]
[null,null,null,null,null,null,null,null,null,null,"Nd"]
[null,"Impiegati"]
[]
[]
[]
[]
[]
[]
[]
[]
[]
[]
[]
[]
[]
[]
[]
[]
[]
[]
[]
[]
[]
[]
[]
[]
[]
[]
[]
[]
[]
[]
[]
[]
[]
[]
[]
[]
[]
[]
[]
[]
[]
[]
[null,"Categorie Speciali (C.S.)"]
[]
[]
[]
[]
[]
[]
[]
[]
[]
[]
[]
[null,null,null,null,null,null,null,null,null,null,""]
[null,null,null,null,null,null,null,null,null,null,""]
[null,null,null,null,null,null,null,null,null,null,""]
[null,null,null,null,null,null,null,null,null,null,""]
[]
[null,"Operai (inclusi Apprendisti)"]
[]
[]
[]
[]
[]
[]
[]
[]
[]
[]
[]
[]
[]
[]
[]
[]
[]
[]
[]
[]
[]
[]
[]
[]
[]
[]
[]
[]
[]
[]
[]
[]
[]
[]
[]
[]
[]
[]
[]
[]
[]
[]
[]
[]
[]
[]
[]
[]
[]
[]
[]
[]
[]
[]
[]
[]
[]
[]
[null,"TOTALE",null,{"$f":"D6+D8+D10+D12+D14+D17+D19+D21+D23+D25+D27+D29+D31+D33+D35+D37+D39+D42+D44+D46+D48++D50+D52+D54+D56+D58+D60+D62+D64+D66+D68+D70+D72+D74+D76+D78+D80+D82+D85+D87+D89+D91+D93+D95+D97+D99+D102+D104+D106+D108+D110+D112+D114+D116+D118+D120+D122+D124+D126+D128+D130+D132+D134+D136+D138+D140+D142+D144+D146+D148+D150+D152+D154+D156+D158","v":0},{"$f":"E6+E8+E10+E12+E14+E17+E19+E21+E23+E25+E27+E29+E31+E33+E35+E37+E39+E42+E44+E46+E48+E50+E52+E54+E56+E58+E60+E62+E64+E66+E68+E70+E72+E74+E76+E78+E80+E82+E85+E87+E89+E91+E93+E95+E97+E99+E102+E104+E106+E108+E110+E112+E114+E116+E118+E120+E122+E124+E126+E128+E130+E132+E134+E136+E138+E140+E142+E144+E146+E148+E150+E152+E154+E156+E158","v":0},{"$f":"F6+F8+F10+F12+F14+F17+F19+F21+F23+F25+F27+F29+F31+F33+F35+F37+F39+F42+F44+F46+F48+F50+F52+F54+F56+F58+F60+F62+F64+F66+F68+F70+F72+F74+F76+F78+F80+F82+F85+F87+F89+F91+F93+F95+F97+F99+F102+F104+F106+F108+F110+F112+F114+F116+F118+F120+F122+F124+F126+F128+F130+F132+F134+F136+F138+F140+F142+F144+F146+F148+F150+F152+F154+F156+F158","v":0},{"$f":"G6+G8+G10+G12+G14+G17+G19+G21+G23+G25+G27+G29+G31+G33+G35+G37+G39+G42+G44+G46+G48+G50+G52+G54+G56+G58+G60+G62+G64+G66+G68+G70+G72+G74+G76+G78+G80+G82+G85+G87+G89+G91+G93+G95+G97+G99+G102+G104+G106+G108+G110+G112+G114+G116+G118+G120+G122+G124+G126+G128+G130+G132+G134+G136+G138+G140+G142+G144+G146+G148+G150+G152+G154+G156+G158","v":0},{"$f":"H6+H8+H10+H12+H14+H17+H19+H21+H23+H25+H27+H29+H31+H33+H35+H37+H39+H42+H44+H46+H48+H50+H52+H54+H56+H58+H60+H62+H64+H66+H68+H70+H72+H74+H76+H78+H80+H82+H85+H87+H89+H91+H93+H95+H97+H99+H102+H104+H106+H108+H110+H112+H114+H116+H118+H120+H122+H124+H126+H128+H130+H132+H134+H136+H138+H140+H142+H144+H146+H148+H150+H152+H154+H156+H158","v":0},{"$f":"I6+I8+I10+I12+I14+I17+I19+I21+I23+I25+I27+I29+I31+I33+I35+I37+I39+I42+I44+I46+I48+I50+I52+I54+I56+I58+I60+I62+I64+I66+I68+I70+I72+I74+I76+I78+I80+I82+I85+I87+I89+I91+I93+I95+I97+I99+I102+I104+I106+I108+I110+I112+I114+I116+I118+I120+I122+I124+I126+I128+I130+I132+I134+I136+I138+I140+I142+I144+I146+I148+I150+I152+I154+I156+I158","v":0},null,{"$f":"K6+K18+K20+K22+K24+K29+K35+K37+K39+K41+#REF!+#REF!+#REF!+#REF!+#REF!+#REF!+#REF!+K44+K46+K48+K50+K52+K54+K56+#REF!+#REF!+K58+K60+K62+K64+K66+K68+K70++K72+K74+K76+#REF!+K78+K80+K82+K85+K87+K89+K97+K99+K102+K104+K106+K108+K110+K112+K114+K116+K118+K120+K122+K124+K126+K128+K130+K132++K134+K136+K146+K148+K150+K152+K154+K156+K158","v":{"$error":"#VALUE!"}}]
[]
[null,"Nota: indicare con n.d. se il fenomeno è presente,  ma il dato non è disponibile."]
[null,"(a) Specificare nella colonna (2), per le categorie considerate dal proprio CCNL, i codici di livello previsti dal CCNL applicato. Per ciascuna categoria professionale considerare i livelli partendo da quello più elevato."]
[null,"(b) Specificare nelle colonne (3) e (4) il numero di lavoratori (MF) e lavoratrici (F) appartenenti ai corrispondenti livelli così come risulta al 31.12.2015 (secondo anno del biennio) partendo da quello più elevato. Sono esclusi i lavoratori dipendenti a domicilio. Il totale degli occupati alle dipendenze deve coincidere con quanto riportato nella tabella 3 (riga 4)."]
[null,"(c) Con “promozioni” si intendono i passaggi di livello. Indicare il numero totale dei passaggi di livello verso l’alto registrati nel corso dell’anno, qualsiasi sia la motivazione della promozione (anzianità, merito, etc.). Ad esempio, se 10 lavoratori sono passati dal livello A al livello B, 15 dal livello B al livello C, e 2 dal livello A al livello C, in corrispondenza della riga di livello “B” scrivere 10, e in corrispondenza della riga di livello “C” scrivere 17."]
[null,"(d) Indicare il numero totale di assunzioni per livello, includendo anche i trasferimenti da unità produttive o dipendenze della stessa impresa localizzate in altri comuni."]

{"sheet":"TABELLA 5","index":5,"n_rows":38,"n_cols":14,"rows_kept":38,"cut":false,"hidden":false,"merged":[[4,1,5,2],[6,1,7,2],[8,1,9,2],[25,11,26,11],[25,12,26,12],[10,11,11,11],[10,12,11,12],[19,11,20,11],[19,12,20,12],[10,1,11,2],[12,1,12,2],[13,1,13,2],[14,1,14,2],[17,1,17,2],[18,1,18,2],[19,1,20,2],[27,11,28,11],[27,12,28,12],[25,1,26,2],[27,1,28,2],[21,11,22,11],[21,12,22,12],[23,11,24,11],[23,12,24,12],[21,1,22,2],[23,1,24,2],[0,0,0,12],[1,0,1,12],[36,1,36,5],[37,1,37,5],[2,3,2,4],[2,5,2,6],[2,7,2,8],[2,9,2,10],[2,11,2,12],[4,11,5,11],[4,12,5,12],[6,11,7,11],[6,12,7,12],[8,11,9,11],[8,12,9,12],[15,1,16,1]]}
["TABELLA 5",null,null,null,null,null,null,null,null,null,null,null,null,"n.d."]
["Occupati alle dipendenze al 31.12.2015 (secondo anno del biennio) per categoria professionale e tipo di contratto, in Cassa Integrazione (CIG) e in aspettativa"]
[null,null,null,"DIRIGENTI",null,"QUADRI",null,"IMPIEGATI  \n(e CS)",null,"OPERAI \n(e APPR)",null,"TOTALE"]
[null,null,null,"MF","F","MF","F","MF","F","MF","F","MF","F"]
[null,"Contratto a tempo indeterminato",null,null,null,null,null,null,null,null,null,{"$f":"D5+F5+H5+J5","v":0},{"$f":"E5+G5+I5+K5","v":0}]
[]
[null,"   - di cui a PT ",null,null,null,null,null,null,null,null,null,{"$f":"D7+F7+H7+J7","v":0},{"$f":"E7+G7+I7+K7","v":0}]
[]
[null,"Contratto a tempo determinato(a)",null,null,null,null,null,null,null,null,null,{"$f":"D9+F9+H9+J9","v":0},{"$f":"E9+G9+I9+K9","v":0}]
[]
[null,"   - di cui a PT ",null,null,null,null,null,null,null,null,null,{"$f":"D11+F11+H11+J11","v":0},{"$f":"E11+G11+I11+K11","v":0}]
[]
[null," - Contratto di formazione lavoro",null,null,null,null,null,null,null,null,null,0,0]
[null," - Contratto di apprendistato",null,null,null,null,null,null,null,null,null,0,0]
[null," - Contratto di solidarietà",null,null,null,null,null,null,null,null,null,0,0]
[null," - Altro  (specificare):",null,null,null,null,null,null,null,null,null,0,0]
[null,null,null,null,null,null,null,null,null,null,null,{"$f":"D17+F17+H17+J17","v":0},{"$f":"E17+G17+I17+K17","v":0},"Lavoratori precari"]
[null,"TOTALE DIPENDENTI(b)c) ",null,null,null,null,null,null,null,null,null,{"$f":"L5+L9+L13+L14+L15+L16+L17","v":0},0,"Tirocinanti"]
[null,"        - di cui a PT ",null,{"$f":"D7+D11","v":0},{"$f":"E7+E11","v":0},0,0,0,0,0,0,0,0,"Altro"]
[null,"DIPENDENTI in CIG a 0 ore",null,null,null,null,null,null,null,null,null,0,0]
[]
[null,"DIPENDENTI in CIG non a 0 ore",null,null,null,null,null,null,null,null,null,0,0]
[]
[null,"    - di cui a rotazione",null,null,null,null,null,null,null,null,null,{"$f":"D24+F24+H24+J24","v":0},{"$f":"E24+G24+I24+K24","v":0}]
[]
[null,"DIPENDENTI in ASPETTATIVA(d)",null,null,null,null,null,null,null,null,null,{"$f":"D26+F26+H26+J26","v":0},{"$f":"E26+G26+I26+K26","v":0}]
[]
[null,"   - di cui in maternità",null,null,null,null,null,null,null,null,null,{"$f":"D28+F28+H28+J28","v":0},{"$f":"E28+G28+I28+K28","v":0}]
[]
[null,"Legenda: PT = tempo parziale"]
[]
[null,"Nota: indicare con n.d. se il fenomeno è presente, ma il dato non è disponibile."]
[null,"(a) Includervi i contratti stagionali."]
[null,"(b) Le modalità di occupazione sono esclusive; ovvero, la somma di ciascuna colonna deve coincidere con il dato riportato nella riga “TOTALE dipendenti”."]
[null,"(c) Il totale riportato in questa riga deve coincidere con il totale riportato nella tabella 3. (riga 4)."]
[null,"(d) Vanno inclusi tutti i lavoratori assenti con diritto alla conservazione dl posto di lavoro (malattia, servizio di leva, maternità, altro)."]
[null,""]
[null,""]

{"sheet":"TABELLA 6","index":6,"n_rows":48,"n_cols":12,"rows_kept":48,"cut":false,"hidden":false,"merged":[[6,16,7,16],[8,16,9,16],[44,0,44,10],[46,0,46,10],[47,0,47,10],[6,0,7,0],[6,9,7,9],[6,10,7,10],[8,9,9,9],[8,10,9,10],[10,9,11,9],[18,9,20,9],[18,10,20,10],[10,10,11,10],[13,9,14,9],[13,10,14,10],[21,9,22,9],[21,10,22,10],[23,9,24,9],[23,10,24,10],[2,1,2,2],[2,3,2,4],[2,5,2,6],[2,7,2,8],[2,9,2,10],[25,9,26,9],[25,10,26,10],[27,9,28,9],[27,10,28,10],[29,9,30,9],[29,10,30,10],[31,9,32,9],[31,10,32,10],[40,9,41,9],[40,10,41,10],[33,9,34,9],[33,10,34,10],[36,9,37,9],[36,10,37,10],[38,9,39,9],[38,10,39,10],[36,0,37,0],[38,0,39,0],[40,0,41,0],[33,0,34,0],[31,0,32,0],[29,0,30,0],[27,0,28,0],[25,0,26,0],[23,0,24,0],[21,0,22,0],[0,0,0,10],[1,0,1,10],[8,0,9,0],[19,0,20,0],[18,8,19,8],[18,7,19,7],[18,6,19,6],[18,5,19,5],[18,4,19,4],[18,3,19,3],[18,2,19,2],[18,1,19,1],[13,0,14,0],[15,9,16,9],[15,10,16,10],[15,0,16,0]]}
["TABELLA 6",null,null,null,null,null,null,null,null,null,null,"n.d."]
["Entrate ed uscite, trasformazione dei contratti registrate nell’anno 2015 (secondo anno del biennio) per categoria"]
[null,"DIRIGENTI",null,"QUADRI",null,"IMPIEGATI  \n(e CS)",null,"OPERAI \n(e APPR)",null,"TOTALE"]
[null,"MF","F","MF","F","MF","F","MF","F","MF","F"]
[]
["ENTRATE",{"$f":"B7+B9+B11","v":0},0,0,0,0,0,0,0,0,0]
["- da altra unità produttiva o dipendenza (a)",null,null,null,null,null,null,null,null,{"$f":"B7+D7+F7+H7","v":0},{"$f":"C7+E7+G7+I7","v":0}]
[]
["- passaggio da altra categoria (b)",null,null,null,null,null,null,null,null,{"$f":"B9+D9+F9+H9","v":0},{"$f":"C9+E9+G9+I9","v":0}]
[]
["- nuova assunzione",null,null,null,null,null,null,null,null,{"$f":"B11+D11+F11+H11","v":0},{"$f":"C11+E11+G11+I11","v":0}]
[]
["USCITE",{"$f":"B14+B16+B18","v":0},0,0,0,0,0,0,0,0,0]
["- ad altra unità produttiva o dipendenza (a)",null,null,null,null,null,null,null,null,{"$f":"B14+D14+F14+H14","v":0},{"$f":"C14+E14+G14+I14","v":0}]
[]
["- passaggio ad altra categoria (b)",null,null,null,null,null,null,null,null,{"$f":"B16+D16+F16+H16","v":0},{"$f":"C16+E16+G16+I16","v":0}]
[]
["- cessazione rapporto di lavoro (c)",{"$f":"SUM(B19:B34)","v":0},{"$f":"SUM(C19:C34)","v":0},0,0,0,0,{"$f":"SUM(H19:H34)","v":0},0,0,0]
["    di cui",null,null,null,null,null,null,null,null,{"$f":"B19+D19+F19+H19","v":0},{"$f":"C19+E19+G19+I19","v":0}]
["    - pensionamenti"]
[]
["     - dimissioni volontarie",null,null,null,null,null,null,null,null,{"$f":"B22+D22+F22+H22","v":0},{"$f":"C22+E22+G22+I22","v":0}]
[]
["     - licenziamenti individuali",null,null,null,null,null,null,null,null,{"$f":"B24+D24+F24+H24","v":0},{"$f":"C24+E24+G24+I24","v":0}]
[]
["     - licenziamenti collettivi",null,null,null,null,null,null,null,null,{"$f":"B26+D26+F26+H26","v":0},{"$f":"C26+E26+G26+I26","v":0}]
[]
["     - prepensionamenti",null,null,null,null,null,null,null,null,{"$f":"B28+D28+F28+H28","v":0},{"$f":"C28+E28+G28+I28","v":0}]
[]
["     - mobilità",null,null,null,null,null,null,null,null,{"$f":"B30+D30+F30+H30","v":0},{"$f":"C30+E30+G30+I30","v":0}]
[]
["     - scadenza contratto (d)",null,null,null,null,null,null,null,null,{"$f":"B32+D32+F32+H32","v":0},{"$f":"C32+E32+G32+I32","v":0}]
[]
["      - morte, invalidità",null,null,null,null,null,null,null,null,{"$f":"B34+D34+F34+H34","v":0},{"$f":"C34+E34+G34+I34","v":0}]
[]
["TRASFORMAZIONE CONTRATTI",{"$f":"B37+B39+B41","v":0},{"$f":"C37+C39+C41","v":0},0,0,0,0,0,0,0,0]
["- da tempo determinato a tempo indeterminato (e)",null,null,null,null,null,null,null,null,0,0]
[]
["- da PT a tempo pieno",null,null,null,null,null,null,null,null,{"$f":"B39+D39+F39+H39","v":0},{"$f":"C39+E39+G39+I39","v":0}]
[]
["- da tempo pieno a PT",null,null,null,null,null,null,null,null,{"$f":"B41+D41+F41+H41","v":0},{"$f":"C41+E41+G41+I41","v":0}]
[]
["Nota: indicare con n.d. se il fenomeno è presente,  ma il dato non è disponibile."]
["(a) Includere i trasferimenti da unità produttiva o dipendenze della stessa impresa localizzate in altri comuni."]
["(b) Si deve intendere nel senso di mobilità verticale tra categorie professionali (ad esempio, da quadri a dirigenti, da impiegati a quadri, da operai a categorie speciali, da operai a impiegati)."]
["(c ) Il dato riportato per le cessazioni deve essere uguale alla somma delle voci specificate in “di cui”."]
["(d) Includere tutti i casi di cessazione del rapporto lavorativo per scadenza dei termini previsti (contratto a tempo determinato, di Formazione-Lavoro, di apprendistato)."]
["(e) Indicare il numero totale dei casi in cui il contratto è stato trasformato da tempo determinato (c. a termine, CFL, di apprendistato) a tempo indeterminato."]

{"sheet":"TABELLA 7","index":7,"n_rows":14,"n_cols":13,"rows_kept":14,"cut":false,"hidden":false,"merged":[[0,0,0,11],[1,1,1,11],[10,1,10,11],[11,1,12,11],[13,1,14,11],[2,2,2,3],[2,4,2,5],[2,6,2,7],[2,8,2,9],[2,10,2,11],[5,10,6,10],[5,11,6,11],[5,1,6,1],[7,10,8,10],[7,11,8,11],[7,1,8,1]]}
["TABELLA 7",null,null,null,null,null,null,null,null,null,null,null,"n.d."]
[null,"Formazione del personale svolta nel corso dell’anno 2015 (secondo anno del biennio) per categoria professionale"]
[null,null,"DIRIGENTI",null,"QUADRI",null,"IMPIEGATI  \n(e CS)",null,"OPERAI \n(e APPR)",null,"TOTALE"]
[null,null,"MF","F","MF","F","MF","F","MF","F","MF","F"]
[null,"FORMAZIONE (a)"]
[null,"- n.ro partecipanti (b)",null,null,null,null,null,null,null,null,{"$f":"C6+E6+G6+I6","v":0},{"$f":"D6+F6+H6+J6","v":0}]
[]
[null,"- n.ro totale ore di formazione (c )",null,null,null,null,null,null,null,null,{"$f":"C8+E8+G8+I8","v":0},{"$f":"D8+F8+H8+J8","v":0}]
[]
[null,"Nota: indicare  con n.d. se il fenomeno è presente,  ma il dato non è disponibile."]
[null,"(a) Con la formazione si intende l’attività di formazione svolta attraverso corsi teorici e/o pratici istituiti per il personale dipendente. L’affiancamento non deve quindi essere conteggiato come attività di formazione, così come le ore di lavoro dei giovani assunti con CFL."]
[null,"(b) Indicare il numero complessivo di dipendenti, per ciascuna categoria, coinvolti in attività di formazione nel corso dell’anno considerato. Se un lavoratore nel corso dell’anno ha partecipato a più corsi di formazione, considerare come più partecipanti. Ad esempio per la partecipazione della stessa persona, nel corso dell’anno, a due corsi conteggiare 2."]
[]
[null,"(c ) Indicare il numero complessivo di ore di formazione effettuate, per ciascuna categoria, nel corso dell’anno considerato."]

{"sheet":"TABELLA 8","index":8,"n_rows":212,"n_cols":6,"rows_kept":212,"cut":false,"hidden":false,"merged":[[155,2,156,2],[153,2,154,2],[198,1,210,4],[105,2,106,2],[111,2,112,2],[113,2,114,2],[115,2,116,2],[117,2,118,2],[109,2,110,2],[186,1,186,4],[187,1,197,4],[147,2,148,2],[157,2,158,2],[107,2,108,2],[143,2,144,2],[145,2,146,2],[160,1,160,2],[16,1,39,1],[79,2,80,2],[119,2,120,2],[103,2,104,2],[135,2,136,2],[96,2,97,2],[94,2,95,2],[92,2,93,2],[101,2,102,2],[123,2,124,2],[125,2,126,2],[127,2,128,2],[129,2,130,2],[131,2,132,2],[149,2,150,2],[2,1,3,1],[2,2,3,2],[2,3,2,4],[5,1,14,1],[5,2,6,2],[7,2,8,2],[9,2,10,2],[11,2,12,2],[13,2,14,2],[51,2,52,2],[151,2,152,2],[141,2,142,2],[137,2,138,2],[139,2,140,2],[121,2,122,2],[133,2,134,2],[84,1,99,1],[84,2,85,2],[65,2,66,2],[53,2,54,2],[55,2,56,2],[63,2,64,2],[41,1,82,1],[41,2,42,2],[43,2,44,2],[45,2,46,2],[67,2,68,2],[69,2,70,2],[71,2,72,2],[77,2,78,2],[47,2,48,2],[49,2,50,2],[16,2,17,2],[20,2,21,2],[22,2,23,2],[30,2,31,2],[24,2,25,2],[26,2,27,2],[32,2,33,2],[18,2,19,2],[28,2,29,2],[36,2,37,2],[34,2,35,2],[101,1,128,1],[129,1,158,1],[211,1,211,4],[0,0,0,4],[1,0,1,4],[98,2,99,2],[90,2,91,2],[57,2,58,2],[81,2,82,2],[59,2,60,2],[61,2,62,2],[75,2,76,2],[73,2,74,2],[86,2,87,2],[88,2,89,2],[38,2,39,2]]}
["TABELLA 8",null,null,null,null,"n.d."]
["Retribuzione annua 2015 (secondo anno del biennio) per livello e categoria professionale (a)"]
[null,"CATEG.\n(1)","LIVELLO\n(2)","MONTE RETRIBUTIVO LORDO ANNUO (b) "]
[null,null,null,"F\n(3)","MF\n(4)"]
[]
[null,"Dirigenti",{"$f":"'TABELLA 4'!C6:C7","v":0}]
[]
[null,null,{"$f":"'TABELLA 4'!C8:C9","v":0}]
[]
[null,null,{"$f":"'TABELLA 4'!C10:C11","v":0}]
[]
[null,null,{"$f":"'TABELLA 4'!C12:C13","v":0}]
[]
[null,null,{"$f":"'TABELLA 4'!C14:C15","v":0}]
[]
[]
[null,"Quadri ",{"$f":"'TABELLA 4'!C17:C18","v":"Livello 1"}]
[]
[null,null,{"$f":"'TABELLA 4'!C19:C20","v":"Livello 2"}]
[]
[null,null,{"$f":"'TABELLA 4'!C21:C22","v":0}]
[]
[null,null,{"$f":"'TABELLA 4'!C23:C24","v":0}]
[]
[null,null,{"$f":"'TABELLA 4'!C25:C26","v":0}]
[]
[null,null,{"$f":"'TABELLA 4'!C27:C28","v":0}]
[]
[null,null,{"$f":"'TABELLA 4'!C29:C30","v":0}]
[]
[null,null,{"$f":"'TABELLA 4'!C31:C32","v":0}]
[]
[null,null,{"$f":"'TABELLA 4'!C33:C34","v":0}]
[]
[null,null,{"$f":"'TABELLA 4'!C35:C36","v":0}]
[]
[null,null,{"$f":"'TABELLA 4'!C37:C38","v":0}]
[]
[null,null,{"$f":"'TABELLA 4'!C39:C40","v":0}]
[]
[]
[null,"Impiegati",{"$f":"'TABELLA 4'!C42:C43","v":0}]
[]
[null,null,{"$f":"'TABELLA 4'!C44:C45","v":0}]
[]
[null,null,{"$f":"'TABELLA 4'!C46:C47","v":0}]
[]
[null,null,{"$f":"'TABELLA 4'!C48:C49","v":0}]
[]
[null,null,{"$f":"'TABELLA 4'!C50:C51","v":0}]
[]
[null,null,{"$f":"'TABELLA 4'!C52:C53","v":0}]
[]
[null,null,{"$f":"'TABELLA 4'!C54:C55","v":0}]
[]
[null,null,{"$f":"'TABELLA 4'!C56:C57","v":0}]
[]
[null,null,{"$f":"'TABELLA 4'!C58:C59","v":0}]
[]
[null,null,{"$f":"'TABELLA 4'!C60:C61","v":0}]
[]
[null,null,{"$f":"'TABELLA 4'!C62:C63","v":0}]
[]
[null,null,{"$f":"'TABELLA 4'!C64:C65","v":0}]
[]
[null,null,{"$f":"'TABELLA 4'!C66:C67","v":0}]
[]
[null,null,{"$f":"'TABELLA 4'!C68:C69","v":0}]
[]
[null,null,{"$f":"'TABELLA 4'!C70:C71","v":0}]
[]
[null,null,{"$f":"'TABELLA 4'!C72:C73","v":0}]
[]
[null,null,{"$f":"'TABELLA 4'!C74:C75","v":0}]
[]
[null,null,{"$f":"'TABELLA 4'!C76:C77","v":0}]
[]
[null,null,{"$f":"'TABELLA 4'!C78:C79","v":0}]
[]
[null,null,{"$f":"'TABELLA 4'!C80:C81","v":0}]
[]
[null,null,{"$f":"'TABELLA 4'!C82:C83","v":0}]
[]
[]
[null,"Categorie Speciali (C.S.)",{"$f":"'TABELLA 4'!C85:C86","v":0}]
[]
[null,null,{"$f":"'TABELLA 4'!C87:C88","v":0}]
[]
[null,null,{"$f":"'TABELLA 4'!C89:C90","v":0}]
[]
[null,null,{"$f":"'TABELLA 4'!C91:C92","v":0}]
[]
[null,null,{"$f":"'TABELLA 4'!C93:C94","v":0}]
[]
[null,null,{"$f":"'TABELLA 4'!C95:C96","v":0}]
[]
[null,null,{"$f":"'TABELLA 4'!C97:C98","v":0}]
[]
[null,null,{"$f":"'TABELLA 4'!C99:C100","v":0}]
[]
[]
[null,"Operai (inclusi Apprendisti)",{"$f":"'TABELLA 4'!C102:C103","v":0}]
[]
[null,null,{"$f":"'TABELLA 4'!C104:C105","v":0}]
[]
[null,null,{"$f":"'TABELLA 4'!C106:C107","v":0}]
[]
[null,null,{"$f":"'TABELLA 4'!C108:C109","v":0}]
[]
[null,null,{"$f":"'TABELLA 4'!C110:C111","v":0}]
[]
[null,null,{"$f":"'TABELLA 4'!C112:C113","v":0}]
[]
[null,null,{"$f":"'TABELLA 4'!C114:C115","v":0}]
[]
[null,null,{"$f":"'TABELLA 4'!C116:C117","v":0}]
[]
[null,null,{"$f":"'TABELLA 4'!C118:C119","v":0}]
[]
[null,null,{"$f":"'TABELLA 4'!C120:C121","v":0}]
[]
[null,null,{"$f":"'TABELLA 4'!C122:C123","v":0}]
[]
[null,null,{"$f":"'TABELLA 4'!C124:C125","v":0}]
[]
[null,null,{"$f":"'TABELLA 4'!C126:C127","v":0}]
[]
[null,null,{"$f":"'TABELLA 4'!C128:C129","v":0}]
[]
[null,"Operai (inclusi Apprendisti)",{"$f":"'TABELLA 4'!C130:C131","v":0}]
[]
[null,null,{"$f":"'TABELLA 4'!C132:C133","v":0}]
[]
[null,null,{"$f":"'TABELLA 4'!C134:C135","v":0}]
[]
[null,null,{"$f":"'TABELLA 4'!C136:C137","v":0}]
[]
[null,null,{"$f":"'TABELLA 4'!C138:C139","v":0}]
[]
[null,null,{"$f":"'TABELLA 4'!C140:C141","v":0}]
[]
[null,null,{"$f":"'TABELLA 4'!C142:C143","v":0}]
[]
[null,null,{"$f":"'TABELLA 4'!C144:C145","v":0}]
[]
[null,null,{"$f":"'TABELLA 4'!C146:C147","v":0}]
[]
[null,null,{"$f":"'TABELLA 4'!C148:C149","v":0}]
[]
[null,null,{"$f":"'TABELLA 4'!C150:C151","v":0}]
[]
[null,null,{"$f":"'TABELLA 4'!C152:C153","v":0}]
[]
[null,null,{"$f":"'TABELLA 4'!C154:C155","v":0}]
[]
[null,null,{"$f":"'TABELLA 4'!C156:C157","v":0}]
[]
[null,null,{"$f":"'TABELLA 4'!C158:C159","v":0}]
[]
[]
[null,"TOTALE",null,{"$f":"D6+D8+D10+D12+D14+D17+D19+D21+D23+D25+D27+D29+D31+D33+D35+D37+D39+D42+D44+D46+D48+D50+D52+D54+D56+D58+D60+D62+D64+D66+D68+D70+D72+D74+D76++D78+D80+D82+D85+D87+D89+D91+D93+D95+D97+D99+D102+D104+D106+D108+D110+D112+D114+D116+D118+D120+D122+D124+D126+D128+D130+D132++D134+D136+D138+D140+D142+D144+D146+D148+D150+D152+D154+D156+D158","v":0},{"$f":"E6+E8+E10+E12+E14+E17+E19+E21+E23+E25+E27+E29+E31+E33+E35+E37+E39+E42+E44+E46+E48+E50+E52+E54+E56+E58+E60+E62+E64+E66+E68+E70+E72+E74+E76++E78+E80+E82+E85+E87+E89+E91+E93+E95+E97+E99+E102+E104+E106+E108+E110+E112++E114+E116+E118+E120+E122+E124+E126+E128+E130+E132+E134+E136+E138+E140+E142+E144+E146+E148+E150+E152+E154+E156+E158","v":0}]
[]
[]
[null,"DIRIGENTI (c ) ","MF","F","M"]
[null,"4° scaglione retributivo"]
[null,"3° scaglione retributivo"]
[null,"2° scaglione retributivo"]
[null,"1° scaglione retributivo"]
[]
[null,"DIRIGENTI(c)","MF","F","M"]
[null,"4° scaglione retributivo            DA",{"$f":"C174+0.01","v":0.03},{"$f":"D174+0.01","v":0.03},{"$f":"E174+0.01","v":0.03}]
[null," A",{"$f":"C182","v":0},{"$f":"D182","v":0},{"$f":"E182","v":0}]
[null,"3° scaglione retributivo            DA",{"$f":"C176+0.01","v":0.02},{"$f":"D176+0.01","v":0.02},{"$f":"E176+0.01","v":0.02}]
[null,"                      A",{"$f":"C173+C185","v":0.02},{"$f":"D173+D185","v":0.02},{"$f":"E173+E185","v":0.02}]
[null,"2° scaglione retributivo            DA",{"$f":"C178+0.01","v":0.01},{"$f":"D178+0.01","v":0.01},{"$f":"E178+0.01","v":0.01}]
[null,"                            A",{"$f":"C175+C185","v":0.01},{"$f":"D175+D185","v":0.01},{"$f":"E175+E185","v":0.01}]
[null,"1° scaglione retributivo            DA",{"$f":"C183","v":0},{"$f":"D183","v":0},{"$f":"E183","v":0}]
[null,"                            A",{"$f":"C183+C185","v":0},{"$f":"D183+D185","v":0},{"$f":"E183+E185","v":0}]
[]
[null,"* CALCOLA LO SCAGLIONE:"]
[null,null,"MF","F","M"]
[null,"Monte retributivo annuo massimo"]
[null,"Monte retributivo annuo minimo"]
[null,"Differenza",{"$f":"C182-C183","v":0},{"$f":"D182-D183","v":0},{"$f":"E182-E183","v":0}]
[null,"Ampiezza",{"$f":"C184/4","v":0},{"$f":"D184/4","v":0},{"$f":"E184/4","v":0}]
[null,"Nota: indicare con n.d. se il fenomeno è presente, ma il dato non è disponibile."]
[null,"(a) I dati vanno riferiti al complesso delle unità produttive e delle dipendenze nonché per ciascuna unità produttiva con più di cento dipendenti ."]
[null,"(b) Con “monte retributivo lordo annuo” va inteso il dato comprensivo di tutti gli elementi retributivi (al lordo delle ritenute fiscali  e previdenziali a carico dei dipendenti)\n- minimo tabellare\n- contingenza maturata\n- eventuali “indennità di funzione”\n- aumenti periodici di anzianità (scatti retributivi)\n- superminimi collettivi\n- superminimi individuali, incentivi individuali\n- premio di produzione\n- straordinari\n- altre voci retributive non elencate (3°elemento, cottimo, concottimo, integrazioni da parte dell’azienda in caso di malattia, indennità di mensa, indennità per turnazione, premio di presenza, altre indennità, ....)\n- 13° mensilità, 14° mensilità, altre mensilità\nGli importi anticipati per conto degli enti di previdenza e assistenza (INPS, INAIL) - malattia, maternità, infortuni, assegni familiari, CIG e infortuni - non vanno conteggiati negli “monte retributivo lordo”.\nGli importi devono essere specificati come somma totale delle voci erogate nell’anno (in migliaia di Euro) per l’insieme dei dipendenti dello stesso livello, e non come “importi medi”.\n"]
[]
[]
[]
[]
[]
[]
[]
[]
[]
[]
[null,"(c) Per la categoria dei dirigenti raggruppare i dipendenti, divisi per sesso, secondo quattro scaglioni retributivi. Gli scaglioni vanno calcolati nel seguente modo:\n1) Individuare il monte retributivo lordo annuo individuale massimo e quello minimo.\n2) Sottrarre dal monte retributivo lordo annuo individuale massimo quello minimo.\n3) Dividere la differenza ottenuta per quattro in modo da ottenere l’ampiezza di ogni scaglione.\n4) Il monte retributivo lordo annuo minimo rappresenta il livello inferiore del primo scaglione. A questo si aggiunge l’ampiezza dello scaglione per ottenere il livello superiore del primo scaglione.\n5) Al livello superiore del primo scaglione si aggiunge una unità per ottenere il livello inferiore del secondo scaglione.\n6) Al livello superiore del primo scaglione si aggiunge l’ampiezza dello scaglione per ottenere il livello superiore del secondo scaglione.\n7) Si procede analogamente per  calcolare i successivi scaglioni.\n\nESEMPIO\n\nEuro 40.000,000 - monte retributivo lordo individuale annuo massimo\nEuro 20.000,000 -      “           “            “           “          “     minimo\n______________\nEuro 20.000,000   Differenza fra monte retributivo lordo massimo e minimo.\n\nEuro 20.000,000 : 4 = Euro 5.000,000 Ampiezza dello scaglione\n\nQuarto scaglione:   35.000,001 – 40.000,00\nTerzo scaglione:    30.000,001 – 35.000,000\nSecondo scaglione: 25.000,001 – 30.000,000\nPrimo scaglione:    20.000,000 – 25.000,000\n\nLe cifre utilizzate per il calcolo degli scaglioni, per ragioni di tutela della riservatezza, possono anche non essere indicate nella presentazione finale della tabella.\n"]
[]
[]
[]
[]
[]
[]
[]
[]
[]
[]
[]
[]
[null,"Le cifre utilizzate per il calcolo degli scaglioni, per ragioni di tutela della riservatezza, possono anche non essere indicate nella presentazione finale della tabella."]